Workbook

Sheet 【总表】
D1: 德育 | Q1: 智育 | W1: 体育 | AC1: 综测成绩 | AE1: 必修课是否有资格评选奖学金 | AF1: 体测是否有资格评选奖学金
D2: 思想品德评估成绩 | J2: 奖惩赋分 | K2: 学生荣誉 | L2: 学生干部及社团 | M2: 大型会议、讲座 | N2: 社会实践获奖 | O2: 志愿服务 | P2: 德育总成绩 | R2: 课程成绩 | V2: 智育成绩 | W2: 体测成绩 | X2: 平时成绩 | Y2: 体测备注 | Z2: 文艺加分 | AA2: 体育加分 | AB2: 体育成绩
C3: 班级 | D3: 辅导员评价 | H3: 同学互评 | Q3: 必修课优良率 | R3: 必修课成绩 | S3: 选修课成绩 | T3: 课程成绩 | U3: （学科竞赛）智育加分
A4: 学号 | B4: 姓名 | D4: 辅导员评价总分 | E4: 政治表现+集体观念+团结正直+爱护公物+诚实守信（满45） | F4: 学风学德+文明礼貌+勤俭节约（满25） | G4: 组织纪律+劳动卫生+社会实践（满30） | I4: 思想品德评估成绩
A5: 2020010644 | B5: 李硕 | C5: 能化21-1班 | D5: =E5+F5+G5 -> 98 | E5: 44 | F5: 25 | G5: 29 | H5: 94.15 | I5: =0.4*D5+H5*0.6 -> 95.6923 | P5: =I5+J5+K5+L5+M5+N5+O5 -> 95.6923 | Q5: 27.27% | R5: 54.8000 | S5: 84.0000 | T5: =R5*0.8+S5*0.2 -> 60.6400 | V5: =T5+U5 -> 60.6400 | W5: 60.0 | X5: 100.0 | Y5: 20级大三体测 | AB5: =W5*0.6+X5*0.4+Z5+AA5 -> 76.0 | AC5: =AB5*0.1+V5*0.7+P5*0.2 -> 69.1865 | AE5: 否 | AF5: 否
A6: 2021010374 | B6: 何若妍 | C6: 能化21-1班 | D6: 99 | E6: 45 | F6: 25 | G6: 29 | H6: 96.56 | I6: =0.4*D6+H6*0.6 -> 97.5360 | L6: 4.00 | O6: 4 | P6: =I6+J6+K6+L6+M6+N6+O6 -> 105.5360 | Q6: 100.00% | R6: 92.1071 | S6: 95.0000 | T6: =R6*0.8+S6*0.2 -> 92.6857 | U6: =6+8 -> 14 | V6: =T6+U6 -> 106.6857 | W6: 60.8 | X6: 100.0 | AB6: =W6*0.6+X6*0.4+Z6+AA6 -> 76.5 | AC6: =AB6*0.1+V6*0.7+P6*0.2 -> 103.4352 | AE6: 是 | AF6: 是
A7: 2021010376 | B7: 李传洋 | C7: 能化21-1班 | D7: 94 | E7: 45 | F7: 20 | G7: 29 | H7: 95.24 | I7: 94.7440 | L7: 1.00 | P7: 95.7440 | Q7: 24.00% | R7: 58.0152 | S7: 53.8571 | T7: 57.1835 | V7: 57.1835 | W7: 73.8 | X7: 100.0 | AB7: 84.3 | AC7: 67.6053 | AE7: 否 | AF7: 是
A8: 2021010377 | B8: 甘浩 | C8: 能化21-1班 | D8: 97 | E8: 45 | F8: 23 | G8: 29 | H8: 95.44 | I8: 96.0640 | L8: 2.00 | P8: 98.0640 | Q8: 10.00% | R8: 65.5333 | S8: 54.2857 | T8: 63.2838 | V8: 63.2838 | W8: 61.9 | X8: 100.0 | AB8: 77.1 | AC8: 71.6255 | AE8: 否 | AF8: 是
A9: 2021010380 | B9: 詹作鑫 | C9: 能化21-1班 | D9: 99 | E9: 45 | F9: 25 | G9: 29 | H9: 96.60 | I9: 97.5600 | P9: 97.5600 | Q9: 35.00% | R9: 76.9222 | S9: 86.4737 | T9: 78.8325 | V9: 78.8325 | W9: 41.3 | X9: 100.0 | AB9: 64.8 | AC9: 81.1728 | AE9: 是 | AF9: 否
A10: 2021010381 | B10: 李维昊 | C10: 能化21-1班 | D10: 97 | E10: 45 | F10: 23 | G10: 29 | H10: 96.24 | I10: 96.5440 | P10: 96.5440 | Q10: 18.18% | R10: 62.6476 | S10: 51.0000 | T10: 60.3181 | V10: 60.3181 | W10: 86.2 | X10: 100.0 | AB10: 91.7 | AC10: 70.7035 | AE10: 否 | AF10: 是
A11: 2021010382 | B11: 王理哲 | C11: 能化21-1班 | D11: 99 | E11: 45 | F11: 25 | G11: 29 | H11: 95.92 | I11: 97.1520 | P11: 97.1520 | Q11: 30.00% | R11: 70.0333 | S11: 71.0000 | T11: 70.2267 | V11: 70.2267 | W11: 43.4 | X11: 100.0 | Y11: 补测 | AB11: 66.0 | AC11: 75.1931 | AE11: 否 | AF11: 否
A12: 2021010387 | B12: 李洪博 | C12: 能化21-1班 | D12: 99 | E12: 45 | F12: 25 | G12: 29 | H12: 95.76 | I12: 97.0560 | L12: 2.00 | P12: 99.0560 | Q12: 16.67% | R12: 68.4348 | S12: 78.0000 | T12: 70.3478 | V12: 70.3478 | W12: 56.6 | X12: 100.0 | AB12: 74.0 | AC12: 76.4507 | AE12: 否 | AF12: 否
A13: 2021010389 | B13: 李臻彦 | C13: 能化21-1班 | D13: 99 | E13: 45 | F13: 25 | G13: 29 | H13: 95.88 | I13: 97.1280 | P13: 97.1280 | Q13: 33.33% | R13: 71.0000 | S13: 71.6667 | T13: 71.1333 | V13: 71.1333 | W13: 55.6 | X13: 100.0 | AB13: 73.4 | AC13: 76.5549 | AE13: 否 | AF13: 否
A14: 2021010392 | B14: 苏辛一 | C14: 能化21-1班 | D14: 100 | E14: 45 | F14: 25 | G14: 30 | H14: 96.72 | I14: 98.0320 | L14: 6.20 | P14: 104.2320 | Q14: 4.35% | R14: 59.7850 | S14: 75.0000 | T14: 62.8280 | V14: 62.8280 | W14: 56.4 | X14: 100.0 | AB14: 73.8 | AC14: 72.2100 | AE14: 否 | AF14: 否
A15: 2021010393 | B15: 唐顾玮 | C15: 能化21-1班 | D15: 99 | E15: 45 | F15: 25 | G15: 29 | H15: 95.64 | I15: 96.9840 | P15: 96.9840 | Q15: 14.29% | R15: 69.5319 | S15: 65.0000 | T15: 68.6255 | V15: 68.6255 | W15: 65.6 | X15: 100.0 | AB15: 79.4 | AC15: 75.3707 | AE15: 否 | AF15: 是
A16: 2021010428 | B16: 周忠康 | C16: 能化21-1班 | D16: 99 | E16: 45 | F16: 25 | G16: 29 | H16: 96.32 | I16: 97.3920 | P16: 97.3920 | Q16: 70.00% | R16: 80.6705 | S16: 81.5000 | T16: 80.8364 | V16: 80.8364 | W16: 60.0 | X16: 100.0 | Y16: 补测 | AB16: 76.0 | AC16: 83.6639 | AE16: 是 | AF16: 是
A17: 2021010431 | B17: 王医灵 | C17: 能化21-1班 | D17: 99 | E17: 45 | F17: 25 | G17: 29 | H17: 96.52 | I17: 97.5120 | L17: 4.20 | M17: 2.0 | O17: 4 | P17: 107.7120 | Q17: 72.22% | R17: 83.7711 | S17: 84.0000 | T17: 83.8169 | V17: 83.8169 | W17: 71.8 | X17: 100.0 | AB17: 83.1 | AC17: 88.5222 | AE17: 是 | AF17: 是
A18: 2021010432 | B18: 梁卓文 | C18: 能化21-1班 | D18: 99 | E18: 45 | F18: 25 | G18: 29 | H18: 95.88 | I18: 97.1280 | P18: 97.1280 | Q18: 47.62% | R18: 78.7128 | S18: 67.0000 | T18: 76.3702 | V18: 76.3702 | W18: 60.0 | X18: 100.0 | Y18: 补测 | AB18: 76.0 | AC18: =AB18*0.1+V18*0.7+P18*0.2 -> 80.4847 | AE18: 是 | AF18: 是
A19: 2021010433 | B19: 朱佳怡 | C19: 能化21-1班 | D19: 99 | E19: 45 | F19: 25 | G19: 29 | H19: 95.96 | I19: 97.1760 | P19: 97.1760 | Q19: 19.05% | R19: 67.3830 | S19: 66.0000 | T19: 67.1064 | V19: 67.1064 | W19: 67.8 | X19: 100.0 | AB19: 80.7 | AC19: 74.4777 | AE19: 否 | AF19: 是
A20: 2021010442 | B20: 裴俊豪 | C20: 能化21-1班 | D20: 99 | E20: 45 | F20: 25 | G20: 29 | H20: 95.56 | I20: 96.9360 | L20: 4.00 | P20: 100.9360 | Q20: 95.00% | R20: 89.5795 | S20: 86.5000 | T20: 88.9636 | V20: 88.9636 | W20: 69.1 | X20: 100.0 | AB20: 81.5 | AC20: 90.6077 | AE20: 是 | AF20: 是
A21: 2021010443 | B21: 鲍怡帅 | C21: 能化21-1班 | D21: 99 | E21: 45 | F21: 25 | G21: 29 | H21: 96.28 | I21: 97.3680 | L21: 4.00 | P21: 101.3680 | Q21: 63.16% | R21: 78.1429 | S21: 74.6667 | T21: 77.4476 | V21: 77.4476 | W21: 64.6 | X21: 100.0 | AB21: 78.8 | AC21: 82.3629 | AE21: 否 | AF21: 是
A22: 2021010445 | B22: 耿智鸿 | C22: 能化21-1班 | D22: 99 | E22: 45 | F22: 25 | G22: 29 | H22: 95.84 | I22: 97.1040 | L22: 1.00 | P22: 98.1040 | Q22: 38.10% | R22: 71.7660 | S22: 76.5000 | T22: 72.7128 | V22: 72.7128 | W22: 67.8 | X22: 100.0 | AB22: 80.7 | AC22: 78.5877 | AE22: 否 | AF22: 是
A23: 2021010457 | B23: 栾俊添 | C23: 能化21-1班 | D23: 99 | E23: 45 | F23: 25 | G23: 29 | H23: 95.84 | I23: 97.1040 | L23: 4.20 | O23: 4 | P23: 105.3040 | Q23: 94.74% | R23: 87.7381 | S23: 90.0000 | T23: 88.1905 | U23: =8*2/3+5*2/3+4+4 -> 16.6667 | V23: 104.8571 | W23: 85.4 | X23: 100.0 | AB23: 91.2 | AC23: 103.5848 | AE23: 是 | AF23: 是
A24: 2021010465 | B24: 潘思迪 | C24: 能化21-1班 | D24: 96 | E24: 42 | F24: 25 | G24: 29 | H24: 95.84 | I24: 95.9040 | L24: 6.67 | O24: 4 | P24: 106.5707 | Q24: 95.24% | R24: 86.4444 | S24: 89.5000 | T24: 87.0556 | U24: 12 | V24: 99.0556 | W24: 71.7 | X24: 100.0 | AB24: 83.0 | AC24: 98.9550 | AE24: 是 | AF24: 是
A25: 2021010482 | B25: 王岩青 | C25: 能化21-1班 | D25: 99 | E25: 45 | F25: 25 | G25: 29 | H25: 96.27 | I25: 97.3615 | L25: 4.00 | M25: 2.0 | N25: 1.500 | P25: 104.8615 | Q25: 42.86% | R25: 71.9897 | S25: 76.5000 | T25: 72.8918 | V25: 72.8918 | W25: 64.6 | X25: 100.0 | Z25: =5+2.5 -> 8 | AB25: 86.3 | AC25: 80.6225 | AE25: 是 | AF25: 是
A26: 2021010493 | B26: 李燕琴 | C26: 能化21-1班 | D26: 99 | E26: 45 | F26: 25 | G26: 29 | H26: 95.32 | I26: 96.7920 | P26: 96.7920 | Q26: 34.78% | R26: 71.1743 | S26: 70.0000 | T26: 70.9394 | V26: 70.9394 | W26: 73.2 | X26: 100.0 | AB26: 83.9 | AC26: 77.4080 | AE26: 否 | AF26: 是
A27: 2021010494 | B27: 黄镜 | C27: 能化21-1班 | D27: 100 | E27: 45 | F27: 25 | G27: 30 | H27: 96.24 | I27: 97.7440 | L27: 6.00 | O27: 3 | P27: 106.7440 | Q27: 21.74% | R27: 65.4571 | S27: 75.0000 | T27: 67.3657 | V27: 67.3657 | W27: 60.0 | X27: 100.0 | Y27: 免测 | AB27: 76.0 | AC27: 76.1048 | AE27: 否 | AF27: 是
A28: 2021010496 | B28: 解天羽 | C28: 能化21-1班 | D28: 99 | E28: 45 | F28: 25 | G28: 29 | H28: 95.16 | I28: 96.6960 | O28: 2 | P28: 98.6960 | Q28: 47.37% | R28: 74.0000 | S28: 80.5000 | T28: 75.3000 | V28: 75.3000 | W28: 63.3 | X28: 100.0 | AB28: 78.0 | AC28: 80.2472 | AE28: 否 | AF28: 是
A29: 2021010498 | B29: 阿力木努·赛买提 | C29: 能化21-1班 | D29: 99 | E29: 45 | F29: 25 | G29: 29 | H29: 95.84 | I29: 97.1040 | P29: 97.1040 | Q29: 40.91% | R29: 70.8085 | S29: 64.0000 | T29: 69.4468 | V29: 69.4468 | W29: 68.2 | X29: 100.0 | AB29: 80.9 | AC29: 76.1256 | AE29: 否 | AF29: 是
A30: 2021010513 | B30: 曹逸恒 | C30: 能化21-1班 | D30: 97 | E30: 45 | F30: 23 | G30: 29 | H30: 95.80 | I30: 96.2800 | P30: 96.2800 | Q30: 21.74% | R30: 61.0522 | S30: 69.0000 | T30: 62.6417 | V30: 62.6417 | W30: 34.0 | X30: 100.0 | AB30: 60.4 | AC30: 69.1452 | AE30: 否 | AF30: 否
A31: 2021010514 | B31: 曹哲仁 | C31: 能化21-1班 | D31: 99 | E31: 45 | F31: 25 | G31: 29 | H31: 96.20 | I31: 97.3200 | L31: 4.00 | O31: 2 | P31: 103.3200 | Q31: 89.47% | R31: 85.8452 | S31: 82.0000 | T31: 85.0762 | U31: 8.5 | V31: 93.5762 | W31: 63.2 | X31: 100.0 | AB31: 77.9 | AC31: 93.9593 | AE31: 是 | AF31: 是
A32: 2021010515 | B32: 陈骄阳 | C32: 能化21-1班 | D32: 99 | E32: 45 | F32: 25 | G32: 29 | H32: 95.48 | I32: 96.8880 | L32: 2.00 | P32: 98.8880 | Q32: 40.00% | R32: 77.4891 | S32: 70.3333 | T32: 76.0580 | V32: 76.0580 | W32: 56.7 | X32: 100.0 | AB32: 74.0 | AC32: 80.4202 | AE32: 否 | AF32: 否
A33: 2021010395 | B33: 王浙 | C33: 能化21-2班 | D33: 100 | E33: 45 | F33: 25 | G33: 30 | H33: 98.93 | I33: =0.4*D33+H33*0.6 -> 99.3571 | L33: 4.40 | P33: =I33+J33+K33+L33+M33+N33+O33 -> 103.7571 | Q33: 94.74% | R33: 89.3214 | S33: 94.0000 | T33: 90.2571 | U33: 34 | V33: 124.2571 | W33: 68.4 | X33: 100.0 | AB33: 81.0 | AC33: 115.8354 | AE33: 是 | AF33: 是
A34: 2021010403 | B34: 崔珈榕 | C34: 能化21-2班 | D34: 99 | E34: 45 | F34: 25 | G34: 29 | H34: 97.25 | I34: 97.9500 | P34: 97.9500 | Q34: 30.00% | R34: 68.7444 | S34: 77.0000 | T34: 70.3956 | V34: 70.3956 | W34: 62.0 | X34: 100.0 | AB34: 77.2 | AC34: 76.5869 | AE34: 否 | AF34: 是
A35: 2021010409 | B35: 刘兴旺 | C35: 能化21-2班 | D35: 99 | E35: 45 | F35: 25 | G35: 29 | H35: 98.36 | I35: 98.6143 | L35: 2.00 | P35: 100.6143 | Q35: 26.32% | R35: 72.4762 | S35: 69.9333 | T35: 71.9676 | V35: 71.9676 | W35: 60.0 | X35: 100.0 | Y35: 补测 | AB35: 76.0 | AC35: 78.1002 | AE35: 是 | AF35: 是
A36: 2021010412 | B36: 陈逸飞 | C36: 能化21-2班 | D36: 99 | E36: 45 | F36: 25 | G36: 29 | H36: 98.36 | I36: 98.6143 | L36: 3.20 | P36: 101.8143 | Q36: 52.63% | R36: 77.5714 | S36: 76.5000 | T36: 77.3571 | V36: 77.3571 | W36: 41.0 | X36: 100.0 | AB36: 64.6 | AC36: 80.9729 | AE36: 是 | AF36: 否
A37: 2021010413 | B37: 林云志 | C37: 能化21-2班 | D37: 99 | E37: 45 | F37: 25 | G37: 29 | H37: 98.46 | I37: 98.6786 | P37: 98.6786 | Q37: 22.73% | R37: 70.0288 | S37: 66.0000 | T37: 69.2231 | V37: 69.2231 | W37: 66.1 | X37: 100.0 | AB37: 79.7 | AC37: 76.1579 | AE37: 否 | AF37: 是
A38: 2021010419 | B38: 鲁鹤宇 | C38: 能化21-2班 | D38: 94 | E38: 45 | F38: 20 | G38: 29 | H38: 97.50 | I38: 96.1000 | P38: 96.1000 | Q38: 4.35% | R38: 49.5094 | S38: 27.0000 | T38: 45.0075 | V38: 45.0075 | W38: 20.0 | X38: 100.0 | AB38: 52.0 | AC38: 55.9253 | AE38: 否 | AF38: 否
A39: 2021010426 | B39: 杨凯迪 | C39: 能化21-2班 | D39: 99 | E39: 45 | F39: 25 | G39: 29 | H39: 98.11 | I39: 98.4643 | P39: 98.4643 | Q39: 9.09% | R39: 61.7757 | S39: 68.0000 | T39: 63.0206 | V39: 63.0206 | W39: 54.8 | X39: 100.0 | AB39: 72.9 | AC39: 71.0952 | AE39: 否 | AF39: 否
A40: 2021010427 | B40: 张金坤 | C40: 能化21-2班 | D40: 99 | E40: 45 | F40: 25 | G40: 29 | H40: 98.14 | I40: 98.4857 | P40: 98.4857 | Q40: 35.00% | R40: 72.0889 | S40: 77.5000 | T40: 73.1711 | V40: 73.1711 | W40: 60.3 | X40: 100.0 | AB40: 76.2 | AC40: 78.5349 | AE40: 否 | AF40: 是
A41: 2021010439 | B41: 吴晗毓 | C41: 能化21-2班 | D41: 99 | E41: 45 | F41: 25 | G41: 29 | H41: 98.61 | I41: 98.7643 | P41: 98.7643 | Q41: 50.00% | R41: 75.4458 | S41: 74.5000 | T41: 75.2566 | V41: 75.2566 | W41: 60.0 | X41: 100.0 | Y41: 补测 | AB41: 76.0 | AC41: 80.0325 | AE41: 否 | AF41: 是
A42: 2021010450 | B42: 周围 | C42: 能化21-2班 | D42: 99 | E42: 45 | F42: 25 | G42: 29 | H42: 99.00 | I42: 99.0000 | P42: 99.0000 | Q42: 43.48% | R42: 74.0510 | S42: 75.5000 | T42: 74.3408 | V42: 74.3408 | W42: 58.2 | X42: 100.0 | AB42: 74.9 | AC42: 79.3306 | AE42: 否 | AF42: 否
A43: 2021010461 | B43: 杨嘉琦 | C43: 能化21-2班 | D43: 99 | E43: 45 | F43: 25 | G43: 29 | H43: 98.86 | I43: 98.9143 | L43: 7.07 | O43: 3 | P43: 108.9810 | Q43: 68.42% | R43: 81.4048 | S43: 82.0000 | T43: 81.5238 | U43: 3 | V43: 84.5238 | W43: 68.2 | X43: 100.0 | AB43: 80.9 | AC43: 89.0549 | AE43: 是 | AF43: 是
A44: 2021010462 | B44: 武晗 | C44: 能化21-2班 | D44: 99 | E44: 45 | F44: 25 | G44: 29 | H44: 98.36 | I44: 98.6143 | L44: 2.00 | P44: =I44+J44+K44+L44+M44+N44+O44 -> 100.6143 | Q44: 38.10% | R44: 71.3918 | S44: 84.5000 | T44: 74.0134 | V44: 74.0134 | W44: 63.4 | X44: 100.0 | AB44: 78.0 | AC44: 79.7362 | AE44: 否 | AF44: 是
A45: 2021010464 | B45: 周香格 | C45: 能化21-2班 | D45: 97 | E45: 45 | F45: 23 | G45: 29 | H45: 98.32 | I45: 97.7929 | P45: 97.7929 | Q45: 18.18% | R45: 66.2621 | S45: 78.2000 | T45: 68.6497 | V45: 68.6497 | W45: 70.6 | X45: 100.0 | AB45: 82.4 | AC45: 75.8494 | AE45: 否 | AF45: 是
A46: 2021010466 | B46: 程嘉欣 | C46: 能化21-2班 | D46: 100 | E46: 45 | F46: 25 | G46: 30 | H46: 99.39 | I46: 99.6357 | L46: 4.20 | P46: 103.8357 | Q46: 61.90% | R46: 80.1413 | S46: 86.0000 | T46: 81.3130 | V46: 81.3130 | W46: 76.4 | X46: 100.0 | AB46: 85.8 | AC46: 86.2703 | AE46: 是 | AF46: 是
A47: 2021010467 | B47: 颜伊宁 | C47: 能化21-2班 | D47: 99 | E47: 45 | F47: 25 | G47: 29 | H47: 98.89 | I47: 98.9357 | P47: 98.9357 | Q47: 68.42% | R47: 81.3571 | S47: 89.6667 | T47: 83.0190 | V47: 83.0190 | W47: 70.4 | X47: 100.0 | AB47: 82.2 | AC47: 86.1245 | AE47: 是 | AF47: 是
A48: 2021010470 | B48: 刘睿扬 | C48: 能化21-2班 | D48: 100 | E48: 45 | F48: 25 | G48: 30 | H48: 99.11 | I48: 99.4643 | L48: 6.20 | O48: 4 | P48: 109.6643 | Q48: 71.43% | R48: 81.3043 | S48: 92.0000 | T48: 83.4435 | U48: 4 | V48: 87.4435 | W48: 60.0 | X48: 100.0 | Y48: 免测 | AB48: 76.0 | AC48: 90.7433 | AE48: 是 | AF48: 是
A49: 2021010471 | B49: 柳子涵 | C49: 能化21-2班 | D49: 98 | E49: 45 | F49: 24 | G49: 29 | H49: 97.96 | I49: 97.9786 | P49: 97.9786 | Q49: 34.78% | R49: 67.8761 | S49: 81.0000 | T49: 70.5009 | V49: 70.5009 | W49: 62.6 | X49: 100.0 | AB49: 77.6 | AC49: 76.7023 | AE49: 否 | AF49: 是
A50: 2021010475 | B50: 蒲文博 | C50: 能化21-2班 | D50: 99 | E50: 45 | F50: 25 | G50: 29 | H50: 98.18 | I50: 98.5071 | P50: 98.5071 | Q50: 38.10% | R50: 73.5000 | S50: 80.5000 | T50: 74.9000 | V50: 74.9000 | W50: 60.2 | X50: 100.0 | AB50: 76.1 | AC50: 79.7434 | AE50: 是 | AF50: 是
A51: 2021010476 | B51: 齐翔龙 | C51: 能化21-2班 | D51: 97 | E51: 45 | F51: 23 | G51: 29 | H51: 98.79 | I51: 98.0714 | P51: 98.0714 | Q51: 32.00% | R51: 67.0088 | S51: 77.6667 | T51: 69.1404 | V51: 69.1404 | W51: 55.2 | X51: 100.0 | Y51: 补测 | AB51: 73.1 | AC51: 75.3246 | AE51: 否 | AF51: 否
A52: 2021010477 | B52: 何余胜 | C52: 能化21-2班 | D52: 97 | E52: 45 | F52: 23 | G52: 29 | H52: 98.43 | I52: 97.8571 | P52: 97.8571 | Q52: 18.18% | R52: 62.4951 | S52: 74.6667 | T52: 64.9294 | V52: 64.9294 | W52: 57.9 | X52: 100.0 | Y52: 补测 | AB52: 74.7 | AC52: 72.4960 | AE52: 否 | AF52: 否
A53: 2021010478 | B53: 常一帆 | C53: 能化21-2班 | D53: 97 | E53: 45 | F53: 23 | G53: 29 | H53: 98.96 | I53: 98.1786 | L53: 2.00 | P53: 100.1786 | Q53: 19.05% | R53: 69.1856 | S53: 69.0000 | T53: 69.1485 | V53: 69.1485 | W53: 69.8 | X53: 100.0 | AB53: 81.9 | AC53: 76.6276 | AE53: 否 | AF53: 是
A54: 2021010479 | B54: 覃师凯 | C54: 能化21-2班 | D54: 100 | E54: 45 | F54: 25 | G54: 30 | H54: 98.82 | I54: 99.2929 | L54: 3.40 | M54: 0.5 | O54: 3 | P54: 106.1929 | Q54: 38.10% | R54: 72.2391 | S54: 63.0000 | T54: 70.3913 | U54: 2 | V54: 72.3913 | W54: 100.7 | X54: 100.0 | AA54: 25 | AB54: =W54*0.6+X54*0.4+Z54+AA54 -> 125.4 | AC54: 84.4545 | AE54: 否 | AF54: 是
A55: 2021010486 | B55: 鹿麒麟 | C55: 能化21-2班 | D55: 100 | E55: 45 | F55: 25 | G55: 30 | H55: 99.89 | I55: 99.9357 | L55: 6.40 | N55: 1.875 | O55: 4 | P55: 112.2107 | Q55: 100.00% | R55: 94.3929 | S55: 97.0000 | T55: 94.9143 | U55: 35.5 | V55: 130.4143 | W55: 79.4 | X55: 100.0 | Z55: 8 | AB55: 95.6 | AC55: 123.2961 | AE55: 是 | AF55: 是
A56: 2021010487 | B56: 吴隆卓 | C56: 能化21-2班 | D56: 99 | E56: 45 | F56: 25 | G56: 29 | H56: 98.29 | I56: 98.5714 | P56: 98.5714 | Q56: 18.18% | R56: 67.0485 | S56: 80.0000 | T56: 69.6388 | V56: 69.6388 | W56: 40.8 | X56: 100.0 | AB56: 64.5 | AC56: 74.9095 | AE56: 否 | AF56: 否
A57: 2021010492 | B57: 左笑维 | C57: 能化21-2班 | D57: 99 | E57: 45 | F57: 25 | G57: 29 | H57: 98.89 | I57: 98.9357 | L57: 2.00 | P57: 100.9357 | Q57: 100.00% | R57: 85.3810 | S57: 85.0000 | T57: 85.3048 | U57: 6 | V57: 91.3048 | W57: 66.0 | X57: 100.0 | Z57: 8 | AA57: 8 | AB57: 95.6 | AC57: 93.6605 | AE57: 是 | AF57: 是
A58: 2021010501 | B58: 陈湘宜 | C58: 能化21-2班 | D58: 99 | E58: 45 | F58: 25 | G58: 29 | H58: 98.96 | I58: 98.9786 | P58: 98.9786 | Q58: 30.00% | R58: 73.0889 | S58: 91.0000 | T58: 76.6711 | V58: 76.6711 | W58: 53.0 | X58: 100.0 | AB58: 71.8 | AC58: 80.6455 | AE58: 是 | AF58: 否
A59: 2021010502 | B59: 王晨宣 | C59: 能化21-2班 | D59: 99 | E59: 45 | F59: 25 | G59: 29 | H59: 99.11 | I59: 99.0643 | O59: 4 | P59: 103.0643 | Q59: 78.95% | R59: 81.6310 | S59: 93.0000 | T59: 83.9048 | V59: 83.9048 | W59: 64.7 | X59: 100.0 | AB59: 78.8 | AC59: 87.2282 | AE59: 是 | AF59: 是
A60: 2021010506 | B60: 陈国荣 | C60: 能化21-2班 | D60: 99 | E60: 45 | F60: 25 | G60: 29 | H60: 98.00 | I60: 98.4000 | P60: 98.4000 | Q60: 45.45% | R60: 78.7872 | S60: 73.5000 | T60: 77.7298 | V60: 77.7298 | W60: 66.8 | X60: 100.0 | AB60: 80.1 | AC60: 82.0989 | AE60: 是 | AF60: 是
A61: 2021010521 | B61: 王梓涵 | C61: 能化21-2班 | D61: 100 | E61: 45 | F61: 25 | G61: 30 | H61: 98.89 | I61: 99.3357 | L61: 3.00 | M61: 0.5 | P61: 102.8357 | Q61: 73.68% | R61: 83.6667 | S61: 91.0000 | T61: 85.1333 | V61: 85.1333 | W61: 67.2 | X61: 100.0 | AB61: 80.3 | AC61: 88.1925 | AE61: 是 | AF61: 是

Sheet 【德育】同学互评
A1: 能化21级综测班内同学互评
A2: 姓名 | B2: 学号 | C2: 互评分数
A3: 李硕 | B3: 2020010644 | C3: 94.15
A4: 何若妍 | B4: 2021010374 | C4: 96.56
A5: 李传洋 | B5: 2021010376 | C5: 95.24
A6: 甘浩 | B6: 2021010377 | C6: 95.44
A7: 詹作鑫 | B7: 2021010380 | C7: 96.60
A8: 李维昊 | B8: 2021010381 | C8: 96.24
A9: 王理哲 | B9: 2021010382 | C9: 95.92
A10: 李洪博 | B10: 2021010387 | C10: 95.76
A11: 李臻彦 | B11: 2021010389 | C11: 95.88
A12: 苏辛一 | B12: 2021010392 | C12: 96.72
A13: 唐顾玮 | B13: 2021010393 | C13: 95.64
A14: 周忠康 | B14: 2021010428 | C14: 96.32
A15: 王医灵 | B15: 2021010431 | C15: 96.52
A16: 梁卓文 | B16: 2021010432 | C16: 95.88
A17: 朱佳怡 | B17: 2021010433 | C17: 95.96
A18: 裴俊豪 | B18: 2021010442 | C18: 95.56
A19: 鲍怡帅 | B19: 2021010443 | C19: 96.28
A20: 耿智鸿 | B20: 2021010445 | C20: 95.84
A21: 栾俊添 | B21: 2021010457 | C21: 95.84
A22: 潘思迪 | B22: 2021010465 | C22: 95.84
A23: 王岩青 | B23: 2021010482 | C23: 96.27
A24: 李燕琴 | B24: 2021010493 | C24: 95.32
A25: 黄镜 | B25: 2021010494 | C25: 96.24
A26: 解天羽 | B26: 2021010496 | C26: 95.16
A27: 阿力木努·赛买提 | B27: 2021010498 | C27: 95.84
A28: 曹逸恒 | B28: 2021010513 | C28: 95.80
A29: 曹哲仁 | B29: 2021010514 | C29: 96.20
A30: 陈骄阳 | B30: 2021010515 | C30: 95.48
A31: 王浙 | B31: 2021010395 | C31: 98.93
A32: 崔珈榕 | B32: 2021010403 | C32: 97.25
A33: 刘兴旺 | B33: 2021010409 | C33: 98.36
A34: 陈逸飞 | B34: 2021010412 | C34: 98.36
A35: 林云志 | B35: 2021010413 | C35: 98.46
A36: 鲁鹤宇 | B36: 2021010419 | C36: 97.50
A37: 杨凯迪 | B37: 2021010426 | C37: 98.11
A38: 张金坤 | B38: 2021010427 | C38: 98.14
A39: 吴晗毓 | B39: 2021010439 | C39: 98.61
A40: 周围 | B40: 2021010450 | C40: 99.00
A41: 杨嘉琦 | B41: 2021010461 | C41: 98.86
A42: 武晗 | B42: 2021010462 | C42: 98.36
A43: 周香格 | B43: 2021010464 | C43: 98.32
A44: 程嘉欣 | B44: 2021010466 | C44: 99.39
A45: 颜伊宁 | B45: 2021010467 | C45: 98.89
A46: 刘睿扬 | B46: 2021010470 | C46: 99.11
A47: 柳子涵 | B47: 2021010471 | C47: 97.96
A48: 蒲文博 | B48: 2021010475 | C48: 98.18
A49: 齐翔龙 | B49: 2021010476 | C49: 98.79
A50: 何余胜 | B50: 2021010477 | C50: 98.43
A51: 常一帆 | B51: 2021010478 | C51: 98.96
A52: 覃师凯 | B52: 2021010479 | C52: 98.82
A53: 鹿麒麟 | B53: 2021010486 | C53: 99.89
A54: 吴隆卓 | B54: 2021010487 | C54: 98.29
A55: 左笑维 | B55: 2021010492 | C55: 98.89
A56: 陈湘宜 | B56: 2021010501 | C56: 98.96
A57: 王晨宣 | B57: 2021010502 | C57: 99.11
A58: 陈国荣 | B58: 2021010506 | C58: 98.00
A59: 王梓涵 | B59: 2021010521 | C59: 98.89

Sheet 【德育】学生职务
A1: 能化21级 大三学年学生职务加分汇总
A2: 姓名 | B2: 学号 | C2: 班级 | D2: 核分 | E2: 中国石油大学（北京）红十字会 | F2: 中国石油大学（北京）篮球协会 | G2: 飞扬毽绳协会 | H2: 管弦乐团 | I2: 田径协会 | J2: 陶笛社 | K2: 化学爱好者协会 | L2: 中石大辩论队 | M2: 化成天下 | N2: 班委、课代表、宿舍长加分 | O2: 班委、课代表宿舍长备注
A3: 李硕 | B3: 2020010644 | C3: 能化21-1班
A4: 何若妍 | B4: 2021010374 | C4: 能化21-1班 | D4: 4 | N4: 4 | O4: 心理委员
A5: 李传洋 | B5: 2021010376 | C5: 能化21-1班 | D5: 1 | N5: 1 | O5: 能化设计基础课代表
A6: 甘浩 | B6: 2021010377 | C6: 能化21-1班 | D6: 2 | N6: 2 | O6: 宿舍长
A7: 詹作鑫 | B7: 2021010380 | C7: 能化21-1班
A8: 李维昊 | B8: 2021010381 | C8: 能化21-1班
A9: 王理哲 | B9: 2021010382 | C9: 能化21-1班
A10: 李洪博 | B10: 2021010387 | C10: 能化21-1班 | D10: 2 | N10: 2 | O10: 宿舍长
A11: 李臻彦 | B11: 2021010389 | C11: 能化21-1班
A12: 苏辛一 | B12: 2021010392 | C12: 能化21-1班 | D12: 6.2 | N12: 6+1 | O12: 班长，生产实习课代表
A13: 唐顾玮 | B13: 2021010393 | C13: 能化21-1班
A14: 周忠康 | B14: 2021010428 | C14: 能化21-1班
A15: 王医灵 | B15: 2021010431 | C15: 能化21-1班 | D15: 4.2 | N15: 4+1 | O15: 学习委员，化反课代表
A16: 梁卓文 | B16: 2021010432 | C16: 能化21-1班
A17: 朱佳怡 | B17: 2021010433 | C17: 能化21-1班
A18: 裴俊豪 | B18: 2021010442 | C18: 能化21-1班 | D18: 4 | N18: 4 | O18: 宣传委员
A19: 鲍怡帅 | B19: 2021010443 | C19: 能化21-1班 | D19: 4 | N19: 4 | O19: 生活委员
A20: 耿智鸿 | B20: 2021010445 | C20: 能化21-1班 | D20: 1 | N20: 1 | O20: 化工用能评价课代表
A21: 栾俊添 | B21: 2021010457 | C21: 能化21-1班 | D21: =4+0.2 -> 4.20 | N21: 4+1 | O21: 体育委员，课代表
A22: 潘思迪 | B22: 2021010465 | C22: 能化21-1班 | D22: =M22 -> 6.67 | M22: =10*2/3 -> 6.67
A23: 王岩青 | B23: 2021010482 | C23: 能化21-1班 | D23: =H23 -> 4 | H23: 4
A24: 李燕琴 | B24: 2021010493 | C24: 能化21-1班
A25: 黄镜 | B25: 2021010494 | C25: 能化21-1班 | D25: 6 | N25: 6 | O25: 团支书
A26: 解天羽 | B26: 2021010496 | C26: 能化21-1班
A27: 阿力木努·赛买提 | B27: 2021010498 | C27: 能化21-1班
A28: 曹逸恒 | B28: 2021010513 | C28: 能化21-1班
A29: 曹哲仁 | B29: 2021010514 | C29: 能化21-1班 | D29: 4 | N29: 4 | O29: 副班长(组织委员)
A30: 陈骄阳 | B30: 2021010515 | C30: 能化21-1班 | D30: 2 | N30: 2 | O30: 宿舍长
A31: 王浙 | B31: 2021010395 | C31: 能化21-2班 | D31: 4.4 | K31: 2 | N31: 4+1 | O31: 生活委员、物化实验课代表
A32: 崔珈榕 | B32: 2021010403 | C32: 能化21-2班
A33: 刘兴旺 | B33: 2021010409 | C33: 能化21-2班 | D33: 2 | N33: 2 | O33: 心理委员
A34: 陈逸飞 | B34: 2021010412 | C34: 能化21-2班 | D34: 3.2 | N34: 3+1 | O34: 副班长、化原课设课代表
A35: 林云志 | B35: 2021010413 | C35: 能化21-2班
A36: 鲁鹤宇 | B36: 2021010419 | C36: 能化21-2班
A37: 杨凯迪 | B37: 2021010426 | C37: 能化21-2班
A38: 张金坤 | B38: 2021010427 | C38: 能化21-2班
A39: 吴晗毓 | B39: 2021010439 | C39: 能化21-2班
A40: 周围 | B40: 2021010450 | C40: 能化21-2班
A41: 杨嘉琦 | B41: 2021010461 | C41: 能化21-2班 | D41: =E41+0.4 -> 7.07 | E41: =10*2/3 -> 6.67 | N41: 2 | O41: 心理委员
A42: 武晗 | B42: 2021010462 | C42: 能化21-2班 | D42: 2 | N42: 2 | O42: 宿舍长
A43: 周香格 | B43: 2021010464 | C43: 能化21-2班
A44: 程嘉欣 | B44: 2021010466 | C44: 能化21-2班 | D44: 4.2 | N44: 4+1+1 | O44: 学习委员、化热+煤化工课代表
A45: 颜伊宁 | B45: 2021010467 | C45: 能化21-2班
A46: 刘睿扬 | B46: 2021010470 | C46: 能化21-2班 | D46: 6.2 | N46: 6+1 | O46: 团支书、生产实习课代表
A47: 柳子涵 | B47: 2021010471 | C47: 能化21-2班
A48: 蒲文博 | B48: 2021010475 | C48: 能化21-2班
A49: 齐翔龙 | B49: 2021010476 | C49: 能化21-2班
A50: 何余胜 | B50: 2021010477 | C50: 能化21-2班
A51: 常一帆 | B51: 2021010478 | C51: 能化21-2班 | D51: 2 | N51: 2 | O51: 宿舍长
A52: 覃师凯 | B52: 2021010479 | C52: 能化21-2班 | D52: =3+G52*0.2 -> 3.40 | G52: 2 | I52: 1 | N52: 3+1 | O52: 体育委员、化原课代表
A53: 鹿麒麟 | B53: 2021010486 | C53: 能化21-2班 | D53: =6+2*0.2 -> 6.4 | N53: 6+2+1+1+1+1 | O53: 班长、宿舍长、电工学+化工装备+能化设计基础+就业课代表
A54: 吴隆卓 | B54: 2021010487 | C54: 能化21-2班
A55: 左笑维 | B55: 2021010492 | C55: 能化21-2班 | D55: =L55+F55*0.2 -> 2 | L55: 2.0
A56: 陈湘宜 | B56: 2021010501 | C56: 能化21-2班
A57: 王晨宣 | B57: 2021010502 | C57: 能化21-2班
A58: 陈国荣 | B58: 2021010506 | C58: 能化21-2班
A59: 王梓涵 | B59: 2021010521 | C59: 能化21-2班 | D59: 3 | N59: 3 | O59: 宣传委员
A61: 注：正副主席、正副部长、部委加分全部按2/3折算；班级及各社团有担任两个班委职务的同学 第二项×0.2，只能累加2项，一个班有两个心理委员的班级 两人平分心委加分 课代表统一加1分 宿舍长加2分

Sheet 【德育】学生职务附录
A1: 化学工程学院加分情况
A2: 社团名 | B2: 姓名 | C2: 职务 | D2: 加分 | E2: 学号 | F2: 院系 | G2: 专业 | H2: 班级 | I2: 分值
A3: 中国石油大学（北京）篮球协会 | B3: 左笑维 | C3: 部委 | D3: 兴趣类部委不加 | E3: 2021010492 | F3: 化学工程与环境学院 | G3: 能源化学工程 | H3: 能化21-2班 | I3: 4
A4: 飞扬毽绳协会 | B4: 覃师凯 | C4: 主席 | D4: 兴趣类主席加2分不折算2/3 | E4: 2021010479 | F4: 化学工程与环境学院 | G4: 能源化学工程 | H4: 能化21-2班 | I4: 8
A5: 飞扬毽绳协会 | B5: 鹿麒麟 | C5: 部委 | D5: 兴趣类部委不加 | E5: 2021010486 | F5: 化学工程与环境学院 | G5: 能源化学工程 | H5: 能化21-2班 | I5: 3
A6: 飞扬毽绳协会 | B6: 栾俊添 | C6: 部委 | D6: 兴趣类部委不加 | E6: 2021010457 | F6: 化学工程与环境学院 | G6: 能源化学工程 | H6: 能化21-1班 | I6: 2
A7: 田径协会 | B7: 覃师凯 | C7: 部长 | D7: 兴趣类部长加1分不折算2/3 | E7: 2021010479 | F7: 化学工程与环境学院 | G7: 能源化学工程 | H7: 能化21-2班 | I7: 6
A8: 陶笛社 | B8: 栾俊添 | C8: 部委 | D8: 兴趣类部委不加 | E8: 2021010457 | F8: 化学工程与环境学院 | G8: 能源化学工程 | H8: 能化21-1班 | I8: 4
A9: 中石大辩论队 | B9: 左笑维 | C9: 主席 | D9: 兴趣类主席加2分不折算2/3 | E9: 2021010492 | F9: 化学工程与环境学院 | G9: 能源化学工程 | H9: 能化21-2班 | I9: 10
A10: 中国石油大学（北京）红十字会 | B10: 杨嘉琦 | C10: 主席 | D10: 功能性社团主席加10分折算2/3 | E10: 2021010461 | F10: 化学工程与环境学院 | G10: 能源化学工程 | H10: 能化21-2班 | I10: 10
A11: 管弦乐团 | B11: 王岩青 | C11: 团员 | D11: 功能性社团团员加分折算2/3 | E11: 2021010492 | F11: 化学工程与环境学院 | G11: 能源化学工程 | H11: 能化21-1班 | I11: 6
A12: 化学爱好者协会 | B12: 王浙 | C12: 主席 | D12: 兴趣类主席加2分不折算2/3 | E12: 2021010461 | F12: 化学工程与环境学院 | G12: 能源化学工程 | H12: 能化21-2班 | I12: 2

Sheet 【德育】志愿时长
A1: 学号 | B1: 姓名 | C1: 班级 | D1: 时长 | E1: 分数
A2: 2020010644 | B2: 李硕 | C2: 能化21-1班 | D2: 0.0 | E2: =IF(D2>=48,"4",IF(D2>=36,"3",IF(D2>=24,"2",""))) -> 
A3: 2021010374 | B3: 何若妍 | C3: 能化21-1班 | D3: 51.0 | E3: 4
A4: 2021010376 | B4: 李传洋 | C4: 能化21-1班 | D4: 5.0
A5: 2021010377 | B5: 甘浩 | C5: 能化21-1班 | D5: 8.0
A6: 2021010380 | B6: 詹作鑫 | C6: 能化21-1班 | D6: 8.0
A7: 2021010381 | B7: 李维昊 | C7: 能化21-1班 | D7: 8.0
A8: 2021010382 | B8: 王理哲 | C8: 能化21-1班 | D8: 8.0
A9: 2021010387 | B9: 李洪博 | C9: 能化21-1班 | D9: 8.0
A10: 2021010389 | B10: 李臻彦 | C10: 能化21-1班 | D10: 8.0
A11: 2021010392 | B11: 苏辛一 | C11: 能化21-1班 | D11: 5.0
A12: 2021010393 | B12: 唐顾玮 | C12: 能化21-1班 | D12: 5.0
A13: 2021010428 | B13: 周忠康 | C13: 能化21-1班 | D13: 8.0
A14: 2021010431 | B14: 王医灵 | C14: 能化21-1班 | D14: 181.5 | E14: 4
A15: 2021010432 | B15: 梁卓文 | C15: 能化21-1班 | D15: 10.0
A16: 2021010433 | B16: 朱佳怡 | C16: 能化21-1班 | D16: 8.0
A17: 2021010442 | B17: 裴俊豪 | C17: 能化21-1班 | D17: 10.0
A18: 2021010443 | B18: 鲍怡帅 | C18: 能化21-1班 | D18: 10.0
A19: 2021010445 | B19: 耿智鸿 | C19: 能化21-1班 | D19: 8.0
A20: 2021010457 | B20: 栾俊添 | C20: 能化21-1班 | D20: 5.0
A21: 2021010465 | B21: 潘思迪 | C21: 能化21-1班 | D21: 77.0 | E21: 4
A22: 2021010482 | B22: 王岩青 | C22: 能化21-1班 | D22: 8.0
A23: 2021010493 | B23: 李燕琴 | C23: 能化21-1班 | D23: 18.0
A24: 2021010494 | B24: 黄镜 | C24: 能化21-1班 | D24: 43.0 | E24: 3
A25: 2021010496 | B25: 解天羽 | C25: 能化21-1班 | D25: 28.0 | E25: 2
A26: 2021010498 | B26: 阿力木努·赛买提 | C26: 能化21-1班 | D26: 8.0
A27: 2021010513 | B27: 曹逸恒 | C27: 能化21-1班 | D27: 8.0
A28: 2021010514 | B28: 曹哲仁 | C28: 能化21-1班 | D28: 26.0 | E28: 2
A29: 2021010515 | B29: 陈骄阳 | C29: 能化21-1班 | D29: 5.0
A30: 2021010395 | B30: 王浙 | C30: 能化21-2班 | D30: 3.0 | E30: =IF(D30>=48,"4",IF(D30>=36,"3",IF(D30>=24,"2",""))) -> 
A31: 2021010403 | B31: 崔珈榕 | C31: 能化21-2班 | D31: 0.0 | E31: =IF(D31>=48,"4",IF(D31>=36,"3",IF(D31>=24,"2",""))) -> 
A32: 2021010409 | B32: 刘兴旺 | C32: 能化21-2班 | D32: 4.0
A33: 2021010412 | B33: 陈逸飞 | C33: 能化21-2班 | D33: 5.0
A34: 2021010413 | B34: 林云志 | C34: 能化21-2班 | D34: 4.0
A35: 2021010419 | B35: 鲁鹤宇 | C35: 能化21-2班 | D35: 3.0
A36: 2021010426 | B36: 杨凯迪 | C36: 能化21-2班 | D36: 5.0
A37: 2021010427 | B37: 张金坤 | C37: 能化21-2班 | D37: 5.0
A38: 2021010439 | B38: 吴晗毓 | C38: 能化21-2班 | D38: 0.0
A39: 2021010450 | B39: 周围 | C39: 能化21-2班 | D39: 17.0
A40: 2021010461 | B40: 杨嘉琦 | C40: 能化21-2班 | D40: 46.0 | E40: 3
A41: 2021010462 | B41: 武晗 | C41: 能化21-2班 | D41: 5.0
A42: 2021010464 | B42: 周香格 | C42: 能化21-2班 | D42: 4.0
A43: 2021010466 | B43: 程嘉欣 | C43: 能化21-2班 | D43: 12.0
A44: 2021010467 | B44: 颜伊宁 | C44: 能化21-2班 | D44: 5.0
A45: 2021010470 | B45: 刘睿扬 | C45: 能化21-2班 | D45: 49.0 | E45: 4
A46: 2021010471 | B46: 柳子涵 | C46: 能化21-2班 | D46: 5.0
A47: 2021010475 | B47: 蒲文博 | C47: 能化21-2班 | D47: 3.0
A48: 2021010476 | B48: 齐翔龙 | C48: 能化21-2班 | D48: 3.0
A49: 2021010477 | B49: 何余胜 | C49: 能化21-2班 | D49: 2.0
A50: 2021010478 | B50: 常一帆 | C50: 能化21-2班 | D50: 0.0
A51: 2021010479 | B51: 覃师凯 | C51: 能化21-2班 | D51: 39.5 | E51: 3
A52: 2021010486 | B52: 鹿麒麟 | C52: 能化21-2班 | D52: 49.0 | E52: 4
A53: 2021010487 | B53: 吴隆卓 | C53: 能化21-2班 | D53: 0.0
A54: 2021010492 | B54: 左笑维 | C54: 能化21-2班 | D54: 9.5
A55: 2021010501 | B55: 陈湘宜 | C55: 能化21-2班 | D55: 4.0
A56: 2021010502 | B56: 王晨宣 | C56: 能化21-2班 | D56: 61.5 | E56: 4
A57: 2021010506 | B57: 陈国荣 | C57: 能化21-2班 | D57: 10.0
A58: 2021010521 | B58: 王梓涵 | C58: 能化21-2班 | D58: 0.0

Sheet 【智育】必修成绩
D2: 100305C001 | E2: 100305L007 | F2: 100305L008 | G2: 100305P019 | H2: 100305T032 | I2: 100305T064 | J2: 100305T075 | K2: 100305T076 | L2: 100305T081 | M2: 100305T099 | N2: 100305T109 | O2: 100308P006 | P2: 100308P009 | Q2: 100308T015 | R2: 100308T016 | S2: 100328T001 | T2: 100328T005 | U2: 100328T014 | V2: 100513E006 | W2: 100616M003 | X2: 100616M005 | Y2: 100616M018 | Z2: 100616M019 | AA2: 100617L014 | AB2: 100617L025 | AC2: 100617L027 | AD2: 100617T005 | AE2: 100617T006 | AF2: 100617T059 | AG2: 100617T061 | AH2: 100627M012 | AI2: 100627M016 | AJ2: 100627M017 | AK2: 101000T001 | AL2: 101099G045 | AM2: 101099M008 | AN2: 101099M010 | AO2: 101099M013 | AP2: 101300X003 | AQ2: 101500X002
D3: 化工应用软件 | E3: 化工原理实验（Ⅰ） | F3: 化工原理实验（Ⅱ） | G3: 化工原理课程设计 | H3: 化工装备与控制 | I3: 化工热力学 | J3: 化工原理（Ⅰ） | K3: 化工原理（Ⅱ） | L3: 生物化学 | M3: 化学反应工程 | N3: 化工安全与环保 | O3: 能化认识实习 | P3: 能化生产实习 | Q3: 煤化学转化工程 | R3: 天然气处理与转化工程 | S3: 化工用能评价 | T3: 能源化工设计基础 | U3: 石油加工工程 | V3: 电工学及实验 | W3: 线性代数 | X3: 概率统计基础 | Y3: 高等数学B（Ⅰ） | Z3: 高等数学B（Ⅱ） | AA3: 有机化学实验 | AB3: 有机化学实验 | AC3: 物理化学实验（Ⅱ） | AD3: 物理化学（Ⅰ） | AE3: 物理化学（Ⅱ） | AF3: 无机化学与分析化学 | AG3: 有机化学 | AH3: 大学物理C（Ⅱ） | AI3: 大学物理实验B（Ⅰ） | AJ3: 大学物理实验B（Ⅱ） | AK3: 项目管理与经济决策 | AL3: 专项运动训练课Ⅰ | AM3: 大学体育必修（篮球） | AN3: 大学体育必修（健美） | AO3: 大学体育必修（健美操） | AP3: 就业指导 | AQ3: 入学教育与安全教育
A4: 班级 | B4: 学号 | C4: 姓名 | D4: 2 | E4: 0.5 | F4: 0.5 | G4: 3 | H4: 3 | I4: 3.5 | J4: 3.5 | K4: 3.5 | L4: 2 | M4: 3.5 | N4: 2 | O4: 1.5 | P4: 3 | Q4: 3 | R4: 2 | S4: 2 | T4: 2 | U4: 3 | V4: 2 | W4: 3 | X4: 3 | Y4: 6 | Z4: 5 | AA4: 2 | AB4: 1 | AC4: 1 | AD4: 3 | AE4: 3 | AF4: 4 | AG4: 3.5 | AH4: 3 | AI4: 2 | AJ4: 1.5 | AK4: 2 | AL4: 1 | AM4: 1 | AN4: 1 | AO4: 1 | AP4: 0.5 | AQ4: 0
A5: 能化21-1班 | B5: 2020010644 | C5: 李硕 | I5: 35 | J5: 62 | K5: 12 | L5: 61 | R5: 80 | X5: 69 | Y5: 53 | AD5: 60 | AF5: 60 | AJ5: 87 | AP5: 84
A6: 能化21-1班 | B6: 2021010374 | C6: 何若妍 | D6: 91 | E6: 90 | F6: 95 | G6: 92 | H6: 95 | I6: 84 | K6: 93 | M6: 90 | N6: 97 | P6: 92 | Q6: 92 | R6: 96 | S6: 97 | T6: 93 | U6: 94 | V6: 90 | AC6: 88 | AK6: 93 | AP6: 89
A7: 能化21-1班 | B7: 2021010376 | C7: 李传洋 | D7: 16 [16,16补1] | E7: 69 | F7: 78 | G7: 4 | H7: 71 [53,71补1] | I7: 40 [40,40补1] | J7: 70 | K7: 23 [23,23补1] | M7: 33 [33,33补1] | N7: 82 | P7: 86 | Q7: 82 | R7: 73 [50,73补1] | S7: 38 [38,38补1] | T7: 68 [36,68补1] | U7: 73 | V7: 83 | W7: 60 | Y7: 65 | Z7: 63 | AC7: 87 | AG7: 60 | AH7: 80 | AK7: 60 | AP7: 79
A8: 能化21-1班 | B8: 2021010377 | C8: 甘浩 | D8: 60 [44,60补1] | E8: 73 | F8: 69 | G8: 72 | H8: 73 | I8: 46 [46,46补1] | K8: 35 [35,35补1] | M8: 70 | N8: 77 | P8: 85 | Q8: 78 | R8: 79 | S8: 62 [52,62补1] | T8: 76 | U8: 60 | V8: 60 | W8: 60 | AC8: 80 | AK8: 61 | AP8: 79
A9: 能化21-1班 | B9: 2021010380 | C9: 詹作鑫 | D9: 70 | E9: 77 | F9: 81 | G9: 78 | H9: 86 | I9: 60 | K9: 68 | M9: 77 | N9: 78 | P9: 91 | Q9: 73 | R9: 93 | S9: 74 | T9: 79 | U9: 81 | V9: 70 | AC9: 83 | AE9: 79 | AK9: 74 | AP9: 84
A10: 能化21-1班 | B10: 2021010381 | C10: 李维昊 | D10: 60 | E10: 76 | F10: 68 | G10: 63 | H10: 65 | I10: 58 [46,58补1] | J10: 63 | K10: 62 | M10: 50 [50,50补1] | N10: 71 | P10: 86 | Q10: 80 | R10: 71 | S10: 60 | T10: 63 | U10: 72 | V10: 66 [51,66补1] | W10: 56 | AC10: 82 | AF10: 28 | AK10: 65 | AP10: 83
A11: 能化21-1班 | B11: 2021010382 | C11: 王理哲 | D11: 60 | E11: 81 | F11: 71 | G11: 84 | H11: 77 | I11: 61 | K11: 63 | M11: 63 [53,63补1] | N11: 81 | P11: 90 | Q11: 76 | R11: 77 | S11: 62 | T11: 70 | U11: 69 | V11: 63 [51,63补1] | W11: 56 | AC11: 80 | AK11: 66 | AP11: 87
A12: 能化21-1班 | B12: 2021010387 | C12: 李洪博 | D12: 60 | E12: 74 | F12: 70 | G12: 78 | H12: 67 | I12: 61 | J12: 72 | K12: 61 | M12: 61 | N12: 77 | P12: 83 | Q12: 80 | R12: 68 | S12: 62 [53,62补1] | T12: 63 | U12: 70 | V12: 61 | Z12: 63 | AA12: 79 | AC12: 78 | AE12: 61 | AI12: 80 | AK12: 61 | AP12: 85
A13: 能化21-1班 | B13: 2021010389 | C13: 李臻彦 | D13: 60 [48,60补1] | E13: 80 | F13: 82 | G13: 82 | H13: 71 | I13: 67 | K13: 49 [39,49补1] | M13: 60 | N13: 81 | P13: 80 | Q13: 86 | R13: 74 | S13: 75 | T13: 66 | U13: 75 | V13: 60 | AC13: 75 | AD13: 71 | AI13: 72 | AK13: 76 | AP13: 84
A14: 能化21-1班 | B14: 2021010392 | C14: 苏辛一 | D14: 60 | E14: 76 | F14: 71 | G14: 61 | H14: 66 | I14: 49 [41,49补1] | J14: 67 | K14: 19 | M14: 60 | N14: 66 | P14: 76 | Q14: 81 | R14: 78 | S14: 60 | T14: 67 | U14: 73 | V14: 60 [49,60补1] | W14: 46 | AC14: 75 | AE14: 55 | AI14: 25 | AK14: 61 | AP14: 79
A15: 能化21-1班 | B15: 2021010393 | C15: 唐顾玮 | D15: 49 [49,49补1] | E15: 71 | F15: 75 | G15: 76 | H15: 79 | I15: 62 | K15: 60 | M15: 60 | N15: 81 | P15: 78 | Q15: 78 | R15: 80 | S15: 60 | T15: 71 | U15: 74 | V15: 70 | W15: 60 | AC15: 78 | AI15: 79 | AK15: 62 | AP15: 82
A16: 能化21-1班 | B16: 2021010428 | C16: 周忠康 | D16: 80 | E16: 82 | F16: 87 | G16: 88 | H16: 86 | I16: 70 | K16: 80 | M16: 67 | N16: 87 | P16: 92 | Q16: 82 | R16: 88 | S16: 79 | T16: 78 | U16: 79 | V16: 62 | AC16: 88 | AI16: 89 | AK16: 85 | AP16: 81
A17: 能化21-1班 | B17: 2021010431 | C17: 王医灵 | D17: 83 | E17: 76 | F17: 85 | G17: 73 | H17: 93 | I17: 72 | K17: 84 | M17: 78 | N17: 88 | P17: 91 | Q17: 94 | R17: 95 | S17: 91 | T17: 83 | U17: 81 | V17: 73 | AC17: 87 | AK17: 84
A18: 能化21-1班 | B18: 2021010432 | C18: 梁卓文 | D18: 75 | E18: 77 | F18: 85 | G18: 91 | H18: 85 | I18: 74 | K18: 80 | M18: 70 | N18: 80 | P18: 90 | Q18: 82 | R18: 91 | S18: 74 | T18: 71 | U18: 67 | V18: 71 | W18: 74 | AA18: 79 | AC18: 83 | AK18: 79 | AP18: 89
A19: 能化21-1班 | B19: 2021010433 | C19: 朱佳怡 | D19: 38 [38,38补1] | E19: 75 | F19: 73 | G19: 70 | H19: 61 | I19: 57 [50,57补1] | K19: 49 [37,49补1] | M19: 61 | N19: 76 | P19: 84 | Q19: 84 | R19: 83 | S19: 88 [51,88补1] | T19: 64 | U19: 69 | V19: 80 [54,80补1] | W19: 57 | AA19: 73 | AC19: 71 | AK19: 76 | AP19: 85
A20: 能化21-1班 | B20: 2021010442 | C20: 裴俊豪 | D20: 92 | E20: 84 | F20: 91 | G20: 91 | H20: 93 | I20: 84 | K20: 89 | M20: 87 | N20: 94 | P20: 93 | Q20: 92 | R20: 91 | S20: 93 | T20: 79 | U20: 91 | V20: 85 | AC20: 90 | AI20: 90 | AK20: 90 | AP20: 92
A21: 能化21-1班 | B21: 2021010443 | C21: 鲍怡帅 | D21: 86 | E21: 80 | F21: 80 | G21: 85 | H21: 85 | I21: 65 [54,65补1] | K21: 67 | M21: 60 | N21: 71 | P21: 93 | Q21: 88 | R21: 95 | S21: 75 | T21: 76 | U21: 82 | V21: 74 | AC21: 85 | AK21: 83 | AP21: 87
A22: 能化21-1班 | B22: 2021010445 | C22: 耿智鸿 | D22: 60 | E22: 75 | F22: 75 | G22: 81 | H22: 69 | I22: 57 [46,57补1] | K22: 62 [53,62补1] | M22: 79 [54,79补1] | N22: 81 | P22: 84 | Q22: 81 | R22: 71 | S22: 71 | T22: 75 | U22: 70 | V22: 76 | W22: 61 | AC22: 87 | AI22: 86 | AK22: 85 | AP22: 87
A23: 能化21-1班 | B23: 2021010457 | C23: 栾俊添 | D23: 92 | E23: 85 | F23: 93 | G23: 83 | H23: 92 | I23: 82 | K23: 88 | M23: 86 | N23: 92 | P23: 90 | Q23: 91 | R23: 95 | S23: 90 | T23: 83 | U23: 87 | V23: 77 | AC23: 91 | AK23: 88 | AP23: 92
A24: 能化21-1班 | B24: 2021010465 | C24: 潘思迪 | D24: 80 | E24: 85 | F24: 93 | G24: 89 | H24: 91 | I24: 86 | K24: 87 | M24: 83 | N24: 89 | P24: 88 | Q24: 90 | R24: 81 | S24: 94 | T24: 75 | U24: 88 | V24: 80 | AB24: 90 | AC24: 87 | AI24: 87 | AK24: 86 [86缓1] | AP24: 92
A25: 能化21-1班 | B25: 2021010482 | C25: 王岩青 | D25: 91 | E25: 85 | F25: 92 | G25: 85 | H25: 78 | I25: 60 | J25: 60 | K25: 61 | M25: 67 | N25: 80 | P25: 85 | Q25: 83 | R25: 66 | S25: 62 | T25: 79 | U25: 68 | V25: 65 | AC25: 86 | AE25: 62 | AK25: 68 | AP25: 88
A26: 能化21-1班 | B26: 2021010493 | C26: 李燕琴 | D26: 60 | E26: 82 | F26: 76 | G26: 82 | H26: 71 | I26: 68 | J26: 72 | K26: 62 | M26: 55 [55,55补1] | N26: 71 | P26: 88 | Q26: 83 | R26: 69 | S26: 60 [45,60补1] | T26: 69 | U26: 73 | V26: 63 | Y26: 66 [66缓1] | AA26: 83 | AC26: 91 | AK26: 70 | AN26: 90 | AP26: 85
A27: 能化21-1班 | B27: 2021010494 | C27: 黄镜 | D27: 64 | E27: 79 | F27: 75 | G27: 71 | H27: 75 | I27: 50 [46,50补1] | J27: 54 | K27: 62 | M27: 55 [44,55补1] | N27: 76 | P27: 83 | Q27: 86 | R27: 75 | S27: 52 [34,52补1] | T27: 65 | U27: 69 | V27: 60 | W27: 47 | AC27: 84 | AE27: 57 | AK27: 64 | AO27: 82 | AP27: 88
A28: 能化21-1班 | B28: 2021010496 | C28: 解天羽 | D28: 60 | E28: 84 | F28: 87 | G28: 87 | H28: 79 | I28: 63 | K28: 56 [56,56补1] | M28: 62 | N28: 78 | P28: 85 | Q28: 79 | R28: 84 | S28: 66 | T28: 66 | U28: 80 | V28: 89 | AC28: 91 | AK28: 69 | AP28: 88
A29: 能化21-1班 | B29: 2021010498 | C29: 阿力木努·赛买提 | D29: 65 | E29: 84 | F29: 83 | G29: 78 | H29: 70 | I29: 61 | K29: 56 | M29: 55 | N29: 78 | P29: 82 | Q29: 87 | R29: 77 | S29: 60 | T29: 65 | U29: 72 | V29: 48 | AA29: 83 | AC29: 86 | AI29: 88 | AK29: 67 | AO29: 84 | AP29: 87
A30: 能化21-1班 | B30: 2021010513 | C30: 曹逸恒 | D30: 71 | E30: 83 | F30: 69 | G30: 80 | H30: 75 | I30: 44 [36,44补1] | J30: 43 | K30: 40 [40,40补1] | M30: 54 [52,54补1] | N30: 80 | P30: 76 | Q30: 60 | R30: 64 | S30: 63 | T30: 60 | U30: 68 | V30: 60 | W30: 56 | Y30: 53 | AC30: 86 | AE30: 63 | AK30: 63 | AP30: 82
A31: 能化21-1班 | B31: 2021010514 | C31: 曹哲仁 | D31: 83 | E31: 91 | F31: 88 | G31: 77 | H31: 92 | I31: 83 | K31: 96 | M31: 86 | N31: 92 | P31: 85 | Q31: 79 | R31: 89 | S31: 87 | T31: 80 | U31: 83 | V31: 89 | AC31: 89 | AK31: 84 | AP31: 87
A32: 能化21-1班 | B32: 2021010515 | C32: 陈骄阳 | D32: 70 | E32: 86 | F32: 85 | G32: 78 | H32: 75 | I32: 71 | K32: 74 | M32: 72 | N32: 82 | P32: 87 | Q32: 75 | R32: 83 | S32: 77 | T32: 81 [55,81补1] | U32: 82 | V32: 75 | AC32: 88 | AF32: 79 | AK32: 79 | AP32: 85
A33: 能化21-2班 | B33: 2021010395 | C33: 王浙 | D33: 96 | E33: 94 | F33: 91 | G33: 88 | H33: 95 | I33: 82 | K33: 96 | M33: 83 | N33: 92 | P33: 94 | Q33: 92 | R33: 92 | S33: 87 | T33: 75 | U33: 89 | V33: 87 | AC33: 84 | AK33: 92 | AP33: 91
A34: 能化21-2班 | B34: 2021010403 | C34: 崔珈榕 | D34: 63 | E34: 72 | F34: 73 | G34: 82 | H34: 72 | I34: 56 [46,56补1] | K34: 46 [46,46补1] | M34: 68 [52,68补1] | N34: 84 | P34: 79 | Q34: 82 | R34: 82 | S34: 60 | T34: 70 | U34: 72 | V34: 60 | AC34: 80 | AE34: 61 | AK34: 75 | AP34: 84
A35: 能化21-2班 | B35: 2021010409 | C35: 刘兴旺 | D35: 62 | E35: 85 | F35: 80 | G35: 81 | H35: 74 | I35: 60 | K35: 75 | M35: 70 | N35: 74 | P35: 88 | Q35: 79 | R35: 77 | S35: 60 | T35: 72 | U35: 69 | V35: 61 | AC35: 79 | AK35: 70 | AP35: 80
A36: 能化21-2班 | B36: 2021010412 | C36: 陈逸飞 | D36: 61 | E36: 81 | F36: 86 | G36: 84 | H36: 81 | I36: 66 | K36: 82 | M36: 77 | N36: 75 | P36: 88 | Q36: 83 | R36: 79 | S36: 64 | T36: 75 | U36: 78 | V36: 70 | AC36: 80 | AK36: 87 | AP36: 86
A37: 能化21-2班 | B37: 2021010413 | C37: 林云志 | D37: 60 | E37: 66 | F37: 77 | G37: 77 | H37: 67 | I37: 63 | K37: 66 | M37: 67 [52,67补1] | N37: 73 | P37: 87 | Q37: 86 | R37: 70 | S37: 61 | T37: 67 | U37: 71 | V37: 67 | Z37: 60 | AC37: 80 | AH37: 76 | AI37: 86 | AK37: 63 | AP37: 85
A38: 能化21-2班 | B38: 2021010419 | C38: 鲁鹤宇 | D38: 33 [33,33补1] | E38: 75 | F38: 75 | G38: 9 | H38: 70 | I38: 34 [34,34补1] | K38: 42 [42,42补1] | M38: 45 [45,45补1] | N38: 74 | O38: 69 | P38: 21 | Q38: 76 | R38: 53 [53,53补1] | S38: 61 | T38: 66 | U38: 66 | V38: 50 [50,50补1] | Y38: 47 | AC38: 78 | AI38: 11 | AJ38: 47 | AK38: 63 | AP38: 87
A39: 能化21-2班 | B39: 2021010426 | C39: 杨凯迪 | D39: 60 | E39: 66 | F39: 74 | G39: 74 | H39: 69 | I39: 39 | J39: 70 | K39: 38 | M39: 63 [49,63补1] | N39: 71 | P39: 82 | Q39: 74 | R39: 65 | S39: 35 [35,35补1] | T39: 65 | U39: 66 | V39: 60 | Z39: 51 | AC39: 78 | AE39: 69 | AK39: 61 | AP39: 83
A40: 能化21-2班 | B40: 2021010427 | C40: 张金坤 | D40: 70 | E40: 84 | F40: 70 | G40: 64 | H40: 67 | I40: 63 | K40: 60 | M40: 81 [55,81补1] | N40: 71 | P40: 91 | Q40: 81 | R40: 85 | S40: 61 | T40: 71 | U40: 71 | V40: 71 | W40: 69 | AC40: 80 | AK40: 82 | AP40: 86
A41: 能化21-2班 | B41: 2021010439 | C41: 吴晗毓 | D41: 75 | E41: 86 | G41: 82 | H41: 85 | I41: 61 | K41: 64 | M41: 61 | N41: 82 | P41: 89 | Q41: 80 | R41: 77 | S41: 86 | T41: 69 | U41: 73 | V41: 77 | AC41: 84 | AK41: 74 | AP41: 92
A42: 能化21-2班 | B42: 2021010450 | C42: 周围 | D42: 72 | E42: 83 | F42: 89 | G42: 80 | H42: 72 | I42: 58 [51,58补1] | K42: 67 | M42: 72 | N42: 76 | P42: 88 | Q42: 91 | R42: 83 | S42: 65 [50,65补1] | T42: 73 | U42: 70 | V42: 60 | AA42: 79 | AC42: 80 | AE42: 67 | AI42: 84 | AK42: 76 | AP42: 86 | AQ42: 85
A43: 能化21-2班 | B43: 2021010461 | C43: 杨嘉琦 | D43: 82 | E43: 90 | F43: 84 | G43: 88 | H43: 88 | I43: 70 | K43: 76 | M43: 75 | N43: 80 | P43: 89 | Q43: 86 | R43: 97 | S43: 87 | T43: 71 | U43: 79 | V43: 71 | AC43: 85 | AK43: 81 | AP43: 91
A44: 能化21-2班 | B44: 2021010462 | C44: 武晗 | D44: 60 | E44: 89 | F44: 86 | G44: 78 | H44: 84 | I44: 52 [52,52补1] | J44: 60 | K44: 71 | M44: 61 | N44: 85 | P44: 79 | Q44: 80 | R44: 80 | S44: 68 | T44: 68 | U44: 70 | V44: 75 | AC44: 84 | AH44: 64 | AK44: 79 | AP44: 84
A45: 能化21-2班 | B45: 2021010464 | C45: 周香格 | D45: 60 [50,60补1] | E45: 75 | F45: 77 | G45: 68 | H45: 77 | I45: 60 | J45: 60 | K45: 52 [48,52补1] | M45: 60 | N45: 73 | P45: 82 | Q45: 83 | R45: 70 | S45: 63 [45,63补1] | T45: 64 | U45: 62 | V45: 68 | W45: 50 | AC45: 83 | AE45: 62 | AK45: 79 | AP45: 83
A46: 能化21-2班 | B46: 2021010466 | C46: 程嘉欣 | D46: 72 | E46: 90 | F46: 91 | G46: 87 | H46: 87 | I46: 64 | K46: 62 | M46: 70 | N46: 89 | P46: 89 | Q46: 91 | R46: 77 | S46: 86 | T46: 79 | U46: 79 | V46: 75 | AA46: 86 | AC46: 86 | AI46: 87 | AK46: 89 [89缓1] | AP46: 90
A47: 能化21-2班 | B47: 2021010467 | C47: 颜伊宁 | D47: 74 | E47: 91 | F47: 92 | G47: 86 | H47: 87 | I47: 64 | K47: 82 | M47: 73 | N47: 87 | P47: 89 | Q47: 87 | R47: 83 | S47: 89 | T47: 75 | U47: 79 | V47: 79 | AC47: 84 | AK47: 86 | AP47: 90
A48: 能化21-2班 | B48: 2021010470 | C48: 刘睿扬 | D48: 80 | E48: 91 | F48: 92 | G48: 85 | H48: 90 | I48: 62 | K48: 75 | M48: 67 | N48: 84 | P48: 87 | Q48: 88 | R48: 95 | S48: 88 | T48: 77 | U48: 88 | V48: 71 | AA48: 85 | AC48: 83 | AI48: 87 | AK48: 79 | AP48: 91
A49: 能化21-2班 | B49: 2021010471 | C49: 柳子涵 | D49: 72 | E49: 81 | F49: 90 | G49: 80 | H49: 83 | I49: 49 [44,49补1] | J49: 55 | K49: 62 | M49: 60 | N49: 79 | P49: 87 | Q49: 78 | R49: 67 | S49: 60 | T49: 65 | U49: 78 | V49: 75 | W49: 55 | Z49: 56 | AC49: 81 | AE49: 51 | AK49: 91 | AP49: 87
A50: 能化21-2班 | B50: 2021010475 | C50: 蒲文博 | D50: 70 | E50: 84 | F50: 73 | G50: 84 | H50: 82 | I50: 61 | K50: 66 | M50: 66 | N50: 70 | P50: 85 | Q50: 80 | R50: 68 | S50: 60 | T50: 76 | U50: 75 | V50: 62 | W50: 74 | AC50: 85 | AK50: 77 | AL50: 95 | AP50: 82
A51: 能化21-2班 | B51: 2021010476 | C51: 齐翔龙 | D51: 66 | E51: 81 | F51: 83 | G51: 72 | H51: 78 | I51: 51 [46,51补1] | J51: 41 | K51: 63 | M51: 66 [50,66补1] | N51: 66 | P51: 83 | Q51: 81 | R51: 74 [56,74补1] | S51: 47 [47,47补1] | T51: 74 | U51: 74 | V51: 61 | W51: 60 | AA51: 85 | AC51: 83 | AH51: 56 | AI51: 85 | AK51: 78 | AM51: 70 | AP51: 85
A52: 能化21-2班 | B52: 2021010477 | C52: 何余胜 | D52: 62 [50,62补1] | E52: 72 | F52: 79 | G52: 78 | H52: 69 | I52: 36 [34,36补1] | J52: 37 | K52: 39 [39,39补1] | M52: 60 [52,60补1] | N52: 73 | P52: 83 | Q52: 73 | R52: 80 | S52: 60 | T52: 70 | U52: 68 | V52: 61 | W52: 55 | AC52: 82 | AE52: 60 | AK52: 75 | AP52: 86
A53: 能化21-2班 | B53: 2021010478 | C53: 常一帆 | D53: 68 | E53: 78 | F53: 82 | G53: 71 | H53: 72 | I53: 55 [55,55补1] | J53: 58 | K53: 68 | M53: 61 | N53: 78 | P53: 79 | Q53: 75 | R53: 72 | S53: 67 | T53: 70 | U53: 72 | V53: 80 | AC53: 80 | AE53: 60 | AK53: 75 | AP53: 83
A54: 能化21-2班 | B54: 2021010479 | C54: 覃师凯 | D54: 70 | E54: 73 | F54: 81 | G54: 73 | H54: 67 | I54: 62 [54,62补1] | K54: 60 [49,60补1] | M54: 69 [51,69补1] | N54: 82 | P54: 88 | Q54: 79 | R54: 83 | S54: 60 | T54: 66 | U54: 69 | V54: 72 | W54: 69 | AC54: 90 | AK54: 90 | AL54: 100 | AP54: 90
A55: 能化21-2班 | B55: 2021010486 | C55: 鹿麒麟 | D55: 99 | E55: 96 | F55: 94 | G55: 94 | H55: 97 | I55: 87 | K55: 97 | M55: 90 | N55: 93 | P55: 96 | Q55: 95 | R55: 99 | S55: 100 | T55: 96 | U55: 94 | V55: 87 | AC55: 92 | AK55: 97 | AP55: 97
A56: 能化21-2班 | B56: 2021010487 | C56: 吴隆卓 | D56: 65 | E56: 72 | F56: 66 | G56: 76 | H56: 67 | I56: 54 [50,54补1] | J56: 67 | K56: 43 [36,43补1] | M56: 62 | N56: 75 | P56: 85 | Q56: 78 | R56: 84 | S56: 60 | T56: 69 | U56: 71 | V56: 61 | W56: 63 | AC56: 84 | AE56: 60 | AK56: 69 | AP56: 86
A57: 能化21-2班 | B57: 2021010492 | C57: 左笑维 | D57: 93 | E57: 88 | F57: 90 | G57: 85 | H57: 83 | I57: 81 | K57: 92 | M57: 80 | N57: 88 | P57: 84 | Q57: 88 | R57: 85 | S57: 95 | T57: 87 | U57: 83 | V57: 81 | AC57: 80 | AK57: 87 | AP57: 91
A58: 能化21-2班 | B58: 2021010501 | C58: 陈湘宜 | D58: 62 | E58: 79 | F58: 85 | G58: 83 | H58: 75 | I58: 60 | K58: 66 | M58: 60 | N58: 78 | P58: 88 | Q58: 83 | R58: 71 | S58: 67 | T58: 68 | U58: 79 | V58: 67 | W58: 75 | AC58: 81 | AK58: 79 | AP58: 84
A59: 能化21-2班 | B59: 2021010502 | C59: 王晨宣 | D59: 71 | E59: 88 | F59: 82 | G59: 81 | H59: 87 | I59: 71 | K59: 80 | M59: 71 | N59: 84 | P59: 90 | Q59: 84 | R59: 93 | S59: 93 | T59: 82 | U59: 86 | V59: 72 | AC59: 82 | AK59: 84 | AP59: 85
A60: 能化21-2班 | B60: 2021010506 | C60: 陈国荣 | D60: 80 | E60: 84 | F60: 84 | G60: 78 | H60: 75 | I60: 72 | K60: 86 | M60: 73 | N60: 76 | P60: 82 | Q60: 84 | R60: 78 | S60: 76 | T60: 76 | U60: 77 | V60: 76 | AA60: 76 | AC60: 80 | AI60: 79 | AK60: 84 | AL60: 96 | AP60: 89
A61: 能化21-2班 | B61: 2021010521 | C61: 王梓涵 | D61: 81 | E61: 80 | F61: 85 | G61: 74 | H61: 90 | I61: 72 | K61: 85 | M61: 76 | N61: 85 | P61: 92 | Q61: 91 | R61: 92 | S61: 94 | T61: 77 | U61: 79 | V61: 86 | AC61: 81 | AK61: 91 | AP61: 90
D64: 100305C001 | E64: 100305L007 | F64: 100305L008 | G64: 100305P019 | H64: 100305T032 | I64: 100305T064 | J64: 100305T075 | K64: 100305T076 | L64: 100305T081 | M64: 100305T099 | N64: 100305T109 | O64: 100308P006 | P64: 100308P009 | Q64: 100308T015 | R64: 100308T016 | S64: 100328T001 | T64: 100328T005 | U64: 100328T014 | V64: 1.01E+11 | W64: 100616M003 | X64: 100616M005 | Y64: 100616M018 | Z64: 100616M019 | AA64: 100617L014 | AB64: 100617L025 | AC64: 100617L027 | AD64: 100617T005 | AE64: 100617T006 | AF64: 100617T059 | AG64: 100617T061 | AH64: 100627M012 | AI64: 100627M016 | AJ64: 100627M017 | AK64: 101000T001 | AL64: 101099G045 | AM64: 101099M008 | AN64: 101099M010 | AO64: 101099M013 | AP64: 101300X003 | AQ64: 101500X002
D65: 化工应用软件 | E65: 化工原理实验（Ⅰ） | F65: 化工原理实验（Ⅱ） | G65: 化工原理课程设计 | H65: 化工装备与控制 | I65: 化工热力学 | J65: 化工原理（Ⅰ） | K65: 化工原理（Ⅱ） | L65: 生物化学 | M65: 化学反应工程 | N65: 化工安全与环保 | O65: 能化认识实习 | P65: 能化生产实习 | Q65: 煤化学转化工程 | R65: 天然气处理与转化工程 | S65: 化工用能评价 | T65: 能源化工设计基础 | U65: 石油加工工程 | V65: 电工学及实验 | W65: 线性代数 | X65: 概率统计基础 | Y65: 高等数学B（Ⅰ） | Z65: 高等数学B（Ⅱ） | AA65: 有机化学实验 | AB65: 有机化学实验 | AC65: 物理化学实验（Ⅱ） | AD65: 物理化学（Ⅰ） | AE65: 物理化学（Ⅱ） | AF65: 无机化学与分析化学 | AG65: 有机化学 | AH65: 大学物理C（Ⅱ） | AI65: 大学物理实验B（Ⅰ） | AJ65: 大学物理实验B（Ⅱ） | AK65: 项目管理与经济决策 | AL65: 专项运动训练课Ⅰ | AM65: 大学体育必修（篮球） | AN65: 大学体育必修（健美） | AO65: 大学体育必修（健美操） | AP65: 就业指导 | AQ65: 入学教育与安全教育
A66: 班级 | B66: 学号 | C66: 姓名 | D66: 2.0 | E66: 0.5 | F66: 0.5 | G66: 3.0 | H66: 3.0 | I66: 3.5 | J66: 3.5 | K66: 3.5 | L66: 2.0 | M66: 3.5 | N66: 2.0 | O66: 1.5 | P66: 3.0 | Q66: 3.0 | R66: 2.0 | S66: 2.0 | T66: 2.0 | U66: 3.0 | V66: 2.0 | W66: 3.0 | X66: 3.0 | Y66: 6.0 | Z66: 5.0 | AA66: 2.0 | AB66: 1.0 | AC66: 1.0 | AD66: 3.0 | AE66: 3.0 | AF66: 4.0 | AG66: 3.5 | AH66: 3.0 | AI66: 2.0 | AJ66: 1.5 | AK66: 2.0 | AL66: 1.0 | AM66: 1.0 | AN66: 1.0 | AO66: 1.0 | AP66: 0.5 | AQ66: 0.0 | AR66: 必修门数 | AS66: 优良门数 | AT66: 必修课优良率 | AU66: 必修课学分绩 | AV66: 所修总学分 | AW66: 必修课加权平均分 | AX66: 挂科门数 | AY66: 是否可以评选奖学金 | AZ66: 备注原因
A67: 能化21-1班 | B67: 2020010644 | C67: 李硕 | I67: 35 | J67: 62 | K67: 12 | L67: 61 | R67: 80 | X67: 69 | Y67: 53 | AD67: 60 | AF67: 60 | AJ67: 87 | AP67: 84 | AR67: =COUNTA(D67:AQ67) -> 11 | AS67: =COUNTIF(D67:AQ67,">=80") -> 3 | AT67: =AS67/AR67 -> 27.27% | AU67: 1781.0 | AV67: =SUMIF(D67:AQ67,">0",$D$66:$AQ$66) -> 32.5 | AW67: =AU67/AV67 -> 54.800 | AX67: =COUNTIF(D67:AQ67,"<60") -> 3.0 | AY67: =IF(AX67=0,"是","否") -> 否
A68: 能化21-1班 | B68: 2021010374 | C68: 何若妍 | D68: 91 | E68: 90 | F68: 95 | G68: 92 | H68: 95 | I68: 84 | K68: 93 | M68: 90 | N68: 97 | P68: 92 | Q68: 92 | R68: 96 | S68: 97 | T68: 93 | U68: 94 | V68: 90 | AC68: 88 | AK68: 93 | AP68: 89 | AR68: 19 | AS68: 19 | AT68: =AS68/AR68 -> 100.00% | AU68: 3868.5 | AV68: =SUMIF(D68:AQ68,">0",$D$66:$AQ$66) -> 42.0 | AW68: =AU68/AV68 -> 92.107 | AX68: =COUNTIF(D68:AQ68,"<60") -> 0.0 | AY68: =IF(AX68=0,"是","否") -> 是
A69: 能化21-1班 | B69: 2021010376 | C69: 李传洋 | D69: 16 | E69: 69 | F69: 78 | G69: 4 | H69: 60 | I69: 40 | J69: 70 | K69: 23 | M69: 33 | N69: 82 | P69: 86 | Q69: 82 | R69: 60 | S69: 38 | T69: 60 | U69: 73 | V69: 83 | W69: 60 | Y69: 65 | Z69: 63 | AC69: 87 | AG69: 60 | AH69: 80 | AK69: 60 | AP69: 79 | AR69: 25 | AS69: 6 | AT69: 24.00% | AU69: 3829.0 | AV69: 66.0 | AW69: 58.015 | AX69: 6.0 | AY69: 否
A70: 能化21-1班 | B70: 2021010377 | C70: 甘浩 | D70: 60 | E70: 73 | F70: 69 | G70: 72 | H70: 73 | I70: 46 | K70: 35 | M70: 70 | N70: 77 | P70: 85 | Q70: 78 | R70: 79 | S70: 60 | T70: 76 | U70: 60 | V70: 60 | W70: 60 | AC70: 80 | AK70: 61 | AP70: 79 | AR70: 20 | AS70: 2 | AT70: 10.00% | AU70: 2949.0 | AV70: 45.0 | AW70: 65.533 | AX70: 2.0 | AY70: 否
A71: 能化21-1班 | B71: 2021010380 | C71: 詹作鑫 | D71: 70 | E71: 77 | F71: 81 | G71: 78 | H71: 86 | I71: 60 | K71: 68 | M71: 77 | N71: 78 | P71: 91 | Q71: 73 | R71: 93 | S71: 74 | T71: 79 | U71: 81 | V71: 70 | AC71: 83 | AE71: 79 | AK71: 74 | AP71: 84 | AR71: 20 | AS71: 7 | AT71: 35.00% | AU71: 3461.5 | AV71: 45.0 | AW71: 76.922 | AX71: 0.0 | AY71: 是
A72: 能化21-1班 | B72: 2021010381 | C72: 李维昊 | D72: 60 | E72: 76 | F72: 68 | G72: 63 | H72: 65 | I72: 58 | J72: 63 | K72: 62 | M72: 50 | N72: 71 | P72: 86 | Q72: 80 | R72: 71 | S72: 60 | T72: 63 | U72: 72 | V72: 60 | W72: 56 | AC72: 82 | AF72: 28 | AK72: 65 | AP72: 83 | AR72: 22 | AS72: 4 | AT72: 18.18% | AU72: 3289.0 | AV72: 52.5 | AW72: 62.648 | AX72: 4.0 | AY72: 否
A73: 能化21-1班 | B73: 2021010382 | C73: 王理哲 | D73: 60 | E73: 81 | F73: 71 | G73: 84 | H73: 77 | I73: 61 | K73: 63 | M73: 60 | N73: 81 | P73: 90 | Q73: 76 | R73: 77 | S73: 62 | T73: 70 | U73: 69 | V73: 60 | W73: 56 | AC73: 80 | AK73: 66 | AP73: 87 | AR73: 20 | AS73: 6 | AT73: 30.00% | AU73: 3151.5 | AV73: 45.0 | AW73: 70.033 | AX73: 1.0 | AY73: 否
A74: 能化21-1班 | B74: 2021010387 | C74: 李洪博 | D74: 60 | E74: 74 | F74: 70 | G74: 78 | H74: 67 | I74: 61 | J74: 72 | K74: 61 | M74: 61 | N74: 77 | P74: 83 | Q74: 80 | R74: 68 | S74: 60 | T74: 63 | U74: 70 | V74: 61 | Z74: 63 | AA74: 79 | AC74: 78 | AE74: 61 | AI74: 80 | AK74: 61 | AP74: 85 | AR74: 24 | AS74: 4 | AT74: 16.67% | AU74: 3935.0 | AV74: 57.5 | AW74: 68.435 | AX74: 0.0 | AY74: 是
A75: 能化21-1班 | B75: 2021010389 | C75: 李臻彦 | D75: 60 | E75: 80 | F75: 82 | G75: 82 | H75: 71 | I75: 67 | K75: 49 | M75: 60 | N75: 81 | P75: 80 | Q75: 86 | R75: 74 | S75: 75 | T75: 66 | U75: 75 | V75: 60 | AC75: 75 | AD75: 71 | AI75: 72 | AK75: 76 | AP75: 84 | AR75: 21 | AS75: 7 | AT75: 33.33% | AU75: 3337.0 | AV75: 47.0 | AW75: 71.000 | AX75: 1.0 | AY75: 否
A76: 能化21-1班 | B76: 2021010392 | C76: 苏辛一 | D76: 60 | E76: 76 | F76: 71 | G76: 61 | H76: 66 | I76: 49 | J76: 67 | K76: 19 | M76: 60 | N76: 66 | P76: 76 | Q76: 81 | R76: 78 | S76: 60 | T76: 67 | U76: 73 | V76: 60 | W76: 46 | AC76: 75 | AE76: 55 | AI76: 25 | AK76: 61 | AP76: 79 | AR76: 23 | AS76: 1 | AT76: 4.35% | AU76: 3198.5 | AV76: 53.5 | AW76: 59.785 | AX76: 5.0 | AY76: 否
A77: 能化21-1班 | B77: 2021010393 | C77: 唐顾玮 | D77: 49 | E77: 71 | F77: 75 | G77: 76 | H77: 79 | I77: 62 | K77: 60 | M77: 60 | N77: 81 | P77: 78 | Q77: 78 | R77: 80 | S77: 60 | T77: 71 | U77: 74 | V77: 70 | W77: 60 | AC77: 78 | AI77: 79 | AK77: 62 | AP77: 82 | AR77: 21 | AS77: 3 | AT77: 14.29% | AU77: 3268.0 | AV77: 47.0 | AW77: 69.532 | AX77: 1.0 | AY77: 否
A78: 能化21-1班 | B78: 2021010428 | C78: 周忠康 | D78: 80 | E78: 82 | F78: 87 | G78: 88 | H78: 86 | I78: 70 | K78: 80 | M78: 67 | N78: 87 | P78: 92 | Q78: 82 | R78: 88 | S78: 79 | T78: 78 | U78: 79 | V78: 62 | AC78: 88 | AI78: 89 | AK78: 85 | AP78: 81 | AR78: 20 | AS78: 14 | AT78: 70.00% | AU78: 3549.5 | AV78: 44.0 | AW78: 80.670 | AX78: 0.0 | AY78: 是
A79: 能化21-1班 | B79: 2021010431 | C79: 王医灵 | D79: 83 | E79: 76 | F79: 85 | G79: 73 | H79: 93 | I79: 72 | K79: 84 | M79: 78 | N79: 88 | P79: 91 | Q79: 94 | R79: 95 | S79: 91 | T79: 83 | U79: 81 | V79: 73 | AC79: 87 | AK79: 84 | AR79: 18 | AS79: 13 | AT79: 72.22% | AU79: 3476.5 | AV79: 41.5 | AW79: 83.771 | AX79: 0.0 | AY79: 是
A80: 能化21-1班 | B80: 2021010432 | C80: 梁卓文 | D80: 75 | E80: 77 | F80: 85 | G80: 91 | H80: 85 | I80: 74 | K80: 80 | M80: 70 | N80: 80 | P80: 90 | Q80: 82 | R80: 91 | S80: 74 | T80: 71 | U80: 67 | V80: 71 | W80: 74 | AA80: 79 | AC80: 83 | AK80: 79 | AP80: 89 | AR80: 21 | AS80: 10 | AT80: 47.62% | AU80: 3699.5 | AV80: 47.0 | AW80: 78.713 | AX80: 0.0 | AY80: 是
A81: 能化21-1班 | B81: 2021010433 | C81: 朱佳怡 | D81: 38 | E81: 75 | F81: 73 | G81: 70 | H81: 61 | I81: 57 | K81: 49 | M81: 61 | N81: 76 | P81: 84 | Q81: 84 | R81: 83 | S81: 75 | T81: 64 | U81: 69 | V81: 75 | W81: 57 | AA81: 73 | AC81: 71 | AK81: 76 | AP81: 85 | AR81: 21 | AS81: 4 | AT81: 19.05% | AU81: 3167.0 | AV81: 47.0 | AW81: 67.383 | AX81: 4.0 | AY81: 否
A82: 能化21-1班 | B82: 2021010442 | C82: 裴俊豪 | D82: 92 | E82: 84 | F82: 91 | G82: 91 | H82: 93 | I82: 84 | K82: 89 | M82: 87 | N82: 94 | P82: 93 | Q82: 92 | R82: 91 | S82: 93 | T82: 79 | U82: 91 | V82: 85 | AC82: 90 | AI82: 90 | AK82: 90 | AP82: 92 | AR82: 20 | AS82: 19 | AT82: 95.00% | AU82: 3941.5 | AV82: 44.0 | AW82: 89.580 | AX82: 0.0 | AY82: 是
A83: 能化21-1班 | B83: 2021010443 | C83: 鲍怡帅 | D83: 86 | E83: 80 | F83: 80 | G83: 85 | H83: 85 | I83: 60 | K83: 67 | M83: 60 | N83: 71 | P83: 93 | Q83: 88 | R83: 95 | S83: 75 | T83: 76 | U83: 82 | V83: 74 | AC83: 85 | AK83: 83 | AP83: 87 | AR83: 19 | AS83: 12 | AT83: 63.16% | AU83: 3282.0 | AV83: 42.0 | AW83: 78.143 | AX83: 0.0 | AY83: 否 | AZ83: 化工热力学第一次正考未通过
A84: 能化21-1班 | B84: 2021010445 | C84: 耿智鸿 | D84: 60 | E84: 75 | F84: 75 | G84: 81 | H84: 69 | I84: 57 | K84: 60 | M84: 60 | N84: 81 | P84: 84 | Q84: 81 | R84: 71 | S84: 71 | T84: 75 | U84: 70 | V84: 76 | W84: 61 | AC84: 87 | AI84: 86 | AK84: 85 | AP84: 87 | AR84: 21 | AS84: 8 | AT84: 38.10% | AU84: 3373.0 | AV84: 47.0 | AW84: 71.766 | AX84: 1.0 | AY84: 否
A85: 能化21-1班 | B85: 2021010457 | C85: 栾俊添 | D85: 92 | E85: 85 | F85: 93 | G85: 83 | H85: 92 | I85: 82 | K85: 88 | M85: 86 | N85: 92 | P85: 90 | Q85: 91 | R85: 95 | S85: 90 | T85: 83 | U85: 87 | V85: 77 | AC85: 91 | AK85: 88 | AP85: 92 | AR85: 19 | AS85: 18 | AT85: 94.74% | AU85: 3685.0 | AV85: 42.0 | AW85: 87.738 | AX85: 0.0 | AY85: 是
A86: 能化21-1班 | B86: 2021010465 | C86: 潘思迪 | D86: 80 | E86: 85 | F86: 93 | G86: 89 | H86: 91 | I86: 86 | K86: 87 | M86: 83 | N86: 89 | P86: 88 | Q86: 90 | R86: 81 | S86: 94 | T86: 75 | U86: 88 | V86: 80 | AB86: 90 | AC86: 87 | AI86: 87 | AK86: 86 | AP86: 92 | AR86: 21 | AS86: 20 | AT86: 95.24% | AU86: 3890.0 | AV86: 45.0 | AW86: 86.444 | AX86: 0.0 | AY86: 是
A87: 能化21-1班 | B87: 2021010482 | C87: 王岩青 | D87: 91 | E87: 85 | F87: 92 | G87: 85 | H87: 78 | I87: 60 | J87: 60 | K87: 61 | M87: 67 | N87: 80 | P87: 85 | Q87: 83 | R87: 66 | S87: 62 | T87: 79 | U87: 68 | V87: 65 | AC87: 86 | AE87: 62 | AK87: 68 | AP87: 88 | AR87: 21 | AS87: 9 | AT87: 42.86% | AU87: 3491.5 | AV87: 48.5 | AW87: 71.990 | AX87: 0.0 | AY87: 是
A88: 能化21-1班 | B88: 2021010493 | C88: 李燕琴 | D88: 60 | E88: 82 | F88: 76 | G88: 82 | H88: 71 | I88: 68 | J88: 72 | K88: 62 | M88: 55 | N88: 71 | P88: 88 | Q88: 83 | R88: 69 | S88: 60 | T88: 69 | U88: 73 | V88: 63 | Y88: 66 | AA88: 83 | AC88: 91 | AK88: 70 | AN88: 90 | AP88: 85 | AR88: 23 | AS88: 8 | AT88: 34.78% | AU88: 3879.0 | AV88: 54.5 | AW88: 71.174 | AX88: 1.0 | AY88: 否
A89: 能化21-1班 | B89: 2021010494 | C89: 黄镜 | D89: 64 | E89: 79 | F89: 75 | G89: 71 | H89: 75 | I89: 50 | J89: 54 | K89: 62 | M89: 55 | N89: 76 | P89: 83 | Q89: 86 | R89: 75 | S89: 52 | T89: 65 | U89: 69 | V89: 60 | W89: 47 | AC89: 84 | AE89: 57 | AK89: 64 | AO89: 82 | AP89: 88 | AR89: 23 | AS89: 5 | AT89: 21.74% | AU89: 3436.5 | AV89: 52.5 | AW89: 65.457 | AX89: 6.0 | AY89: 否
A90: 能化21-1班 | B90: 2021010496 | C90: 解天羽 | D90: 60 | E90: 84 | F90: 87 | G90: 87 | H90: 79 | I90: 63 | K90: 56 | M90: 62 | N90: 78 | P90: 85 | Q90: 79 | R90: 84 | S90: 66 | T90: 66 | U90: 80 | V90: 89 | AC90: 91 | AK90: 69 | AP90: 88 | AR90: 19 | AS90: 9 | AT90: 47.37% | AU90: 3108.0 | AV90: 42.0 | AW90: 74.000 | AX90: 1.0 | AY90: 否
A91: 能化21-1班 | B91: 2021010498 | C91: 阿力木努·赛买提 | D91: 65 | E91: 84 | F91: 83 | G91: 78 | H91: 70 | I91: 61 | K91: 56 | M91: 55 | N91: 78 | P91: 82 | Q91: 87 | R91: 77 | S91: 60 | T91: 65 | U91: 72 | V91: 48 | AA91: 83 | AC91: 86 | AI91: 88 | AK91: 67 | AO91: 84 | AP91: 87 | AR91: 22 | AS91: 9 | AT91: 40.91% | AU91: 3328.0 | AV91: 47.0 | AW91: 70.809 | AX91: 3.0 | AY91: 否
A92: 能化21-1班 | B92: 2021010513 | C92: 曹逸恒 | D92: 71 | E92: 83 | F92: 69 | G92: 80 | H92: 75 | I92: 44 | J92: 43 | K92: 40 | M92: 54 | N92: 80 | P92: 76 | Q92: 60 | R92: 64 | S92: 63 | T92: 60 | U92: 68 | V92: 60 | W92: 56 | Y92: 53 | AC92: 86 | AE92: 63 | AK92: 63 | AP92: 82 | AR92: 23 | AS92: 5 | AT92: 21.74% | AU92: 3510.5 | AV92: 57.5 | AW92: 61.052 | AX92: 6.0 | AY92: 否
A93: 能化21-1班 | B93: 2021010514 | C93: 曹哲仁 | D93: 83 | E93: 91 | F93: 88 | G93: 77 | H93: 92 | I93: 83 | K93: 96 | M93: 86 | N93: 92 | P93: 85 | Q93: 79 | R93: 89 | S93: 87 | T93: 80 | U93: 83 | V93: 89 | AC93: 89 | AK93: 84 | AP93: 87 | AR93: 19 | AS93: 17 | AT93: 89.47% | AU93: 3605.5 | AV93: 42.0 | AW93: 85.845 | AX93: 0.0 | AY93: 是
A94: 能化21-1班 | B94: 2021010515 | C94: 陈骄阳 | D94: 70 | E94: 86 | F94: 85 | G94: 78 | H94: 75 | I94: 71 | K94: 74 | M94: 72 | N94: 82 | P94: 87 | Q94: 75 | R94: 83 | S94: 77 | T94: 75 | U94: 82 | V94: 75 | AC94: 88 | AF94: 79 | AK94: 79 | AP94: 85 | AR94: 20 | AS94: 8 | AT94: 40.00% | AU94: 3564.5 | AV94: 46.0 | AW94: 77.489 | AX94: 0.0 | AY94: 是
A95: 能化21-2班 | B95: 2021010395 | C95: 王浙 | D95: 96 | E95: 94 | F95: 91 | G95: 88 | H95: 95 | I95: 82 | K95: 96 | M95: 83 | N95: 92 | P95: 94 | Q95: 92 | R95: 92 | S95: 87 | T95: 75 | U95: 89 | V95: 87 | AC95: 84 | AK95: 92 | AP95: 91 | AR95: 19 | AS95: 18 | AT95: 94.74% | AU95: 3751.5 | AV95: 42.0 | AW95: 89.321 | AX95: 0.0 | AY95: 是
A96: 能化21-2班 | B96: 2021010403 | C96: 崔珈榕 | D96: 63 | E96: 72 | F96: 73 | G96: 82 | H96: 72 | I96: 56 | K96: 46 | M96: 60 | N96: 84 | P96: 79 | Q96: 82 | R96: 82 | S96: 60 | T96: 70 | U96: 72 | V96: 60 | AC96: 80 | AE96: 61 | AK96: 75 | AP96: 84 | AR96: 20 | AS96: 6 | AT96: 30.00% | AU96: 3093.5 | AV96: 45.0 | AW96: 68.744 | AX96: 2.0 | AY96: 否
A97: 能化21-2班 | B97: 2021010409 | C97: 刘兴旺 | D97: 62 | E97: 85 | F97: 80 | G97: 81 | H97: 74 | I97: 60 | K97: 75 | M97: 70 | N97: 74 | P97: 88 | Q97: 79 | R97: 77 | S97: 60 | T97: 72 | U97: 69 | V97: 61 | AC97: 79 | AK97: 70 | AP97: 80 | AR97: 19 | AS97: 5 | AT97: 26.32% | AU97: 3044.0 | AV97: 42.0 | AW97: 72.476 | AX97: 0.0 | AY97: 是
A98: 能化21-2班 | B98: 2021010412 | C98: 陈逸飞 | D98: 61 | E98: 81 | F98: 86 | G98: 84 | H98: 81 | I98: 66 | K98: 82 | M98: 77 | N98: 75 | P98: 88 | Q98: 83 | R98: 79 | S98: 64 | T98: 75 | U98: 78 | V98: 70 | AC98: 80 | AK98: 87 | AP98: 86 | AR98: 19 | AS98: 10 | AT98: 52.63% | AU98: 3258.0 | AV98: 42.0 | AW98: 77.571 | AX98: 0.0 | AY98: 是
A99: 能化21-2班 | B99: 2021010413 | C99: 林云志 | D99: 60 | E99: 66 | F99: 77 | G99: 77 | H99: 67 | I99: 63 | K99: 66 | M99: 60 | N99: 73 | P99: 87 | Q99: 86 | R99: 70 | S99: 61 | T99: 67 | U99: 71 | V99: 67 | Z99: 60 | AC99: 80 | AH99: 76 | AI99: 86 | AK99: 63 | AP99: 85 | AR99: =COUNTA(D99:AQ99) -> 22 | AS99: =COUNTIF(D99:AQ99,">=80") -> 5 | AT99: 22.73% | AU99: 3641.5 | AV99: 52.0 | AW99: 70.029 | AX99: 0.0 | AY99: 是
A100: 能化21-2班 | B100: 2021010419 | C100: 鲁鹤宇 | D100: 33 | E100: 75 | F100: 75 | G100: 9 | H100: 70 | I100: 34 | K100: 42 | M100: 45 | N100: 74 | O100: 69 | P100: 21 | Q100: 76 | R100: 53 | S100: 61 | T100: 66 | U100: 66 | V100: 50 | Y100: 47 | AC100: 78 | AI100: 11 | AJ100: 47 | AK100: 63 | AP100: 87 | AR100: 23 | AS100: 1 | AT100: 4.35% | AU100: 2624.0 | AV100: 53.0 | AW100: 49.509 | AX100: 11.0 | AY100: 否
A101: 能化21-2班 | B101: 2021010426 | C101: 杨凯迪 | D101: 60 | E101: 66 | F101: 74 | G101: 74 | H101: 69 | I101: 39 | J101: 70 | K101: 38 | M101: 60 | N101: 71 | P101: 82 | Q101: 74 | R101: 65 | S101: 35 | T101: 65 | U101: 66 | V101: 60 | Z101: 51 | AC101: 78 | AE101: 69 | AK101: 61 | AP101: 83 | AR101: 22 | AS101: 2 | AT101: 9.09% | AU101: 3305.0 | AV101: 53.5 | AW101: 61.776 | AX101: 4.0 | AY101: 否
A102: 能化21-2班 | B102: 2021010427 | C102: 张金坤 | D102: 70 | E102: 84 | F102: 70 | G102: 64 | H102: 67 | I102: 63 | K102: 60 | M102: 75 | N102: 71 | P102: 91 | Q102: 81 | R102: 85 | S102: 61 | T102: 71 | U102: 71 | V102: 71 | W102: 69 | AC102: 80 | AK102: 82 | AP102: 86 | AR102: 20 | AS102: 7 | AT102: 35.00% | AU102: 3244.0 | AV102: 45.0 | AW102: 72.089 | AX102: 0.0 | AY102: 是
A103: 能化21-2班 | B103: 2021010439 | C103: 吴晗毓 | D103: 75 | E103: 86 | G103: 82 | H103: 85 | I103: 61 | K103: 64 | M103: 61 | N103: 82 | P103: 89 | Q103: 80 | R103: 77 | S103: 86 | T103: 69 | U103: 73 | V103: 77 | AC103: 84 | AK103: 74 | AP103: 92 | AR103: 18 | AS103: 9 | AT103: 50.00% | AU103: 3131.0 | AV103: 41.5 | AW103: 75.446 | AX103: 0.0 | AY103: 否 | AZ103: 化工原理实验II未修
A104: 能化21-2班 | B104: 2021010450 | C104: 周围 | D104: 72 | E104: 83 | F104: 89 | G104: 80 | H104: 72 | I104: 58 | K104: 67 | M104: 72 | N104: 76 | P104: 88 | Q104: 91 | R104: 83 | S104: 60 | T104: 73 | U104: 70 | V104: 60 | AA104: 79 | AC104: 80 | AE104: 67 | AI104: 84 | AK104: 76 | AP104: 86 | AQ104: 85 | AR104: 23 | AS104: 10 | AT104: 43.48% | AU104: 3628.5 | AV104: 49.0 | AW104: 74.051 | AX104: 1.0 | AY104: 否
A105: 能化21-2班 | B105: 2021010461 | C105: 杨嘉琦 | D105: 82 | E105: 90 | F105: 84 | G105: 88 | H105: 88 | I105: 70 | K105: 76 | M105: 75 | N105: 80 | P105: 89 | Q105: 86 | R105: 97 | S105: 87 | T105: 71 | U105: 79 | V105: 71 | AC105: 85 | AK105: 81 | AP105: 91 | AR105: 19 | AS105: 13 | AT105: 68.42% | AU105: 3419.0 | AV105: 42.0 | AW105: 81.405 | AX105: 0.0 | AY105: 是
A106: 能化21-2班 | B106: 2021010462 | C106: 武晗 | D106: 60 | E106: 89 | F106: 86 | G106: 78 | H106: 84 | I106: 52 | J106: 60 | K106: 71 | M106: 61 | N106: 85 | P106: 79 | Q106: 80 | R106: 80 | S106: 68 | T106: 68 | U106: 70 | V106: 75 | AC106: 84 | AH106: 64 | AK106: 79 | AP106: 84 | AR106: 21 | AS106: 8 | AT106: 38.10% | AU106: 3462.5 | AV106: 48.5 | AW106: 71.392 | AX106: 1.0 | AY106: 否
A107: 能化21-2班 | B107: 2021010464 | C107: 周香格 | D107: 60 | E107: 75 | F107: 77 | G107: 68 | H107: 77 | I107: 60 | J107: 60 | K107: 52 | M107: 60 | N107: 73 | P107: 82 | Q107: 83 | R107: 70 | S107: 60 | T107: 64 | U107: 62 | V107: 68 | W107: 50 | AC107: 83 | AE107: 62 | AK107: 79 | AP107: 83 | AR107: 22 | AS107: 4 | AT107: 18.18% | AU107: 3412.5 | AV107: 51.5 | AW107: 66.262 | AX107: 2.0 | AY107: 否
A108: 能化21-2班 | B108: 2021010466 | C108: 程嘉欣 | D108: 72 | E108: 90 | F108: 91 | G108: 87 | H108: 87 | I108: 64 | K108: 62 | M108: 70 | N108: 89 | P108: 89 | Q108: 91 | R108: 77 | S108: 86 | T108: 79 | U108: 79 | V108: 75 | AA108: 86 | AC108: 86 | AI108: 87 | AK108: 89 | AP108: 90 | AR108: 21 | AS108: 13 | AT108: 61.90% | AU108: 3686.5 | AV108: 46.0 | AW108: 80.141 | AX108: 0.0 | AY108: 是
A109: 能化21-2班 | B109: 2021010467 | C109: 颜伊宁 | D109: 74 | E109: 91 | F109: 92 | G109: 86 | H109: 87 | I109: 64 | K109: 82 | M109: 73 | N109: 87 | P109: 89 | Q109: 87 | R109: 83 | S109: 89 | T109: 75 | U109: 79 | V109: 79 | AC109: 84 | AK109: 86 | AP109: 90 | AR109: 19 | AS109: 13 | AT109: 68.42% | AU109: 3417.0 | AV109: 42.0 | AW109: 81.357 | AX109: 0.0 | AY109: 是
A110: 能化21-2班 | B110: 2021010470 | C110: 刘睿扬 | D110: 80 | E110: 91 | F110: 92 | G110: 85 | H110: 90 | I110: 62 | K110: 75 | M110: 67 | N110: 84 | P110: 87 | Q110: 88 | R110: 95 | S110: 88 | T110: 77 | U110: 88 | V110: 71 | AA110: 85 | AC110: 83 | AI110: 87 | AK110: 79 | AP110: 91 | AR110: 21 | AS110: 15 | AT110: 71.43% | AU110: 3740.0 | AV110: 46.0 | AW110: 81.304 | AX110: 0.0 | AY110: 是
A111: 能化21-2班 | B111: 2021010471 | C111: 柳子涵 | D111: 72 | E111: 81 | F111: 90 | G111: 80 | H111: 83 | I111: 49 | J111: 55 | K111: 62 | M111: 60 | N111: 79 | P111: 87 | Q111: 78 | R111: 67 | S111: 60 | T111: 65 | U111: 78 | V111: 75 | W111: 55 | Z111: 56 | AC111: 81 | AE111: 51 | AK111: 91 | AP111: 87 | AR111: 23 | AS111: 8 | AT111: 34.78% | AU111: 3835.0 | AV111: 56.5 | AW111: 67.876 | AX111: 5.0 | AY111: 否
A112: 能化21-2班 | B112: 2021010475 | C112: 蒲文博 | D112: 70 | E112: 84 | F112: 73 | G112: 84 | H112: 82 | I112: 61 | K112: 66 | M112: 66 | N112: 70 | P112: 85 | Q112: 80 | R112: 68 | S112: 60 | T112: 76 | U112: 75 | V112: 62 | W112: 74 | AC112: 85 | AK112: 77 | AL112: 95 | AP112: 82 | AR112: 21 | AS112: 8 | AT112: 38.10% | AU112: 3381.0 | AV112: 46.0 | AW112: 73.500 | AX112: 0.0 | AY112: 是
A113: 能化21-2班 | B113: 2021010476 | C113: 齐翔龙 | D113: 66 | E113: 81 | F113: 83 | G113: 72 | H113: 78 | I113: 51 | J113: 41 | K113: 63 | M113: 60 | N113: 66 | P113: 83 | Q113: 81 | R113: 60 | S113: 47 | T113: 74 | U113: 74 | V113: 61 | W113: 60 | AA113: 85 | AC113: 83 | AH113: 56 | AI113: 85 | AK113: 78 | AM113: 70 | AP113: 85 | AR113: 25 | AS113: 8 | AT113: 32.00% | AU113: 3786.0 | AV113: 56.5 | AW113: 67.009 | AX113: 4.0 | AY113: 否
A114: 能化21-2班 | B114: 2021010477 | C114: 何余胜 | D114: 60 | E114: 72 | F114: 79 | G114: 78 | H114: 69 | I114: 36 | J114: 37 | K114: 39 | M114: 60 | N114: 73 | P114: 83 | Q114: 73 | R114: 80 | S114: 60 | T114: 70 | U114: 68 | V114: 61 | W114: 55 | AC114: 82 | AE114: 60 | AK114: 75 | AP114: 86 | AR114: 22 | AS114: 4 | AT114: 18.18% | AU114: 3218.5 | AV114: 51.5 | AW114: 62.495 | AX114: 4.0 | AY114: 否
A115: 能化21-2班 | B115: 2021010478 | C115: 常一帆 | D115: 68 | E115: 78 | F115: 82 | G115: 71 | H115: 72 | I115: 55 | J115: 58 | K115: 68 | M115: 61 | N115: 78 | P115: 79 | Q115: 75 | R115: 72 | S115: 67 | T115: 70 | U115: 72 | V115: 80 | AC115: 80 | AE115: 60 | AK115: 75 | AP115: 83 | AR115: 21 | AS115: 4 | AT115: 19.05% | AU115: 3355.5 | AV115: 48.5 | AW115: 69.186 | AX115: 2.0 | AY115: 否
A116: 能化21-2班 | B116: 2021010479 | C116: 覃师凯 | D116: 70 | E116: 73 | F116: 81 | G116: 73 | H116: 67 | I116: 60 | K116: 60 | M116: 60 | N116: 82 | P116: 88 | Q116: 79 | R116: 83 | S116: 60 | T116: 66 | U116: 69 | V116: 72 | W116: 69 | AC116: 90 | AK116: 90 | AL116: 100 | AP116: 90 | AR116: 21 | AS116: 8 | AT116: 38.10% | AU116: 3323.0 | AV116: 46.0 | AW116: 72.239 | AX116: 0.0 | AY116: 是
A117: 能化21-2班 | B117: 2021010486 | C117: 鹿麒麟 | D117: 99 | E117: 96 | F117: 94 | G117: 94 | H117: 97 | I117: 87 | K117: 97 | M117: 90 | N117: 93 | P117: 96 | Q117: 95 | R117: 99 | S117: 100 | T117: 96 | U117: 94 | V117: 87 | AC117: 92 | AK117: 97 | AP117: 97 | AR117: 19 | AS117: 19 | AT117: 100.00% | AU117: 3964.5 | AV117: 42.0 | AW117: 94.393 | AX117: 0.0 | AY117: 是
A118: 能化21-2班 | B118: 2021010487 | C118: 吴隆卓 | D118: 65 | E118: 72 | F118: 66 | G118: 76 | H118: 67 | I118: 54 | J118: 67 | K118: 43 | M118: 62 | N118: 75 | P118: 85 | Q118: 78 | R118: 84 | S118: 60 | T118: 69 | U118: 71 | V118: 61 | W118: 63 | AC118: 84 | AE118: 60 | AK118: 69 | AP118: 86 | AR118: 22 | AS118: 4 | AT118: 18.18% | AU118: 3453.0 | AV118: 51.5 | AW118: 67.049 | AX118: 2.0 | AY118: 否
A119: 能化21-2班 | B119: 2021010492 | C119: 左笑维 | D119: 93 | E119: 88 | F119: 60 | G119: 85 | H119: 83 | I119: 81 | K119: 92 | M119: 80 | N119: 88 | P119: 84 | Q119: 88 | R119: 85 | S119: 95 | T119: 87 | U119: 83 | V119: 81 | AC119: 80 | AK119: 87 | AP119: 91 | AR119: 19 | AS119: 18 | AT119: 94.74% | AU119: 3586.0 | AV119: 42.0 | AW119: 85.381 | AX119: 0.0 | AY119: 是
A120: 能化21-2班 | B120: 2021010501 | C120: 陈湘宜 | D120: 62 | E120: 79 | F120: 85 | G120: 83 | H120: 75 | I120: 60 | K120: 66 | M120: 60 | N120: 78 | P120: 88 | Q120: 83 | R120: 71 | S120: 67 | T120: 68 | U120: 79 | V120: 67 | W120: 75 | AC120: 81 | AK120: 79 | AP120: 84 | AR120: 20 | AS120: 6 | AT120: 30.00% | AU120: 3289.0 | AV120: 45.0 | AW120: 73.089 | AX120: 0.0 | AY120: 是
A121: 能化21-2班 | B121: 2021010502 | C121: 王晨宣 | D121: 71 | E121: 88 | F121: 82 | G121: 81 | H121: 87 | I121: 71 | K121: 80 | M121: 71 | N121: 84 | P121: 90 | Q121: 84 | R121: 93 | S121: 93 | T121: 82 | U121: 86 | V121: 72 | AC121: 82 | AK121: 84 | AP121: 85 | AR121: 19 | AS121: 15 | AT121: 78.95% | AU121: 3428.5 | AV121: 42.0 | AW121: 81.631 | AX121: 0.0 | AY121: 是
A122: 能化21-2班 | B122: 2021010506 | C122: 陈国荣 | D122: 80 | E122: 84 | F122: 84 | G122: 78 | H122: 75 | I122: 72 | K122: 86 | M122: 73 | N122: 76 | P122: 82 | Q122: 84 | R122: 78 | S122: 76 | T122: 76 | U122: 77 | V122: 76 | AA122: 76 | AC122: 80 | AI122: 79 | AK122: 84 | AL122: 96 | AP122: 89 | AR122: 22 | AS122: 10 | AT122: 45.45% | AU122: 3703.0 | AV122: 47.0 | AW122: 78.787 | AX122: 0.0 | AY122: 是
A123: 能化21-2班 | B123: 2021010521 | C123: 王梓涵 | D123: 81 | E123: 80 | F123: 85 | G123: 74 | H123: 90 | I123: 72 | K123: 85 | M123: 76 | N123: 85 | P123: 92 | Q123: 91 | R123: 92 | S123: 94 | T123: 77 | U123: 79 | V123: 86 | AC123: 81 | AK123: 91 | AP123: 90 | AR123: 19 | AS123: 14 | AT123: 73.68% | AU123: 3514.0 | AV123: 42.0 | AW123: 83.667 | AX123: 0.0 | AY123: 是
D125: 100305C001 | E125: 100305L007 | F125: 100305L008 | G125: 100305P019 | H125: 100305T032 | I125: 100305T064 | J125: 100305T075 | K125: 100305T076 | L125: 100305T081 | M125: 100305T099 | N125: 100305T109 | O125: 100308P006 | P125: 100308P009 | Q125: 100308T015 | R125: 100308T016 | S125: 100328T001 | T125: 100328T005 | U125: 100328T014 | V125: 1.01E+11 | W125: 100616M003 | X125: 100616M005 | Y125: 100616M018 | Z125: 100616M019 | AA125: 100617L014 | AB125: 100617L025 | AC125: 100617L027 | AD125: 100617T005 | AE125: 100617T006 | AF125: 100617T059 | AG125: 100617T061 | AH125: 100627M012 | AI125: 100627M016 | AJ125: 100627M017 | AK125: 101000T001 | AL125: 101099G045 | AM125: 101099M008 | AN125: 101099M010 | AO125: 101099M013 | AP125: 101300X003 | AQ125: 101500X002
A126: 班级 | B126: 学号 | C126: 姓名 | D126: 化工应用软件 | E126: 化工原理实验（Ⅰ） | F126: 化工原理实验（Ⅱ） | G126: 化工原理课程设计 | H126: 化工装备与控制 | I126: 化工热力学 | J126: 化工原理（Ⅰ） | K126: 化工原理（Ⅱ） | L126: 生物化学 | M126: 化学反应工程 | N126: 化工安全与环保 | O126: 能化认识实习 | P126: 能化生产实习 | Q126: 煤化学转化工程 | R126: 天然气处理与转化工程 | S126: 化工用能评价 | T126: 能源化工设计基础 | U126: 石油加工工程 | V126: 电工学及实验 | W126: 线性代数 | X126: 概率统计基础 | Y126: 高等数学B（Ⅰ） | Z126: 高等数学B（Ⅱ） | AA126: 有机化学实验 | AB126: 有机化学实验 | AC126: 物理化学实验（Ⅱ） | AD126: 物理化学（Ⅰ） | AE126: 物理化学（Ⅱ） | AF126: 无机化学与分析化学 | AG126: 有机化学 | AH126: 大学物理C（Ⅱ） | AI126: 大学物理实验B（Ⅰ） | AJ126: 大学物理实验B（Ⅱ） | AK126: 项目管理与经济决策 | AL126: 专项运动训练课Ⅰ | AM126: 大学体育必修（篮球） | AN126: 大学体育必修（健美） | AO126: 大学体育必修（健美操） | AP126: 就业指导 | AQ126: 入学教育与安全教育
A127: 能化21-1班 | B127: 2020010644 | C127: 李硕 | D127: =D67*D$66 -> 0 | E127: =E67*E$66 -> 0 | F127: 0 | G127: 0 | H127: 0 | I127: 123 | J127: 217 | K127: 42 | L127: 122 | M127: 0 | N127: 0 | O127: 0 | P127: 0 | Q127: 0 | R127: 160 | S127: 0 | T127: 0 | U127: 0 | V127: 0 | W127: 0 | X127: 207 | Y127: 318 | Z127: 0 | AA127: 0 | AB127: 0 | AC127: 0 | AD127: 180 | AE127: 0 | AF127: 240 | AG127: 0 | AH127: 0 | AI127: 0 | AJ127: 131 | AK127: 0 | AL127: 0 | AM127: 0 | AN127: 0 | AO127: 0 | AP127: 42 | AQ127: 0 | AR127: =SUM(D127:AQ127) -> 1781
A128: 能化21-1班 | B128: 2021010374 | C128: 何若妍 | D128: =D68*D$66 -> 182 | E128: 45 | F128: 48 | G128: 276 | H128: 285 | I128: 294 | J128: 0 | K128: 326 | L128: 0 | M128: 315 | N128: 194 | O128: 0 | P128: 276 | Q128: 276 | R128: 192 | S128: 194 | T128: 186 | U128: 282 | V128: 180 | W128: 0 | X128: 0 | Y128: 0 | Z128: 0 | AA128: 0 | AB128: 0 | AC128: 88 | AD128: 0 | AE128: 0 | AF128: 0 | AG128: 0 | AH128: 0 | AI128: 0 | AJ128: 0 | AK128: 186 | AL128: 0 | AM128: 0 | AN128: 0 | AO128: 0 | AP128: 45 | AQ128: 0 | AR128: =SUM(D128:AQ128) -> 3869
A129: 能化21-1班 | B129: 2021010376 | C129: 李传洋 | D129: =D69*D$66 -> 32 | E129: 35 | F129: 39 | G129: 12 | H129: 180 | I129: 140 | J129: 245 | K129: 81 | L129: 0 | M129: 116 | N129: 164 | O129: 0 | P129: 258 | Q129: 246 | R129: 120 | S129: 76 | T129: 120 | U129: 219 | V129: 166 | W129: 180 | X129: 0 | Y129: 390 | Z129: 315 | AA129: 0 | AB129: 0 | AC129: 87 | AD129: 0 | AE129: 0 | AF129: 0 | AG129: 210 | AH129: 240 | AI129: 0 | AJ129: 0 | AK129: 120 | AL129: 0 | AM129: 0 | AN129: 0 | AO129: 0 | AP129: 40 | AQ129: 0 | AR129: 3829
A130: 能化21-1班 | B130: 2021010377 | C130: 甘浩 | D130: =D70*D$66 -> 120 | E130: 37 | F130: 35 | G130: 216 | H130: 219 | I130: 161 | J130: 0 | K130: 123 | L130: 0 | M130: 245 | N130: 154 | O130: 0 | P130: 255 | Q130: 234 | R130: 158 | S130: 120 | T130: 152 | U130: 180 | V130: 120 | W130: 180 | X130: 0 | Y130: 0 | Z130: 0 | AA130: 0 | AB130: 0 | AC130: 80 | AD130: 0 | AE130: 0 | AF130: 0 | AG130: 0 | AH130: 0 | AI130: 0 | AJ130: 0 | AK130: 122 | AL130: 0 | AM130: 0 | AN130: 0 | AO130: 0 | AP130: 40 | AQ130: 0 | AR130: 2949
A131: 能化21-1班 | B131: 2021010380 | C131: 詹作鑫 | D131: =D71*D$66 -> 140 | E131: 39 | F131: 41 | G131: 234 | H131: 258 | I131: 210 | J131: 0 | K131: 238 | L131: 0 | M131: 270 | N131: 156 | O131: 0 | P131: 273 | Q131: 219 | R131: 186 | S131: 148 | T131: 158 | U131: 243 | V131: 140 | W131: 0 | X131: 0 | Y131: 0 | Z131: 0 | AA131: 0 | AB131: 0 | AC131: 83 | AD131: 0 | AE131: 237 | AF131: 0 | AG131: 0 | AH131: 0 | AI131: 0 | AJ131: 0 | AK131: 148 | AL131: 0 | AM131: 0 | AN131: 0 | AO131: 0 | AP131: 42 | AQ131: 0 | AR131: 3462
A132: 能化21-1班 | B132: 2021010381 | C132: 李维昊 | D132: =D72*D$66 -> 120 | E132: 38 | F132: 34 | G132: 189 | H132: 195 | I132: 203 | J132: 221 | K132: 217 | L132: 0 | M132: 175 | N132: 142 | O132: 0 | P132: 258 | Q132: 240 | R132: 142 | S132: 120 | T132: 126 | U132: 216 | V132: 120 | W132: 168 | X132: 0 | Y132: 0 | Z132: 0 | AA132: 0 | AB132: 0 | AC132: 82 | AD132: 0 | AE132: 0 | AF132: 112 | AG132: 0 | AH132: 0 | AI132: 0 | AJ132: 0 | AK132: 130 | AL132: 0 | AM132: 0 | AN132: 0 | AO132: 0 | AP132: 42 | AQ132: 0 | AR132: 3289
A133: 能化21-1班 | B133: 2021010382 | C133: 王理哲 | D133: =D73*D$66 -> 120 | E133: 41 | F133: 36 | G133: 252 | H133: 231 | I133: 214 | J133: 0 | K133: 221 | L133: 0 | M133: 210 | N133: 162 | O133: 0 | P133: 270 | Q133: 228 | R133: 154 | S133: 124 | T133: 140 | U133: 207 | V133: 120 | W133: 168 | X133: 0 | Y133: 0 | Z133: 0 | AA133: 0 | AB133: 0 | AC133: 80 | AD133: 0 | AE133: 0 | AF133: 0 | AG133: 0 | AH133: 0 | AI133: 0 | AJ133: 0 | AK133: 132 | AL133: 0 | AM133: 0 | AN133: 0 | AO133: 0 | AP133: 44 | AQ133: 0 | AR133: 3152
A134: 能化21-1班 | B134: 2021010387 | C134: 李洪博 | D134: =D74*D$66 -> 120 | E134: 37 | F134: 35 | G134: 234 | H134: 201 | I134: 214 | J134: 252 | K134: 214 | L134: 0 | M134: 214 | N134: 154 | O134: 0 | P134: 249 | Q134: 240 | R134: 136 | S134: 120 | T134: 126 | U134: 210 | V134: 122 | W134: 0 | X134: 0 | Y134: 0 | Z134: 315 | AA134: 158 | AB134: 0 | AC134: 78 | AD134: 0 | AE134: 183 | AF134: 0 | AG134: 0 | AH134: 0 | AI134: 160 | AJ134: 0 | AK134: 122 | AL134: 0 | AM134: 0 | AN134: 0 | AO134: 0 | AP134: 43 | AQ134: 0 | AR134: 3935
A135: 能化21-1班 | B135: 2021010389 | C135: 李臻彦 | D135: =D75*D$66 -> 120 | E135: 40 | F135: 41 | G135: 246 | H135: 213 | I135: 235 | J135: 0 | K135: 172 | L135: 0 | M135: 210 | N135: 162 | O135: 0 | P135: 240 | Q135: 258 | R135: 148 | S135: 150 | T135: 132 | U135: 225 | V135: 120 | W135: 0 | X135: 0 | Y135: 0 | Z135: 0 | AA135: 0 | AB135: 0 | AC135: 75 | AD135: 213 | AE135: 0 | AF135: 0 | AG135: 0 | AH135: 0 | AI135: 144 | AJ135: 0 | AK135: 152 | AL135: 0 | AM135: 0 | AN135: 0 | AO135: 0 | AP135: 42 | AQ135: 0 | AR135: 3337
A136: 能化21-1班 | B136: 2021010392 | C136: 苏辛一 | D136: =D76*D$66 -> 120 | E136: 38 | F136: 36 | G136: 183 | H136: 198 | I136: 172 | J136: 235 | K136: 67 | L136: 0 | M136: 210 | N136: 132 | O136: 0 | P136: 228 | Q136: 243 | R136: 156 | S136: 120 | T136: 134 | U136: 219 | V136: 120 | W136: 138 | X136: 0 | Y136: 0 | Z136: 0 | AA136: 0 | AB136: 0 | AC136: 75 | AD136: 0 | AE136: 165 | AF136: 0 | AG136: 0 | AH136: 0 | AI136: 50 | AJ136: 0 | AK136: 122 | AL136: 0 | AM136: 0 | AN136: 0 | AO136: 0 | AP136: 40 | AQ136: 0 | AR136: 3199
A137: 能化21-1班 | B137: 2021010393 | C137: 唐顾玮 | D137: =D77*D$66 -> 98 | E137: 36 | F137: 38 | G137: 228 | H137: 237 | I137: 217 | J137: 0 | K137: 210 | L137: 0 | M137: 210 | N137: 162 | O137: 0 | P137: 234 | Q137: 234 | R137: 160 | S137: 120 | T137: 142 | U137: 222 | V137: 140 | W137: 180 | X137: 0 | Y137: 0 | Z137: 0 | AA137: 0 | AB137: 0 | AC137: 78 | AD137: 0 | AE137: 0 | AF137: 0 | AG137: 0 | AH137: 0 | AI137: 158 | AJ137: 0 | AK137: 124 | AL137: 0 | AM137: 0 | AN137: 0 | AO137: 0 | AP137: 41 | AQ137: 0 | AR137: 3268
A138: 能化21-1班 | B138: 2021010428 | C138: 周忠康 | D138: =D78*D$66 -> 160 | E138: 41 | F138: 44 | G138: 264 | H138: 258 | I138: 245 | J138: 0 | K138: 280 | L138: 0 | M138: 235 | N138: 174 | O138: 0 | P138: 276 | Q138: 246 | R138: 176 | S138: 158 | T138: 156 | U138: 237 | V138: 124 | W138: 0 | X138: 0 | Y138: 0 | Z138: 0 | AA138: 0 | AB138: 0 | AC138: 88 | AD138: 0 | AE138: 0 | AF138: 0 | AG138: 0 | AH138: 0 | AI138: 178 | AJ138: 0 | AK138: 170 | AL138: 0 | AM138: 0 | AN138: 0 | AO138: 0 | AP138: 41 | AQ138: 0 | AR138: 3550
A139: 能化21-1班 | B139: 2021010431 | C139: 王医灵 | D139: =D79*D$66 -> 166 | E139: 38 | F139: 43 | G139: 219 | H139: 279 | I139: 252 | J139: 0 | K139: 294 | L139: 0 | M139: 273 | N139: 176 | O139: 0 | P139: 273 | Q139: 282 | R139: 190 | S139: 182 | T139: 166 | U139: 243 | V139: 146 | W139: 0 | X139: 0 | Y139: 0 | Z139: 0 | AA139: 0 | AB139: 0 | AC139: 87 | AD139: 0 | AE139: 0 | AF139: 0 | AG139: 0 | AH139: 0 | AI139: 0 | AJ139: 0 | AK139: 168 | AL139: 0 | AM139: 0 | AN139: 0 | AO139: 0 | AP139: 0 | AQ139: 0 | AR139: 3477
A140: 能化21-1班 | B140: 2021010432 | C140: 梁卓文 | D140: =D80*D$66 -> 150 | E140: 39 | F140: 43 | G140: 273 | H140: 255 | I140: 259 | J140: 0 | K140: 280 | L140: 0 | M140: 245 | N140: 160 | O140: 0 | P140: 270 | Q140: 246 | R140: 182 | S140: 148 | T140: 142 | U140: 201 | V140: 142 | W140: 222 | X140: 0 | Y140: 0 | Z140: 0 | AA140: 158 | AB140: 0 | AC140: 83 | AD140: 0 | AE140: 0 | AF140: 0 | AG140: 0 | AH140: 0 | AI140: 0 | AJ140: 0 | AK140: 158 | AL140: 0 | AM140: 0 | AN140: 0 | AO140: 0 | AP140: 45 | AQ140: 0 | AR140: 3700
A141: 能化21-1班 | B141: 2021010433 | C141: 朱佳怡 | D141: =D81*D$66 -> 76 | E141: 38 | F141: 37 | G141: 210 | H141: 183 | I141: 200 | J141: 0 | K141: 172 | L141: 0 | M141: 214 | N141: 152 | O141: 0 | P141: 252 | Q141: 252 | R141: 166 | S141: 150 | T141: 128 | U141: 207 | V141: 150 | W141: 171 | X141: 0 | Y141: 0 | Z141: 0 | AA141: 146 | AB141: 0 | AC141: 71 | AD141: 0 | AE141: 0 | AF141: 0 | AG141: 0 | AH141: 0 | AI141: 0 | AJ141: 0 | AK141: 152 | AL141: 0 | AM141: 0 | AN141: 0 | AO141: 0 | AP141: 43 | AQ141: 0 | AR141: 3167
A142: 能化21-1班 | B142: 2021010442 | C142: 裴俊豪 | D142: =D82*D$66 -> 184 | E142: 42 | F142: 46 | G142: 273 | H142: 279 | I142: 294 | J142: 0 | K142: 312 | L142: 0 | M142: 305 | N142: 188 | O142: 0 | P142: 279 | Q142: 276 | R142: 182 | S142: 186 | T142: 158 | U142: 273 | V142: 170 | W142: 0 | X142: 0 | Y142: 0 | Z142: 0 | AA142: 0 | AB142: 0 | AC142: 90 | AD142: 0 | AE142: 0 | AF142: 0 | AG142: 0 | AH142: 0 | AI142: 180 | AJ142: 0 | AK142: 180 | AL142: 0 | AM142: 0 | AN142: 0 | AO142: 0 | AP142: 46 | AQ142: 0 | AR142: 3942
A143: 能化21-1班 | B143: 2021010443 | C143: 鲍怡帅 | D143: =D83*D$66 -> 172 | E143: 40 | F143: 40 | G143: 255 | H143: 255 | I143: 210 | J143: 0 | K143: 235 | L143: 0 | M143: 210 | N143: 142 | O143: 0 | P143: 279 | Q143: 264 | R143: 190 | S143: 150 | T143: 152 | U143: 246 | V143: 148 | W143: 0 | X143: 0 | Y143: 0 | Z143: 0 | AA143: 0 | AB143: 0 | AC143: 85 | AD143: 0 | AE143: 0 | AF143: 0 | AG143: 0 | AH143: 0 | AI143: 0 | AJ143: 0 | AK143: 166 | AL143: 0 | AM143: 0 | AN143: 0 | AO143: 0 | AP143: 44 | AQ143: 0 | AR143: 3282
A144: 能化21-1班 | B144: 2021010445 | C144: 耿智鸿 | D144: =D84*D$66 -> 120 | E144: 38 | F144: 38 | G144: 243 | H144: 207 | I144: 200 | J144: 0 | K144: 210 | L144: 0 | M144: 210 | N144: 162 | O144: 0 | P144: 252 | Q144: 243 | R144: 142 | S144: 142 | T144: 150 | U144: 210 | V144: 152 | W144: 183 | X144: 0 | Y144: 0 | Z144: 0 | AA144: 0 | AB144: 0 | AC144: 87 | AD144: 0 | AE144: 0 | AF144: 0 | AG144: 0 | AH144: 0 | AI144: 172 | AJ144: 0 | AK144: 170 | AL144: 0 | AM144: 0 | AN144: 0 | AO144: 0 | AP144: 44 | AQ144: 0 | AR144: 3373
A145: 能化21-1班 | B145: 2021010457 | C145: 栾俊添 | D145: =D85*D$66 -> 184 | E145: 43 | F145: 47 | G145: 249 | H145: 276 | I145: 287 | J145: 0 | K145: 308 | L145: 0 | M145: 301 | N145: 184 | O145: 0 | P145: 270 | Q145: 273 | R145: 190 | S145: 180 | T145: 166 | U145: 261 | V145: 154 | W145: 0 | X145: 0 | Y145: 0 | Z145: 0 | AA145: 0 | AB145: 0 | AC145: 91 | AD145: 0 | AE145: 0 | AF145: 0 | AG145: 0 | AH145: 0 | AI145: 0 | AJ145: 0 | AK145: 176 | AL145: 0 | AM145: 0 | AN145: 0 | AO145: 0 | AP145: 46 | AQ145: 0 | AR145: 3685
A146: 能化21-1班 | B146: 2021010465 | C146: 潘思迪 | D146: =D86*D$66 -> 160 | E146: 43 | F146: 47 | G146: 267 | H146: 273 | I146: 301 | J146: 0 | K146: 305 | L146: 0 | M146: 291 | N146: 178 | O146: 0 | P146: 264 | Q146: 270 | R146: 162 | S146: 188 | T146: 150 | U146: 264 | V146: 160 | W146: 0 | X146: 0 | Y146: 0 | Z146: 0 | AA146: 0 | AB146: 90 | AC146: 87 | AD146: 0 | AE146: 0 | AF146: 0 | AG146: 0 | AH146: 0 | AI146: 174 | AJ146: 0 | AK146: 172 | AL146: 0 | AM146: 0 | AN146: 0 | AO146: 0 | AP146: 46 | AQ146: 0 | AR146: 3890
A147: 能化21-1班 | B147: 2021010482 | C147: 王岩青 | D147: =D87*D$66 -> 182 | E147: 43 | F147: 46 | G147: 255 | H147: 234 | I147: 210 | J147: 210 | K147: 214 | L147: 0 | M147: 235 | N147: 160 | O147: 0 | P147: 255 | Q147: 249 | R147: 132 | S147: 124 | T147: 158 | U147: 204 | V147: 130 | W147: 0 | X147: 0 | Y147: 0 | Z147: 0 | AA147: 0 | AB147: 0 | AC147: 86 | AD147: 0 | AE147: 186 | AF147: 0 | AG147: 0 | AH147: 0 | AI147: 0 | AJ147: 0 | AK147: 136 | AL147: 0 | AM147: 0 | AN147: 0 | AO147: 0 | AP147: 44 | AQ147: 0 | AR147: 3492
A148: 能化21-1班 | B148: 2021010493 | C148: 李燕琴 | D148: =D88*D$66 -> 120 | E148: 41 | F148: 38 | G148: 246 | H148: 213 | I148: 238 | J148: 252 | K148: 217 | L148: 0 | M148: 193 | N148: 142 | O148: 0 | P148: 264 | Q148: 249 | R148: 138 | S148: 120 | T148: 138 | U148: 219 | V148: 126 | W148: 0 | X148: 0 | Y148: 396 | Z148: 0 | AA148: 166 | AB148: 0 | AC148: 91 | AD148: 0 | AE148: 0 | AF148: 0 | AG148: 0 | AH148: 0 | AI148: 0 | AJ148: 0 | AK148: 140 | AL148: 0 | AM148: 0 | AN148: 90 | AO148: 0 | AP148: 43 | AQ148: 0 | AR148: 3879
A149: 能化21-1班 | B149: 2021010494 | C149: 黄镜 | D149: =D89*D$66 -> 128 | E149: 40 | F149: 38 | G149: 213 | H149: 225 | I149: 175 | J149: 189 | K149: 217 | L149: 0 | M149: 193 | N149: 152 | O149: 0 | P149: 249 | Q149: 258 | R149: 150 | S149: 104 | T149: 130 | U149: 207 | V149: 120 | W149: 141 | X149: 0 | Y149: 0 | Z149: 0 | AA149: 0 | AB149: 0 | AC149: 84 | AD149: 0 | AE149: 171 | AF149: 0 | AG149: 0 | AH149: 0 | AI149: 0 | AJ149: 0 | AK149: 128 | AL149: 0 | AM149: 0 | AN149: 0 | AO149: 82 | AP149: 44 | AQ149: 0 | AR149: 3437
A150: 能化21-1班 | B150: 2021010496 | C150: 解天羽 | D150: =D90*D$66 -> 120 | E150: 42 | F150: 44 | G150: 261 | H150: 237 | I150: 221 | J150: 0 | K150: 196 | L150: 0 | M150: 217 | N150: 156 | O150: 0 | P150: 255 | Q150: 237 | R150: 168 | S150: 132 | T150: 132 | U150: 240 | V150: 178 | W150: 0 | X150: 0 | Y150: 0 | Z150: 0 | AA150: 0 | AB150: 0 | AC150: 91 | AD150: 0 | AE150: 0 | AF150: 0 | AG150: 0 | AH150: 0 | AI150: 0 | AJ150: 0 | AK150: 138 | AL150: 0 | AM150: 0 | AN150: 0 | AO150: 0 | AP150: 44 | AQ150: 0 | AR150: 3108
A151: 能化21-1班 | B151: 2021010498 | C151: 阿力木努·赛买提 | D151: =D91*D$66 -> 130 | E151: 42 | F151: 42 | G151: 234 | H151: 210 | I151: 214 | J151: 0 | K151: 196 | L151: 0 | M151: 193 | N151: 156 | O151: 0 | P151: 246 | Q151: 261 | R151: 154 | S151: 120 | T151: 130 | U151: 216 | V151: 96 | W151: 0 | X151: 0 | Y151: 0 | Z151: 0 | AA151: 166 | AB151: 0 | AC151: 86 | AD151: 0 | AE151: 0 | AF151: 0 | AG151: 0 | AH151: 0 | AI151: 176 | AJ151: 0 | AK151: 134 | AL151: 0 | AM151: 0 | AN151: 0 | AO151: 84 | AP151: 44 | AQ151: 0 | AR151: 3328
A152: 能化21-1班 | B152: 2021010513 | C152: 曹逸恒 | D152: =D92*D$66 -> 142 | E152: 42 | F152: 35 | G152: 240 | H152: 225 | I152: 154 | J152: 151 | K152: 140 | L152: 0 | M152: 189 | N152: 160 | O152: 0 | P152: 228 | Q152: 180 | R152: 128 | S152: 126 | T152: 120 | U152: 204 | V152: 120 | W152: 168 | X152: 0 | Y152: 318 | Z152: 0 | AA152: 0 | AB152: 0 | AC152: 86 | AD152: 0 | AE152: 189 | AF152: 0 | AG152: 0 | AH152: 0 | AI152: 0 | AJ152: 0 | AK152: 126 | AL152: 0 | AM152: 0 | AN152: 0 | AO152: 0 | AP152: 41 | AQ152: 0 | AR152: 3511
A153: 能化21-1班 | B153: 2021010514 | C153: 曹哲仁 | D153: =D93*D$66 -> 166 | E153: 46 | F153: 44 | G153: 231 | H153: 276 | I153: 291 | J153: 0 | K153: 336 | L153: 0 | M153: 301 | N153: 184 | O153: 0 | P153: 255 | Q153: 237 | R153: 178 | S153: 174 | T153: 160 | U153: 249 | V153: 178 | W153: 0 | X153: 0 | Y153: 0 | Z153: 0 | AA153: 0 | AB153: 0 | AC153: 89 | AD153: 0 | AE153: 0 | AF153: 0 | AG153: 0 | AH153: 0 | AI153: 0 | AJ153: 0 | AK153: 168 | AL153: 0 | AM153: 0 | AN153: 0 | AO153: 0 | AP153: 44 | AQ153: 0 | AR153: 3606
A154: 能化21-1班 | B154: 2021010515 | C154: 陈骄阳 | D154: =D94*D$66 -> 140 | E154: 43 | F154: 43 | G154: 234 | H154: 225 | I154: 249 | J154: 0 | K154: 259 | L154: 0 | M154: 252 | N154: 164 | O154: 0 | P154: 261 | Q154: 225 | R154: 166 | S154: 154 | T154: 150 | U154: 246 | V154: 150 | W154: 0 | X154: 0 | Y154: 0 | Z154: 0 | AA154: 0 | AB154: 0 | AC154: 88 | AD154: 0 | AE154: 0 | AF154: 316 | AG154: 0 | AH154: 0 | AI154: 0 | AJ154: 0 | AK154: 158 | AL154: 0 | AM154: 0 | AN154: 0 | AO154: 0 | AP154: 43 | AQ154: 0 | AR154: 3565
A155: 能化21-2班 | B155: 2021010395 | C155: 王浙 | D155: =D95*D$66 -> 192 | E155: 47 | F155: 46 | G155: 264 | H155: 285 | I155: 287 | J155: 0 | K155: 336 | L155: 0 | M155: 291 | N155: 184 | O155: 0 | P155: 282 | Q155: 276 | R155: 184 | S155: 174 | T155: 150 | U155: 267 | V155: 174 | W155: 0 | X155: 0 | Y155: 0 | Z155: 0 | AA155: 0 | AB155: 0 | AC155: 84 | AD155: 0 | AE155: 0 | AF155: 0 | AG155: 0 | AH155: 0 | AI155: 0 | AJ155: 0 | AK155: 184 | AL155: 0 | AM155: 0 | AN155: 0 | AO155: 0 | AP155: 46 | AQ155: 0 | AR155: 3752
A156: 能化21-2班 | B156: 2021010403 | C156: 崔珈榕 | D156: =D96*D$66 -> 126 | E156: 36 | F156: 37 | G156: 246 | H156: 216 | I156: 196 | J156: 0 | K156: 161 | L156: 0 | M156: 210 | N156: 168 | O156: 0 | P156: 237 | Q156: 246 | R156: 164 | S156: 120 | T156: 140 | U156: 216 | V156: 120 | W156: 0 | X156: 0 | Y156: 0 | Z156: 0 | AA156: 0 | AB156: 0 | AC156: 80 | AD156: 0 | AE156: 183 | AF156: 0 | AG156: 0 | AH156: 0 | AI156: 0 | AJ156: 0 | AK156: 150 | AL156: 0 | AM156: 0 | AN156: 0 | AO156: 0 | AP156: 42 | AQ156: 0 | AR156: 3094
A157: 能化21-2班 | B157: 2021010409 | C157: 刘兴旺 | D157: =D97*D$66 -> 124 | E157: 43 | F157: 40 | G157: 243 | H157: 222 | I157: 210 | J157: 0 | K157: 263 | L157: 0 | M157: 245 | N157: 148 | O157: 0 | P157: 264 | Q157: 237 | R157: 154 | S157: 120 | T157: 144 | U157: 207 | V157: 122 | W157: 0 | X157: 0 | Y157: 0 | Z157: 0 | AA157: 0 | AB157: 0 | AC157: 79 | AD157: 0 | AE157: 0 | AF157: 0 | AG157: 0 | AH157: 0 | AI157: 0 | AJ157: 0 | AK157: 140 | AL157: 0 | AM157: 0 | AN157: 0 | AO157: 0 | AP157: 40 | AQ157: 0 | AR157: 3044
A158: 能化21-2班 | B158: 2021010412 | C158: 陈逸飞 | D158: =D98*D$66 -> 122 | E158: 41 | F158: 43 | G158: 252 | H158: 243 | I158: 231 | J158: 0 | K158: 287 | L158: 0 | M158: 270 | N158: 150 | O158: 0 | P158: 264 | Q158: 249 | R158: 158 | S158: 128 | T158: 150 | U158: 234 | V158: 140 | W158: 0 | X158: 0 | Y158: 0 | Z158: 0 | AA158: 0 | AB158: 0 | AC158: 80 | AD158: 0 | AE158: 0 | AF158: 0 | AG158: 0 | AH158: 0 | AI158: 0 | AJ158: 0 | AK158: 174 | AL158: 0 | AM158: 0 | AN158: 0 | AO158: 0 | AP158: 43 | AQ158: 0 | AR158: 3258
A159: 能化21-2班 | B159: 2021010413 | C159: 林云志 | D159: =D99*D$66 -> 120 | E159: 33 | F159: 39 | G159: 231 | H159: 201 | I159: 221 | J159: 0 | K159: 231 | L159: 0 | M159: 210 | N159: 146 | O159: 0 | P159: 261 | Q159: 258 | R159: 140 | S159: 122 | T159: 134 | U159: 213 | V159: 134 | W159: 0 | X159: 0 | Y159: 0 | Z159: 300 | AA159: 0 | AB159: 0 | AC159: 80 | AD159: 0 | AE159: 0 | AF159: 0 | AG159: 0 | AH159: 228 | AI159: 172 | AJ159: 0 | AK159: 126 | AL159: 0 | AM159: 0 | AN159: 0 | AO159: 0 | AP159: 43 | AQ159: 0 | AR159: 3642
A160: 能化21-2班 | B160: 2021010419 | C160: 鲁鹤宇 | D160: =D100*D$66 -> 66 | E160: 38 | F160: 38 | G160: 27 | H160: 210 | I160: 119 | J160: 0 | K160: 147 | L160: 0 | M160: 158 | N160: 148 | O160: 104 | P160: 63 | Q160: 228 | R160: 106 | S160: 122 | T160: 132 | U160: 198 | V160: 100 | W160: 0 | X160: 0 | Y160: 282 | Z160: 0 | AA160: 0 | AB160: 0 | AC160: 78 | AD160: 0 | AE160: 0 | AF160: 0 | AG160: 0 | AH160: 0 | AI160: 22 | AJ160: 71 | AK160: 126 | AL160: 0 | AM160: 0 | AN160: 0 | AO160: 0 | AP160: 44 | AQ160: 0 | AR160: 2624
A161: 能化21-2班 | B161: 2021010426 | C161: 杨凯迪 | D161: =D101*D$66 -> 120 | E161: 33 | F161: 37 | G161: 222 | H161: 207 | I161: 137 | J161: 245 | K161: 133 | L161: 0 | M161: 210 | N161: 142 | O161: 0 | P161: 246 | Q161: 222 | R161: 130 | S161: 70 | T161: 130 | U161: 198 | V161: 120 | W161: 0 | X161: 0 | Y161: 0 | Z161: 255 | AA161: 0 | AB161: 0 | AC161: 78 | AD161: 0 | AE161: 207 | AF161: 0 | AG161: 0 | AH161: 0 | AI161: 0 | AJ161: 0 | AK161: 122 | AL161: 0 | AM161: 0 | AN161: 0 | AO161: 0 | AP161: 42 | AQ161: 0 | AR161: 3305
A162: 能化21-2班 | B162: 2021010427 | C162: 张金坤 | D162: =D102*D$66 -> 140 | E162: 42 | F162: 35 | G162: 192 | H162: 201 | I162: 221 | J162: 0 | K162: 210 | L162: 0 | M162: 263 | N162: 142 | O162: 0 | P162: 273 | Q162: 243 | R162: 170 | S162: 122 | T162: 142 | U162: 213 | V162: 142 | W162: 207 | X162: 0 | Y162: 0 | Z162: 0 | AA162: 0 | AB162: 0 | AC162: 80 | AD162: 0 | AE162: 0 | AF162: 0 | AG162: 0 | AH162: 0 | AI162: 0 | AJ162: 0 | AK162: 164 | AL162: 0 | AM162: 0 | AN162: 0 | AO162: 0 | AP162: 43 | AQ162: 0 | AR162: 3244
A163: 能化21-2班 | B163: 2021010439 | C163: 吴晗毓 | D163: =D103*D$66 -> 150 | E163: 43 | F163: 0 | G163: 246 | H163: 255 | I163: 214 | J163: 0 | K163: 224 | L163: 0 | M163: 214 | N163: 164 | O163: 0 | P163: 267 | Q163: 240 | R163: 154 | S163: 172 | T163: 138 | U163: 219 | V163: 154 | W163: 0 | X163: 0 | Y163: 0 | Z163: 0 | AA163: 0 | AB163: 0 | AC163: 84 | AD163: 0 | AE163: 0 | AF163: 0 | AG163: 0 | AH163: 0 | AI163: 0 | AJ163: 0 | AK163: 148 | AL163: 0 | AM163: 0 | AN163: 0 | AO163: 0 | AP163: 46 | AQ163: 0 | AR163: 3131
A164: 能化21-2班 | B164: 2021010450 | C164: 周围 | D164: =D104*D$66 -> 144 | E164: 42 | F164: 45 | G164: 240 | H164: 216 | I164: 203 | J164: 0 | K164: 235 | L164: 0 | M164: 252 | N164: 152 | O164: 0 | P164: 264 | Q164: 273 | R164: 166 | S164: 120 | T164: 146 | U164: 210 | V164: 120 | W164: 0 | X164: 0 | Y164: 0 | Z164: 0 | AA164: 158 | AB164: 0 | AC164: 80 | AD164: 0 | AE164: 201 | AF164: 0 | AG164: 0 | AH164: 0 | AI164: 168 | AJ164: 0 | AK164: 152 | AL164: 0 | AM164: 0 | AN164: 0 | AO164: 0 | AP164: 43 | AQ164: 0 | AR164: 3629
A165: 能化21-2班 | B165: 2021010461 | C165: 杨嘉琦 | D165: =D105*D$66 -> 164 | E165: 45 | F165: 42 | G165: 264 | H165: 264 | I165: 245 | J165: 0 | K165: 266 | L165: 0 | M165: 263 | N165: 160 | O165: 0 | P165: 267 | Q165: 258 | R165: 194 | S165: 174 | T165: 142 | U165: 237 | V165: 142 | W165: 0 | X165: 0 | Y165: 0 | Z165: 0 | AA165: 0 | AB165: 0 | AC165: 85 | AD165: 0 | AE165: 0 | AF165: 0 | AG165: 0 | AH165: 0 | AI165: 0 | AJ165: 0 | AK165: 162 | AL165: 0 | AM165: 0 | AN165: 0 | AO165: 0 | AP165: 46 | AQ165: 0 | AR165: 3419
A166: 能化21-2班 | B166: 2021010462 | C166: 武晗 | D166: =D106*D$66 -> 120 | E166: 45 | F166: 43 | G166: 234 | H166: 252 | I166: 182 | J166: 210 | K166: 249 | L166: 0 | M166: 214 | N166: 170 | O166: 0 | P166: 237 | Q166: 240 | R166: 160 | S166: 136 | T166: 136 | U166: 210 | V166: 150 | W166: 0 | X166: 0 | Y166: 0 | Z166: 0 | AA166: 0 | AB166: 0 | AC166: 84 | AD166: 0 | AE166: 0 | AF166: 0 | AG166: 0 | AH166: 192 | AI166: 0 | AJ166: 0 | AK166: 158 | AL166: 0 | AM166: 0 | AN166: 0 | AO166: 0 | AP166: 42 | AQ166: 0 | AR166: 3463
A167: 能化21-2班 | B167: 2021010464 | C167: 周香格 | D167: =D107*D$66 -> 120 | E167: 38 | F167: 39 | G167: 204 | H167: 231 | I167: 210 | J167: 210 | K167: 182 | L167: 0 | M167: 210 | N167: 146 | O167: 0 | P167: 246 | Q167: 249 | R167: 140 | S167: 120 | T167: 128 | U167: 186 | V167: 136 | W167: 150 | X167: 0 | Y167: 0 | Z167: 0 | AA167: 0 | AB167: 0 | AC167: 83 | AD167: 0 | AE167: 186 | AF167: 0 | AG167: 0 | AH167: 0 | AI167: 0 | AJ167: 0 | AK167: 158 | AL167: 0 | AM167: 0 | AN167: 0 | AO167: 0 | AP167: 42 | AQ167: 0 | AR167: 3413
A168: 能化21-2班 | B168: 2021010466 | C168: 程嘉欣 | D168: =D108*D$66 -> 144 | E168: 45 | F168: 46 | G168: 261 | H168: 261 | I168: 224 | J168: 0 | K168: 217 | L168: 0 | M168: 245 | N168: 178 | O168: 0 | P168: 267 | Q168: 273 | R168: 154 | S168: 172 | T168: 158 | U168: 237 | V168: 150 | W168: 0 | X168: 0 | Y168: 0 | Z168: 0 | AA168: 172 | AB168: 0 | AC168: 86 | AD168: 0 | AE168: 0 | AF168: 0 | AG168: 0 | AH168: 0 | AI168: 174 | AJ168: 0 | AK168: 178 | AL168: 0 | AM168: 0 | AN168: 0 | AO168: 0 | AP168: 45 | AQ168: 0 | AR168: 3687
A169: 能化21-2班 | B169: 2021010467 | C169: 颜伊宁 | D169: =D109*D$66 -> 148 | E169: 46 | F169: 46 | G169: 258 | H169: 261 | I169: 224 | J169: 0 | K169: 287 | L169: 0 | M169: 256 | N169: 174 | O169: 0 | P169: 267 | Q169: 261 | R169: 166 | S169: 178 | T169: 150 | U169: 237 | V169: 158 | W169: 0 | X169: 0 | Y169: 0 | Z169: 0 | AA169: 0 | AB169: 0 | AC169: 84 | AD169: 0 | AE169: 0 | AF169: 0 | AG169: 0 | AH169: 0 | AI169: 0 | AJ169: 0 | AK169: 172 | AL169: 0 | AM169: 0 | AN169: 0 | AO169: 0 | AP169: 45 | AQ169: 0 | AR169: 3417
A170: 能化21-2班 | B170: 2021010470 | C170: 刘睿扬 | D170: =D110*D$66 -> 160 | E170: 46 | F170: 46 | G170: 255 | H170: 270 | I170: 217 | J170: 0 | K170: 263 | L170: 0 | M170: 235 | N170: 168 | O170: 0 | P170: 261 | Q170: 264 | R170: 190 | S170: 176 | T170: 154 | U170: 264 | V170: 142 | W170: 0 | X170: 0 | Y170: 0 | Z170: 0 | AA170: 170 | AB170: 0 | AC170: 83 | AD170: 0 | AE170: 0 | AF170: 0 | AG170: 0 | AH170: 0 | AI170: 174 | AJ170: 0 | AK170: 158 | AL170: 0 | AM170: 0 | AN170: 0 | AO170: 0 | AP170: 46 | AQ170: 0 | AR170: 3740
A171: 能化21-2班 | B171: 2021010471 | C171: 柳子涵 | D171: =D111*D$66 -> 144 | E171: 41 | F171: 45 | G171: 240 | H171: 249 | I171: 172 | J171: 193 | K171: 217 | L171: 0 | M171: 210 | N171: 158 | O171: 0 | P171: 261 | Q171: 234 | R171: 134 | S171: 120 | T171: 130 | U171: 234 | V171: 150 | W171: 165 | X171: 0 | Y171: 0 | Z171: 280 | AA171: 0 | AB171: 0 | AC171: 81 | AD171: 0 | AE171: 153 | AF171: 0 | AG171: 0 | AH171: 0 | AI171: 0 | AJ171: 0 | AK171: 182 | AL171: 0 | AM171: 0 | AN171: 0 | AO171: 0 | AP171: 44 | AQ171: 0 | AR171: 3835
A172: 能化21-2班 | B172: 2021010475 | C172: 蒲文博 | D172: =D112*D$66 -> 140 | E172: 42 | F172: 37 | G172: 252 | H172: 246 | I172: 214 | J172: 0 | K172: 231 | L172: 0 | M172: 231 | N172: 140 | O172: 0 | P172: 255 | Q172: 240 | R172: 136 | S172: 120 | T172: 152 | U172: 225 | V172: 124 | W172: 222 | X172: 0 | Y172: 0 | Z172: 0 | AA172: 0 | AB172: 0 | AC172: 85 | AD172: 0 | AE172: 0 | AF172: 0 | AG172: 0 | AH172: 0 | AI172: 0 | AJ172: 0 | AK172: 154 | AL172: 95 | AM172: 0 | AN172: 0 | AO172: 0 | AP172: 41 | AQ172: 0 | AR172: 3381
A173: 能化21-2班 | B173: 2021010476 | C173: 齐翔龙 | D173: =D113*D$66 -> 132 | E173: 41 | F173: 42 | G173: 216 | H173: 234 | I173: 179 | J173: 144 | K173: 221 | L173: 0 | M173: 210 | N173: 132 | O173: 0 | P173: 249 | Q173: 243 | R173: 120 | S173: 94 | T173: 148 | U173: 222 | V173: 122 | W173: 180 | X173: 0 | Y173: 0 | Z173: 0 | AA173: 170 | AB173: 0 | AC173: 83 | AD173: 0 | AE173: 0 | AF173: 0 | AG173: 0 | AH173: 168 | AI173: 170 | AJ173: 0 | AK173: 156 | AL173: 0 | AM173: 70 | AN173: 0 | AO173: 0 | AP173: 43 | AQ173: 0 | AR173: 3786
A174: 能化21-2班 | B174: 2021010477 | C174: 何余胜 | D174: =D114*D$66 -> 120 | E174: 36 | F174: 40 | G174: 234 | H174: 207 | I174: 126 | J174: 130 | K174: 137 | L174: 0 | M174: 210 | N174: 146 | O174: 0 | P174: 249 | Q174: 219 | R174: 160 | S174: 120 | T174: 140 | U174: 204 | V174: 122 | W174: 165 | X174: 0 | Y174: 0 | Z174: 0 | AA174: 0 | AB174: 0 | AC174: 82 | AD174: 0 | AE174: 180 | AF174: 0 | AG174: 0 | AH174: 0 | AI174: 0 | AJ174: 0 | AK174: 150 | AL174: 0 | AM174: 0 | AN174: 0 | AO174: 0 | AP174: 43 | AQ174: 0 | AR174: 3219
A175: 能化21-2班 | B175: 2021010478 | C175: 常一帆 | D175: =D115*D$66 -> 136 | E175: 39 | F175: 41 | G175: 213 | H175: 216 | I175: 193 | J175: 203 | K175: 238 | L175: 0 | M175: 214 | N175: 156 | O175: 0 | P175: 237 | Q175: 225 | R175: 144 | S175: 134 | T175: 140 | U175: 216 | V175: 160 | W175: 0 | X175: 0 | Y175: 0 | Z175: 0 | AA175: 0 | AB175: 0 | AC175: 80 | AD175: 0 | AE175: 180 | AF175: 0 | AG175: 0 | AH175: 0 | AI175: 0 | AJ175: 0 | AK175: 150 | AL175: 0 | AM175: 0 | AN175: 0 | AO175: 0 | AP175: 42 | AQ175: 0 | AR175: 3356
A176: 能化21-2班 | B176: 2021010479 | C176: 覃师凯 | D176: =D116*D$66 -> 140 | E176: 37 | F176: 41 | G176: 219 | H176: 201 | I176: 210 | J176: 0 | K176: 210 | L176: 0 | M176: 210 | N176: 164 | O176: 0 | P176: 264 | Q176: 237 | R176: 166 | S176: 120 | T176: 132 | U176: 207 | V176: 144 | W176: 207 | X176: 0 | Y176: 0 | Z176: 0 | AA176: 0 | AB176: 0 | AC176: 90 | AD176: 0 | AE176: 0 | AF176: 0 | AG176: 0 | AH176: 0 | AI176: 0 | AJ176: 0 | AK176: 180 | AL176: 100 | AM176: 0 | AN176: 0 | AO176: 0 | AP176: 45 | AQ176: 0 | AR176: 3323
A177: 能化21-2班 | B177: 2021010486 | C177: 鹿麒麟 | D177: =D117*D$66 -> 198 | E177: 48 | F177: 47 | G177: 282 | H177: 291 | I177: 305 | J177: 0 | K177: 340 | L177: 0 | M177: 315 | N177: 186 | O177: 0 | P177: 288 | Q177: 285 | R177: 198 | S177: 200 | T177: 192 | U177: 282 | V177: 174 | W177: 0 | X177: 0 | Y177: 0 | Z177: 0 | AA177: 0 | AB177: 0 | AC177: 92 | AD177: 0 | AE177: 0 | AF177: 0 | AG177: 0 | AH177: 0 | AI177: 0 | AJ177: 0 | AK177: 194 | AL177: 0 | AM177: 0 | AN177: 0 | AO177: 0 | AP177: 49 | AQ177: 0 | AR177: 3965
A178: 能化21-2班 | B178: 2021010487 | C178: 吴隆卓 | D178: =D118*D$66 -> 130 | E178: 36 | F178: 33 | G178: 228 | H178: 201 | I178: 189 | J178: 235 | K178: 151 | L178: 0 | M178: 217 | N178: 150 | O178: 0 | P178: 255 | Q178: 234 | R178: 168 | S178: 120 | T178: 138 | U178: 213 | V178: 122 | W178: 189 | X178: 0 | Y178: 0 | Z178: 0 | AA178: 0 | AB178: 0 | AC178: 84 | AD178: 0 | AE178: 180 | AF178: 0 | AG178: 0 | AH178: 0 | AI178: 0 | AJ178: 0 | AK178: 138 | AL178: 0 | AM178: 0 | AN178: 0 | AO178: 0 | AP178: 43 | AQ178: 0 | AR178: 3453
A179: 能化21-2班 | B179: 2021010492 | C179: 左笑维 | D179: =D119*D$66 -> 186 | E179: 44 | F179: 30 | G179: 255 | H179: 249 | I179: 284 | J179: 0 | K179: 322 | L179: 0 | M179: 280 | N179: 176 | O179: 0 | P179: 252 | Q179: 264 | R179: 170 | S179: 190 | T179: 174 | U179: 249 | V179: 162 | W179: 0 | X179: 0 | Y179: 0 | Z179: 0 | AA179: 0 | AB179: 0 | AC179: 80 | AD179: 0 | AE179: 0 | AF179: 0 | AG179: 0 | AH179: 0 | AI179: 0 | AJ179: 0 | AK179: 174 | AL179: 0 | AM179: 0 | AN179: 0 | AO179: 0 | AP179: 46 | AQ179: 0 | AR179: 3586
A180: 能化21-2班 | B180: 2021010501 | C180: 陈湘宜 | D180: =D120*D$66 -> 124 | E180: 40 | F180: 43 | G180: 249 | H180: 225 | I180: 210 | J180: 0 | K180: 231 | L180: 0 | M180: 210 | N180: 156 | O180: 0 | P180: 264 | Q180: 249 | R180: 142 | S180: 134 | T180: 136 | U180: 237 | V180: 134 | W180: 225 | X180: 0 | Y180: 0 | Z180: 0 | AA180: 0 | AB180: 0 | AC180: 81 | AD180: 0 | AE180: 0 | AF180: 0 | AG180: 0 | AH180: 0 | AI180: 0 | AJ180: 0 | AK180: 158 | AL180: 0 | AM180: 0 | AN180: 0 | AO180: 0 | AP180: 42 | AQ180: 0 | AR180: 3289
A181: 能化21-2班 | B181: 2021010502 | C181: 王晨宣 | D181: =D121*D$66 -> 142 | E181: 44 | F181: 41 | G181: 243 | H181: 261 | I181: 249 | J181: 0 | K181: 280 | L181: 0 | M181: 249 | N181: 168 | O181: 0 | P181: 270 | Q181: 252 | R181: 186 | S181: 186 | T181: 164 | U181: 258 | V181: 144 | W181: 0 | X181: 0 | Y181: 0 | Z181: 0 | AA181: 0 | AB181: 0 | AC181: 82 | AD181: 0 | AE181: 0 | AF181: 0 | AG181: 0 | AH181: 0 | AI181: 0 | AJ181: 0 | AK181: 168 | AL181: 0 | AM181: 0 | AN181: 0 | AO181: 0 | AP181: 43 | AQ181: 0 | AR181: 3429
A182: 能化21-2班 | B182: 2021010506 | C182: 陈国荣 | D182: =D122*D$66 -> 160 | E182: 42 | F182: 42 | G182: 234 | H182: 225 | I182: 252 | J182: 0 | K182: 301 | L182: 0 | M182: 256 | N182: 152 | O182: 0 | P182: 246 | Q182: 252 | R182: 156 | S182: 152 | T182: 152 | U182: 231 | V182: 152 | W182: 0 | X182: 0 | Y182: 0 | Z182: 0 | AA182: 152 | AB182: 0 | AC182: 80 | AD182: 0 | AE182: 0 | AF182: 0 | AG182: 0 | AH182: 0 | AI182: 158 | AJ182: 0 | AK182: 168 | AL182: 96 | AM182: 0 | AN182: 0 | AO182: 0 | AP182: 45 | AQ182: 0 | AR182: 3703
A183: 能化21-2班 | B183: 2021010521 | C183: 王梓涵 | D183: =D123*D$66 -> 162 | E183: 40 | F183: 43 | G183: 222 | H183: 270 | I183: 252 | J183: 0 | K183: 298 | L183: 0 | M183: 266 | N183: 170 | O183: 0 | P183: 276 | Q183: 273 | R183: 184 | S183: 188 | T183: 154 | U183: 237 | V183: 172 | W183: 0 | X183: 0 | Y183: 0 | Z183: 0 | AA183: 0 | AB183: 0 | AC183: 81 | AD183: 0 | AE183: 0 | AF183: 0 | AG183: 0 | AH183: 0 | AI183: 0 | AJ183: 0 | AK183: 182 | AL183: 0 | AM183: 0 | AN183: 0 | AO183: 0 | AP183: 45 | AQ183: 0 | AR183: 3514

Sheet 【智育】选修成绩
D2: 100305T067 | E2: 100308T009 | F2: 100308T017 | G2: 100328T003 | H2: 100514G032 | I2: 100719G001 | J2: 100855G007 | K2: 100866G002 | L2: 100866G006 | M2: 100866G010 | N2: 100877G006 | O2: 100877G009 | P2: 100877G011 | Q2: 100877G038 | R2: 100925G058 | S2: 100925G085 | T2: 100925G114 | U2: 101099G040 | V2: 101400G002
D3: 新材料概论（全英文） | E3: 能源化学工程专业英语 | F3: 能源工程基础 | G3: 能源转化催化原理 | H3: Linux系统及应用 | I3: 经济学基础 | J3: 中国古代小说赏析 | K3: 素描 | L3: 乐理与视唱 | M3: 音乐审美与名曲博览 | N3: 两岸关系与台海问题 | O3: 西方哲学思潮 | P3: 民法概论 | Q3: 国际能源政治 | R3: 日语入门 | S3: 英美戏剧赏读 | T3: 英汉互译实践与技巧 | U3: 围棋（慕课） | V3: 信息检索与网络资源利用
A4: 班级 | B4: 学号 | C4: 姓名 | D4: 2 | E4: 2 | F4: 2 | G4: 2 | H4: 2 | I4: 2 | J4: 2 | K4: 2 | L4: 2 | M4: 2 | N4: 2 | O4: 2 | P4: 2 | Q4: 2 | R4: 4 | S4: 2 | T4: 2 | U4: 1.5 | V4: 2
A5: 能化21-1班 | B5: 2020010644 | C5: 李硕 | H5: 84
A6: 能化21-1班 | B6: 2021010374 | C6: 何若妍 | G6: 95
A7: 能化21-1班 | B7: 2021010376 | C7: 李传洋 | E7: 68 | F7: 67 | I7: 9 | K7: 0 | M7: 83 | O7: 72 | S7: 78
A8: 能化21-1班 | B8: 2021010377 | C8: 甘浩 | D8: 16 | F8: 60 | K8: 80 | M8: 75 | P8: 0 | S8: 77 | V8: 72
A9: 能化21-1班 | B9: 2021010380 | C9: 詹作鑫 | F9: 90 | Q9: 87 | R9: 82 | U9: 93
A10: 能化21-1班 | B10: 2021010381 | C10: 李维昊 | F10: 60 | K10: 82 | P10: 0 | V10: 62
A11: 能化21-1班 | B11: 2021010382 | C11: 王理哲 | E11: 81 | F11: 61
A12: 能化21-1班 | B12: 2021010387 | C12: 李洪博 | E12: 88 | F12: 68 [49,68重1]
A13: 能化21-1班 | B13: 2021010389 | C13: 李臻彦 | E13: 85 | F13: 60 | G13: 70
A14: 能化21-1班 | B14: 2021010392 | C14: 苏辛一 | G14: 60 | T14: 90
A15: 能化21-1班 | B15: 2021010393 | C15: 唐顾玮 | F15: 61 | G15: 69
A16: 能化21-1班 | B16: 2021010428 | C16: 周忠康 | E16: 88 | F16: 75
A17: 能化21-1班 | B17: 2021010431 | C17: 王医灵 | E17: 90 | G17: 76 | V17: 86
A18: 能化21-1班 | B18: 2021010432 | C18: 梁卓文 | F18: 60 | G18: 74
A19: 能化21-1班 | B19: 2021010433 | C19: 朱佳怡 | F19: 65 | G19: 67
A20: 能化21-1班 | B20: 2021010442 | C20: 裴俊豪 | F20: 80 | V20: 93
A21: 能化21-1班 | B21: 2021010443 | C21: 鲍怡帅 | E21: 78 | F21: 61 | V21: 85
A22: 能化21-1班 | B22: 2021010445 | C22: 耿智鸿 | F22: 72 | V22: 81
A23: 能化21-1班 | B23: 2021010457 | C23: 栾俊添 | G23: 90
A24: 能化21-1班 | B24: 2021010465 | C24: 潘思迪 | E24: 87 | G24: 92
A25: 能化21-1班 | B25: 2021010482 | C25: 王岩青 | F25: 70 | G25: 83
A26: 能化21-1班 | B26: 2021010493 | C26: 李燕琴 | F26: 64 | G26: 76
A27: 能化21-1班 | B27: 2021010494 | C27: 黄镜 | G27: 70 | V27: 80
A28: 能化21-1班 | B28: 2021010496 | C28: 解天羽 | F28: 75 | G28: 86
A29: 能化21-1班 | B29: 2021010498 | C29: 阿力木努·赛买提 | G29: 64
A30: 能化21-1班 | B30: 2021010513 | C30: 曹逸恒 | E30: 76 | F30: 56 | G30: 60 | N30: 63 | V30: 90
A31: 能化21-1班 | B31: 2021010514 | C31: 曹哲仁 | F31: 71 | G31: 85 | V31: 90
A32: 能化21-1班 | B32: 2021010515 | C32: 陈骄阳 | F32: 61 | G32: 64 | V32: 86
A33: 能化21-2班 | B33: 2021010395 | C33: 王浙 | G33: 94
A34: 能化21-2班 | B34: 2021010403 | C34: 崔珈榕 | F34: 77
A35: 能化21-2班 | B35: 2021010409 | C35: 刘兴旺 | F35: 70 | G35: 64 | U35: 75 | V35: 72
A36: 能化21-2班 | B36: 2021010412 | C36: 陈逸飞 | F36: 74 | G36: 79
A37: 能化21-2班 | B37: 2021010413 | C37: 林云志 | V37: 66
A38: 能化21-2班 | B38: 2021010419 | C38: 鲁鹤宇 | F38: 27
A39: 能化21-2班 | B39: 2021010426 | C39: 杨凯迪 | F39: 79 [44,79重1] | G39: 65 | V39: 60
A40: 能化21-2班 | B40: 2021010427 | C40: 张金坤 | E40: 85 | F40: 70
A41: 能化21-2班 | B41: 2021010439 | C41: 吴晗毓 | F41: 65 | J41: 84
A42: 能化21-2班 | B42: 2021010450 | C42: 周围 | G42: 71 | V42: 80
A43: 能化21-2班 | B43: 2021010461 | C43: 杨嘉琦 | F43: 81 | V43: 83
A44: 能化21-2班 | B44: 2021010462 | C44: 武晗 | F44: 87 | G44: 82
A45: 能化21-2班 | B45: 2021010464 | C45: 周香格 | F45: 70 | G45: 73 | L45: 88 | M45: 83 | V45: 77
A46: 能化21-2班 | B46: 2021010466 | C46: 程嘉欣 | G46: 86
A47: 能化21-2班 | B47: 2021010467 | C47: 颜伊宁 | F47: 88 | G47: 91 | V47: 90
A48: 能化21-2班 | B48: 2021010470 | C48: 刘睿扬 | V48: 92
A49: 能化21-2班 | B49: 2021010471 | C49: 柳子涵 | F49: 81
A50: 能化21-2班 | B50: 2021010475 | C50: 蒲文博 | F50: 69 | V50: 92
A51: 能化21-2班 | B51: 2021010476 | C51: 齐翔龙 | E51: 83 | F51: 67 | V51: 83
A52: 能化21-2班 | B52: 2021010477 | C52: 何余胜 | E52: 76 | F52: 77 [55,77重1] | V52: 71
A53: 能化21-2班 | B53: 2021010478 | C53: 常一帆 | F53: 62 | G53: 76
A54: 能化21-2班 | B54: 2021010479 | C54: 覃师凯 | G54: 63
A55: 能化21-2班 | B55: 2021010486 | C55: 鹿麒麟 | V55: 97
A56: 能化21-2班 | B56: 2021010487 | C56: 吴隆卓 | E56: 82 | F56: 81 | O56: 77 | V56: 80
A57: 能化21-2班 | B57: 2021010492 | C57: 左笑维 | F57: 79 | G57: 91
A58: 能化21-2班 | B58: 2021010501 | C58: 陈湘宜 | G58: 91
A59: 能化21-2班 | B59: 2021010502 | C59: 王晨宣 | G59: 93
A60: 能化21-2班 | B60: 2021010506 | C60: 陈国荣 | F60: 70 | V60: 77
A61: 能化21-2班 | B61: 2021010521 | C61: 王梓涵 | E61: 91 | G61: 90 | V61: 92
D64: 100305T067 | E64: 100308T009 | F64: 100308T017 | G64: 100328T003 | H64: 100514G032 | I64: 100719G001 | J64: 100855G007 | K64: 100866G002 | L64: 100866G006 | M64: 100866G010 | N64: 100877G006 | O64: 100877G009 | P64: 100877G011 | Q64: 100877G038 | R64: 100925G058 | S64: 100925G085 | T64: 100925G114 | U64: 101099G040 | V64: 101400G002
D65: 新材料概论（全英文） | E65: 能源化学工程专业英语 | F65: 能源工程基础 | G65: 能源转化催化原理 | H65: Linux系统及应用 | I65: 经济学基础 | J65: 中国古代小说赏析 | K65: 素描 | L65: 乐理与视唱 | M65: 音乐审美与名曲博览 | N65: 两岸关系与台海问题 | O65: 西方哲学思潮 | P65: 民法概论 | Q65: 国际能源政治 | R65: 日语入门 | S65: 英美戏剧赏读 | T65: 英汉互译实践与技巧 | U65: 围棋（慕课） | V65: 信息检索与网络资源利用
A66: 班级 | B66: 学号 | C66: 姓名 | D66: 2.0 | E66: 2.0 | F66: 2.0 | G66: 2.0 | H66: 2.0 | I66: 2.0 | J66: 2.0 | K66: 2.0 | L66: 2.0 | M66: 2.0 | N66: 2.0 | O66: 2.0 | P66: 2.0 | Q66: 2.0 | R66: 4.0 | S66: 2.0 | T66: 2.0 | U66: 1.5 | V66: 2.0 | W66: 选修学分 | X66: 选修学分绩 | Y66: 选修加权平均绩
A67: 能化21-1班 | B67: 2020010644 | C67: 李硕 | H67: 84 | W67: =SUMIF(D67:V67,">=0",D$66:V$66) -> 2.0 | X67: 168 | Y67: =X67/W67 -> 84.000
A68: 能化21-1班 | B68: 2021010374 | C68: 何若妍 | G68: 95 | W68: =SUMIF(D68:V68,">=0",D$66:V$66) -> 2.0 | X68: 190 | Y68: =X68/W68 -> 95.000
A69: 能化21-1班 | B69: 2021010376 | C69: 李传洋 | E69: 68 | F69: 67 | I69: 9 | K69: 0 | M69: 83 | O69: 72 | S69: 78 | W69: 14.0 | X69: 754 | Y69: 53.857
A70: 能化21-1班 | B70: 2021010377 | C70: 甘浩 | D70: 16 | F70: 60 | K70: 80 | M70: 75 | P70: 0 | S70: 77 | V70: 72 | W70: 14.0 | X70: 760 | Y70: 54.286
A71: 能化21-1班 | B71: 2021010380 | C71: 詹作鑫 | F71: 90 | Q71: 87 | R71: 82 | U71: 93 | W71: 9.5 | X71: 822 | Y71: 86.474
A72: 能化21-1班 | B72: 2021010381 | C72: 李维昊 | F72: 60 | K72: 82 | P72: 0 | V72: 62 | W72: 8.0 | X72: 408 | Y72: 51.000
A73: 能化21-1班 | B73: 2021010382 | C73: 王理哲 | E73: 81 | F73: 61 | W73: 4.0 | X73: 284 | Y73: 71.000
A74: 能化21-1班 | B74: 2021010387 | C74: 李洪博 | E74: 88 | F74: 68 | W74: 4.0 | X74: 312 | Y74: 78.000
A75: 能化21-1班 | B75: 2021010389 | C75: 李臻彦 | E75: 85 | F75: 60 | G75: 70 | W75: 6.0 | X75: 430 | Y75: 71.667
A76: 能化21-1班 | B76: 2021010392 | C76: 苏辛一 | G76: 60 | T76: 90 | W76: 4.0 | X76: 300 | Y76: 75.000
A77: 能化21-1班 | B77: 2021010393 | C77: 唐顾玮 | F77: 61 | G77: 69 | W77: 4.0 | X77: 260 | Y77: 65.000
A78: 能化21-1班 | B78: 2021010428 | C78: 周忠康 | E78: 88 | F78: 75 | W78: 4.0 | X78: 326 | Y78: 81.500
A79: 能化21-1班 | B79: 2021010431 | C79: 王医灵 | E79: 90 | G79: 76 | V79: 86 | W79: 6.0 | X79: 504 | Y79: 84.000
A80: 能化21-1班 | B80: 2021010432 | C80: 梁卓文 | F80: 60 | G80: 74 | W80: 4.0 | X80: 268 | Y80: 67.000
A81: 能化21-1班 | B81: 2021010433 | C81: 朱佳怡 | F81: 65 | G81: 67 | W81: 4.0 | X81: 264 | Y81: 66.000
A82: 能化21-1班 | B82: 2021010442 | C82: 裴俊豪 | F82: 80 | V82: 93 | W82: 4.0 | X82: 346 | Y82: 86.500
A83: 能化21-1班 | B83: 2021010443 | C83: 鲍怡帅 | E83: 78 | F83: 61 | V83: 85 | W83: 6.0 | X83: 448 | Y83: 74.667
A84: 能化21-1班 | B84: 2021010445 | C84: 耿智鸿 | F84: 72 | V84: 81 | W84: 4.0 | X84: 306 | Y84: 76.500
A85: 能化21-1班 | B85: 2021010457 | C85: 栾俊添 | G85: 90 | W85: 2.0 | X85: 180 | Y85: 90.000
A86: 能化21-1班 | B86: 2021010465 | C86: 潘思迪 | E86: 87 | G86: 92 | W86: 4.0 | X86: 358 | Y86: 89.500
A87: 能化21-1班 | B87: 2021010482 | C87: 王岩青 | F87: 70 | G87: 83 | W87: 4.0 | X87: 306 | Y87: 76.500
A88: 能化21-1班 | B88: 2021010493 | C88: 李燕琴 | F88: 64 | G88: 76 | W88: 4.0 | X88: 280 | Y88: 70.000
A89: 能化21-1班 | B89: 2021010494 | C89: 黄镜 | G89: 70 | V89: 80 | W89: 4.0 | X89: 300 | Y89: 75.000
A90: 能化21-1班 | B90: 2021010496 | C90: 解天羽 | F90: 75 | G90: 86 | W90: 4.0 | X90: 322 | Y90: 80.500
A91: 能化21-1班 | B91: 2021010498 | C91: 阿力木努·赛买提 | G91: 64 | W91: 2.0 | X91: 128 | Y91: 64.000
A92: 能化21-1班 | B92: 2021010513 | C92: 曹逸恒 | E92: 76 | F92: 56 | G92: 60 | N92: 63 | V92: 90 | W92: 10.0 | X92: 690 | Y92: 69.000
A93: 能化21-1班 | B93: 2021010514 | C93: 曹哲仁 | F93: 71 | G93: 85 | V93: 90 | W93: 6.0 | X93: 492 | Y93: 82.000
A94: 能化21-1班 | B94: 2021010515 | C94: 陈骄阳 | F94: 61 | G94: 64 | V94: 86 | W94: 6.0 | X94: 422 | Y94: 70.333
A95: 能化21-2班 | B95: 2021010395 | C95: 王浙 | G95: 94 | W95: 2.0 | X95: 188 | Y95: 94.000
A96: 能化21-2班 | B96: 2021010403 | C96: 崔珈榕 | F96: 77 | W96: 2.0 | X96: 154 | Y96: 77.000
A97: 能化21-2班 | B97: 2021010409 | C97: 刘兴旺 | F97: 70 | G97: 64 | U97: 75 | V97: 72 | W97: 7.5 | X97: 525 | Y97: 69.933
A98: 能化21-2班 | B98: 2021010412 | C98: 陈逸飞 | F98: 74 | G98: 79 | W98: 4.0 | X98: 306 | Y98: 76.500
A99: 能化21-2班 | B99: 2021010413 | C99: 林云志 | V99: 66 | W99: 2.0 | X99: 132 | Y99: 66.000
A100: 能化21-2班 | B100: 2021010419 | C100: 鲁鹤宇 | F100: 27 | W100: 2.0 | X100: 54 | Y100: 27.000
A101: 能化21-2班 | B101: 2021010426 | C101: 杨凯迪 | F101: 79 | G101: 65 | V101: 60 | W101: 6.0 | X101: 408 | Y101: 68.000
A102: 能化21-2班 | B102: 2021010427 | C102: 张金坤 | E102: 85 | F102: 70 | W102: 4.0 | X102: 310 | Y102: 77.500
A103: 能化21-2班 | B103: 2021010439 | C103: 吴晗毓 | F103: 65 | J103: 84 | W103: 4.0 | X103: 298 | Y103: 74.500
A104: 能化21-2班 | B104: 2021010450 | C104: 周围 | G104: 71 | V104: 80 | W104: 4.0 | X104: 302 | Y104: 75.500
A105: 能化21-2班 | B105: 2021010461 | C105: 杨嘉琦 | F105: 81 | V105: 83 | W105: 4.0 | X105: 328 | Y105: 82.000
A106: 能化21-2班 | B106: 2021010462 | C106: 武晗 | F106: 87 | G106: 82 | W106: 4.0 | X106: 338 | Y106: 84.500
A107: 能化21-2班 | B107: 2021010464 | C107: 周香格 | F107: 70 | G107: 73 | L107: 88 | M107: 83 | V107: 77 | W107: 10.0 | X107: 782 | Y107: 78.200
A108: 能化21-2班 | B108: 2021010466 | C108: 程嘉欣 | G108: 86 | W108: 2.0 | X108: 172 | Y108: 86.000
A109: 能化21-2班 | B109: 2021010467 | C109: 颜伊宁 | F109: 88 | G109: 91 | V109: 90 | W109: 6.0 | X109: 538 | Y109: 89.667
A110: 能化21-2班 | B110: 2021010470 | C110: 刘睿扬 | V110: 92 | W110: 2.0 | X110: 184 | Y110: 92.000
A111: 能化21-2班 | B111: 2021010471 | C111: 柳子涵 | F111: 81 | W111: 2.0 | X111: 162 | Y111: 81.000
A112: 能化21-2班 | B112: 2021010475 | C112: 蒲文博 | F112: 69 | V112: 92 | W112: 4.0 | X112: 322 | Y112: 80.500
A113: 能化21-2班 | B113: 2021010476 | C113: 齐翔龙 | E113: 83 | F113: 67 | V113: 83 | W113: 6.0 | X113: 466 | Y113: 77.667
A114: 能化21-2班 | B114: 2021010477 | C114: 何余胜 | E114: 76 | F114: 77 | V114: 71 | W114: 6.0 | X114: 448 | Y114: 74.667
A115: 能化21-2班 | B115: 2021010478 | C115: 常一帆 | F115: 62 | G115: 76 | W115: 4.0 | X115: 276 | Y115: 69.000
A116: 能化21-2班 | B116: 2021010479 | C116: 覃师凯 | G116: 63 | W116: 2.0 | X116: 126 | Y116: 63.000
A117: 能化21-2班 | B117: 2021010486 | C117: 鹿麒麟 | V117: 97 | W117: 2.0 | X117: 194 | Y117: 97.000
A118: 能化21-2班 | B118: 2021010487 | C118: 吴隆卓 | E118: 82 | F118: 81 | O118: 77 | V118: 80 | W118: 8.0 | X118: 640 | Y118: 80.000
A119: 能化21-2班 | B119: 2021010492 | C119: 左笑维 | F119: 79 | G119: 91 | W119: 4.0 | X119: 340 | Y119: 85.000
A120: 能化21-2班 | B120: 2021010501 | C120: 陈湘宜 | G120: 91 | W120: 2.0 | X120: 182 | Y120: 91.000
A121: 能化21-2班 | B121: 2021010502 | C121: 王晨宣 | G121: 93 | W121: 2.0 | X121: 186 | Y121: 93.000
A122: 能化21-2班 | B122: 2021010506 | C122: 陈国荣 | F122: 70 | V122: 77 | W122: 4.0 | X122: 294 | Y122: 73.500
A123: 能化21-2班 | B123: 2021010521 | C123: 王梓涵 | E123: 91 | G123: 90 | V123: 92 | W123: 6.0 | X123: 546 | Y123: 91.000
D128: 100305T067 | E128: 100308T009 | F128: 100308T017 | G128: 100328T003 | H128: 100514G032 | I128: 100719G001 | J128: 100855G007 | K128: 100866G002 | L128: 100866G006 | M128: 100866G010 | N128: 100877G006 | O128: 100877G009 | P128: 100877G011 | Q128: 100877G038 | R128: 100925G058 | S128: 100925G085 | T128: 100925G114 | U128: 101099G040 | V128: 101400G002
A129: 班级 | B129: 学号 | C129: 姓名 | D129: 新材料概论（全英文） | E129: 能源化学工程专业英语 | F129: 能源工程基础 | G129: 能源转化催化原理 | H129: Linux系统及应用 | I129: 经济学基础 | J129: 中国古代小说赏析 | K129: 素描 | L129: 乐理与视唱 | M129: 音乐审美与名曲博览 | N129: 两岸关系与台海问题 | O129: 西方哲学思潮 | P129: 民法概论 | Q129: 国际能源政治 | R129: 日语入门 | S129: 英美戏剧赏读 | T129: 英汉互译实践与技巧 | U129: 围棋（慕课） | V129: 信息检索与网络资源利用 | W129: 选修学分绩
A130: 能化21-1班 | B130: 2020010644 | C130: 李硕 | D130: =D$66*D67 -> 0 | E130: =E$66*E67 -> 0 | F130: 0 | G130: 0 | H130: 168 | I130: 0 | J130: 0 | K130: 0 | L130: 0 | M130: 0 | N130: 0 | O130: 0 | P130: 0 | Q130: 0 | R130: 0 | S130: 0 | T130: 0 | U130: 0 | V130: 0 | W130: =SUM(D130:V130) -> 168
A131: 能化21-1班 | B131: 2021010374 | C131: 何若妍 | D131: =D$66*D68 -> 0 | E131: 0 | F131: 0 | G131: 190 | H131: 0 | I131: 0 | J131: 0 | K131: 0 | L131: 0 | M131: 0 | N131: 0 | O131: 0 | P131: 0 | Q131: 0 | R131: 0 | S131: 0 | T131: 0 | U131: 0 | V131: 0 | W131: =SUM(D131:V131) -> 190
A132: 能化21-1班 | B132: 2021010376 | C132: 李传洋 | D132: =D$66*D69 -> 0 | E132: 136 | F132: 134 | G132: 0 | H132: 0 | I132: 18 | J132: 0 | K132: 0 | L132: 0 | M132: 166 | N132: 0 | O132: 144 | P132: 0 | Q132: 0 | R132: 0 | S132: 156 | T132: 0 | U132: 0 | V132: 0 | W132: 754
A133: 能化21-1班 | B133: 2021010377 | C133: 甘浩 | D133: =D$66*D70 -> 32 | E133: 0 | F133: 120 | G133: 0 | H133: 0 | I133: 0 | J133: 0 | K133: 160 | L133: 0 | M133: 150 | N133: 0 | O133: 0 | P133: 0 | Q133: 0 | R133: 0 | S133: 154 | T133: 0 | U133: 0 | V133: 144 | W133: 760
A134: 能化21-1班 | B134: 2021010380 | C134: 詹作鑫 | D134: =D$66*D71 -> 0 | E134: 0 | F134: 180 | G134: 0 | H134: 0 | I134: 0 | J134: 0 | K134: 0 | L134: 0 | M134: 0 | N134: 0 | O134: 0 | P134: 0 | Q134: 174 | R134: 328 | S134: 0 | T134: 0 | U134: 139.5 | V134: 0 | W134: 821.5
A135: 能化21-1班 | B135: 2021010381 | C135: 李维昊 | D135: =D$66*D72 -> 0 | E135: 0 | F135: 120 | G135: 0 | H135: 0 | I135: 0 | J135: 0 | K135: 164 | L135: 0 | M135: 0 | N135: 0 | O135: 0 | P135: 0 | Q135: 0 | R135: 0 | S135: 0 | T135: 0 | U135: 0 | V135: 124 | W135: 408
A136: 能化21-1班 | B136: 2021010382 | C136: 王理哲 | D136: =D$66*D73 -> 0 | E136: 162 | F136: 122 | G136: 0 | H136: 0 | I136: 0 | J136: 0 | K136: 0 | L136: 0 | M136: 0 | N136: 0 | O136: 0 | P136: 0 | Q136: 0 | R136: 0 | S136: 0 | T136: 0 | U136: 0 | V136: 0 | W136: 284
A137: 能化21-1班 | B137: 2021010387 | C137: 李洪博 | D137: =D$66*D74 -> 0 | E137: 176 | F137: 136 | G137: 0 | H137: 0 | I137: 0 | J137: 0 | K137: 0 | L137: 0 | M137: 0 | N137: 0 | O137: 0 | P137: 0 | Q137: 0 | R137: 0 | S137: 0 | T137: 0 | U137: 0 | V137: 0 | W137: 312
A138: 能化21-1班 | B138: 2021010389 | C138: 李臻彦 | D138: =D$66*D75 -> 0 | E138: 170 | F138: 120 | G138: 140 | H138: 0 | I138: 0 | J138: 0 | K138: 0 | L138: 0 | M138: 0 | N138: 0 | O138: 0 | P138: 0 | Q138: 0 | R138: 0 | S138: 0 | T138: 0 | U138: 0 | V138: 0 | W138: 430
A139: 能化21-1班 | B139: 2021010392 | C139: 苏辛一 | D139: =D$66*D76 -> 0 | E139: 0 | F139: 0 | G139: 120 | H139: 0 | I139: 0 | J139: 0 | K139: 0 | L139: 0 | M139: 0 | N139: 0 | O139: 0 | P139: 0 | Q139: 0 | R139: 0 | S139: 0 | T139: 180 | U139: 0 | V139: 0 | W139: 300
A140: 能化21-1班 | B140: 2021010393 | C140: 唐顾玮 | D140: =D$66*D77 -> 0 | E140: 0 | F140: 122 | G140: 138 | H140: 0 | I140: 0 | J140: 0 | K140: 0 | L140: 0 | M140: 0 | N140: 0 | O140: 0 | P140: 0 | Q140: 0 | R140: 0 | S140: 0 | T140: 0 | U140: 0 | V140: 0 | W140: 260
A141: 能化21-1班 | B141: 2021010428 | C141: 周忠康 | D141: =D$66*D78 -> 0 | E141: 176 | F141: 150 | G141: 0 | H141: 0 | I141: 0 | J141: 0 | K141: 0 | L141: 0 | M141: 0 | N141: 0 | O141: 0 | P141: 0 | Q141: 0 | R141: 0 | S141: 0 | T141: 0 | U141: 0 | V141: 0 | W141: 326
A142: 能化21-1班 | B142: 2021010431 | C142: 王医灵 | D142: =D$66*D79 -> 0 | E142: 180 | F142: 0 | G142: 152 | H142: 0 | I142: 0 | J142: 0 | K142: 0 | L142: 0 | M142: 0 | N142: 0 | O142: 0 | P142: 0 | Q142: 0 | R142: 0 | S142: 0 | T142: 0 | U142: 0 | V142: 172 | W142: 504
A143: 能化21-1班 | B143: 2021010432 | C143: 梁卓文 | D143: =D$66*D80 -> 0 | E143: 0 | F143: 120 | G143: 148 | H143: 0 | I143: 0 | J143: 0 | K143: 0 | L143: 0 | M143: 0 | N143: 0 | O143: 0 | P143: 0 | Q143: 0 | R143: 0 | S143: 0 | T143: 0 | U143: 0 | V143: 0 | W143: 268
A144: 能化21-1班 | B144: 2021010433 | C144: 朱佳怡 | D144: =D$66*D81 -> 0 | E144: 0 | F144: 130 | G144: 134 | H144: 0 | I144: 0 | J144: 0 | K144: 0 | L144: 0 | M144: 0 | N144: 0 | O144: 0 | P144: 0 | Q144: 0 | R144: 0 | S144: 0 | T144: 0 | U144: 0 | V144: 0 | W144: 264
A145: 能化21-1班 | B145: 2021010442 | C145: 裴俊豪 | D145: =D$66*D82 -> 0 | E145: 0 | F145: 160 | G145: 0 | H145: 0 | I145: 0 | J145: 0 | K145: 0 | L145: 0 | M145: 0 | N145: 0 | O145: 0 | P145: 0 | Q145: 0 | R145: 0 | S145: 0 | T145: 0 | U145: 0 | V145: 186 | W145: 346
A146: 能化21-1班 | B146: 2021010443 | C146: 鲍怡帅 | D146: =D$66*D83 -> 0 | E146: 156 | F146: 122 | G146: 0 | H146: 0 | I146: 0 | J146: 0 | K146: 0 | L146: 0 | M146: 0 | N146: 0 | O146: 0 | P146: 0 | Q146: 0 | R146: 0 | S146: 0 | T146: 0 | U146: 0 | V146: 170 | W146: 448
A147: 能化21-1班 | B147: 2021010445 | C147: 耿智鸿 | D147: =D$66*D84 -> 0 | E147: 0 | F147: 144 | G147: 0 | H147: 0 | I147: 0 | J147: 0 | K147: 0 | L147: 0 | M147: 0 | N147: 0 | O147: 0 | P147: 0 | Q147: 0 | R147: 0 | S147: 0 | T147: 0 | U147: 0 | V147: 162 | W147: 306
A148: 能化21-1班 | B148: 2021010457 | C148: 栾俊添 | D148: =D$66*D85 -> 0 | E148: 0 | F148: 0 | G148: 180 | H148: 0 | I148: 0 | J148: 0 | K148: 0 | L148: 0 | M148: 0 | N148: 0 | O148: 0 | P148: 0 | Q148: 0 | R148: 0 | S148: 0 | T148: 0 | U148: 0 | V148: 0 | W148: 180
A149: 能化21-1班 | B149: 2021010465 | C149: 潘思迪 | D149: =D$66*D86 -> 0 | E149: 174 | F149: 0 | G149: 184 | H149: 0 | I149: 0 | J149: 0 | K149: 0 | L149: 0 | M149: 0 | N149: 0 | O149: 0 | P149: 0 | Q149: 0 | R149: 0 | S149: 0 | T149: 0 | U149: 0 | V149: 0 | W149: 358
A150: 能化21-1班 | B150: 2021010482 | C150: 王岩青 | D150: =D$66*D87 -> 0 | E150: 0 | F150: 140 | G150: 166 | H150: 0 | I150: 0 | J150: 0 | K150: 0 | L150: 0 | M150: 0 | N150: 0 | O150: 0 | P150: 0 | Q150: 0 | R150: 0 | S150: 0 | T150: 0 | U150: 0 | V150: 0 | W150: 306
A151: 能化21-1班 | B151: 2021010493 | C151: 李燕琴 | D151: =D$66*D88 -> 0 | E151: 0 | F151: 128 | G151: 152 | H151: 0 | I151: 0 | J151: 0 | K151: 0 | L151: 0 | M151: 0 | N151: 0 | O151: 0 | P151: 0 | Q151: 0 | R151: 0 | S151: 0 | T151: 0 | U151: 0 | V151: 0 | W151: 280
A152: 能化21-1班 | B152: 2021010494 | C152: 黄镜 | D152: =D$66*D89 -> 0 | E152: 0 | F152: 0 | G152: 140 | H152: 0 | I152: 0 | J152: 0 | K152: 0 | L152: 0 | M152: 0 | N152: 0 | O152: 0 | P152: 0 | Q152: 0 | R152: 0 | S152: 0 | T152: 0 | U152: 0 | V152: 160 | W152: 300
A153: 能化21-1班 | B153: 2021010496 | C153: 解天羽 | D153: =D$66*D90 -> 0 | E153: 0 | F153: 150 | G153: 172 | H153: 0 | I153: 0 | J153: 0 | K153: 0 | L153: 0 | M153: 0 | N153: 0 | O153: 0 | P153: 0 | Q153: 0 | R153: 0 | S153: 0 | T153: 0 | U153: 0 | V153: 0 | W153: 322
A154: 能化21-1班 | B154: 2021010498 | C154: 阿力木努·赛买提 | D154: =D$66*D91 -> 0 | E154: 0 | F154: 0 | G154: 128 | H154: 0 | I154: 0 | J154: 0 | K154: 0 | L154: 0 | M154: 0 | N154: 0 | O154: 0 | P154: 0 | Q154: 0 | R154: 0 | S154: 0 | T154: 0 | U154: 0 | V154: 0 | W154: 128
A155: 能化21-1班 | B155: 2021010513 | C155: 曹逸恒 | D155: =D$66*D92 -> 0 | E155: 152 | F155: 112 | G155: 120 | H155: 0 | I155: 0 | J155: 0 | K155: 0 | L155: 0 | M155: 0 | N155: 126 | O155: 0 | P155: 0 | Q155: 0 | R155: 0 | S155: 0 | T155: 0 | U155: 0 | V155: 180 | W155: 690
A156: 能化21-1班 | B156: 2021010514 | C156: 曹哲仁 | D156: =D$66*D93 -> 0 | E156: 0 | F156: 142 | G156: 170 | H156: 0 | I156: 0 | J156: 0 | K156: 0 | L156: 0 | M156: 0 | N156: 0 | O156: 0 | P156: 0 | Q156: 0 | R156: 0 | S156: 0 | T156: 0 | U156: 0 | V156: 180 | W156: 492
A157: 能化21-1班 | B157: 2021010515 | C157: 陈骄阳 | D157: =D$66*D94 -> 0 | E157: 0 | F157: 122 | G157: 128 | H157: 0 | I157: 0 | J157: 0 | K157: 0 | L157: 0 | M157: 0 | N157: 0 | O157: 0 | P157: 0 | Q157: 0 | R157: 0 | S157: 0 | T157: 0 | U157: 0 | V157: 172 | W157: 422
A158: 能化21-2班 | B158: 2021010395 | C158: 王浙 | D158: =D$66*D95 -> 0 | E158: 0 | F158: 0 | G158: 188 | H158: 0 | I158: 0 | J158: 0 | K158: 0 | L158: 0 | M158: 0 | N158: 0 | O158: 0 | P158: 0 | Q158: 0 | R158: 0 | S158: 0 | T158: 0 | U158: 0 | V158: 0 | W158: 188
A159: 能化21-2班 | B159: 2021010403 | C159: 崔珈榕 | D159: =D$66*D96 -> 0 | E159: 0 | F159: 154 | G159: 0 | H159: 0 | I159: 0 | J159: 0 | K159: 0 | L159: 0 | M159: 0 | N159: 0 | O159: 0 | P159: 0 | Q159: 0 | R159: 0 | S159: 0 | T159: 0 | U159: 0 | V159: 0 | W159: 154
A160: 能化21-2班 | B160: 2021010409 | C160: 刘兴旺 | D160: =D$66*D97 -> 0 | E160: 0 | F160: 140 | G160: 128 | H160: 0 | I160: 0 | J160: 0 | K160: 0 | L160: 0 | M160: 0 | N160: 0 | O160: 0 | P160: 0 | Q160: 0 | R160: 0 | S160: 0 | T160: 0 | U160: 112.5 | V160: 144 | W160: 524.5
A161: 能化21-2班 | B161: 2021010412 | C161: 陈逸飞 | D161: =D$66*D98 -> 0 | E161: 0 | F161: 148 | G161: 158 | H161: 0 | I161: 0 | J161: 0 | K161: 0 | L161: 0 | M161: 0 | N161: 0 | O161: 0 | P161: 0 | Q161: 0 | R161: 0 | S161: 0 | T161: 0 | U161: 0 | V161: 0 | W161: 306
A162: 能化21-2班 | B162: 2021010413 | C162: 林云志 | D162: =D$66*D99 -> 0 | E162: 0 | F162: 0 | G162: 0 | H162: 0 | I162: 0 | J162: 0 | K162: 0 | L162: 0 | M162: 0 | N162: 0 | O162: 0 | P162: 0 | Q162: 0 | R162: 0 | S162: 0 | T162: 0 | U162: 0 | V162: 132 | W162: 132
A163: 能化21-2班 | B163: 2021010419 | C163: 鲁鹤宇 | D163: =D$66*D100 -> 0 | E163: 0 | F163: 54 | G163: 0 | H163: 0 | I163: 0 | J163: 0 | K163: 0 | L163: 0 | M163: 0 | N163: 0 | O163: 0 | P163: 0 | Q163: 0 | R163: 0 | S163: 0 | T163: 0 | U163: 0 | V163: 0 | W163: 54
A164: 能化21-2班 | B164: 2021010426 | C164: 杨凯迪 | D164: =D$66*D101 -> 0 | E164: 0 | F164: 158 | G164: 130 | H164: 0 | I164: 0 | J164: 0 | K164: 0 | L164: 0 | M164: 0 | N164: 0 | O164: 0 | P164: 0 | Q164: 0 | R164: 0 | S164: 0 | T164: 0 | U164: 0 | V164: 120 | W164: 408
A165: 能化21-2班 | B165: 2021010427 | C165: 张金坤 | D165: =D$66*D102 -> 0 | E165: 170 | F165: 140 | G165: 0 | H165: 0 | I165: 0 | J165: 0 | K165: 0 | L165: 0 | M165: 0 | N165: 0 | O165: 0 | P165: 0 | Q165: 0 | R165: 0 | S165: 0 | T165: 0 | U165: 0 | V165: 0 | W165: 310
A166: 能化21-2班 | B166: 2021010439 | C166: 吴晗毓 | D166: =D$66*D103 -> 0 | E166: 0 | F166: 130 | G166: 0 | H166: 0 | I166: 0 | J166: 168 | K166: 0 | L166: 0 | M166: 0 | N166: 0 | O166: 0 | P166: 0 | Q166: 0 | R166: 0 | S166: 0 | T166: 0 | U166: 0 | V166: 0 | W166: 298
A167: 能化21-2班 | B167: 2021010450 | C167: 周围 | D167: =D$66*D104 -> 0 | E167: 0 | F167: 0 | G167: 142 | H167: 0 | I167: 0 | J167: 0 | K167: 0 | L167: 0 | M167: 0 | N167: 0 | O167: 0 | P167: 0 | Q167: 0 | R167: 0 | S167: 0 | T167: 0 | U167: 0 | V167: 160 | W167: 302
A168: 能化21-2班 | B168: 2021010461 | C168: 杨嘉琦 | D168: =D$66*D105 -> 0 | E168: 0 | F168: 162 | G168: 0 | H168: 0 | I168: 0 | J168: 0 | K168: 0 | L168: 0 | M168: 0 | N168: 0 | O168: 0 | P168: 0 | Q168: 0 | R168: 0 | S168: 0 | T168: 0 | U168: 0 | V168: 166 | W168: 328
A169: 能化21-2班 | B169: 2021010462 | C169: 武晗 | D169: =D$66*D106 -> 0 | E169: 0 | F169: 174 | G169: 164 | H169: 0 | I169: 0 | J169: 0 | K169: 0 | L169: 0 | M169: 0 | N169: 0 | O169: 0 | P169: 0 | Q169: 0 | R169: 0 | S169: 0 | T169: 0 | U169: 0 | V169: 0 | W169: 338
A170: 能化21-2班 | B170: 2021010464 | C170: 周香格 | D170: =D$66*D107 -> 0 | E170: 0 | F170: 140 | G170: 146 | H170: 0 | I170: 0 | J170: 0 | K170: 0 | L170: 176 | M170: 166 | N170: 0 | O170: 0 | P170: 0 | Q170: 0 | R170: 0 | S170: 0 | T170: 0 | U170: 0 | V170: 154 | W170: 782
A171: 能化21-2班 | B171: 2021010466 | C171: 程嘉欣 | D171: =D$66*D108 -> 0 | E171: 0 | F171: 0 | G171: 172 | H171: 0 | I171: 0 | J171: 0 | K171: 0 | L171: 0 | M171: 0 | N171: 0 | O171: 0 | P171: 0 | Q171: 0 | R171: 0 | S171: 0 | T171: 0 | U171: 0 | V171: 0 | W171: 172
A172: 能化21-2班 | B172: 2021010467 | C172: 颜伊宁 | D172: =D$66*D109 -> 0 | E172: 0 | F172: 176 | G172: 182 | H172: 0 | I172: 0 | J172: 0 | K172: 0 | L172: 0 | M172: 0 | N172: 0 | O172: 0 | P172: 0 | Q172: 0 | R172: 0 | S172: 0 | T172: 0 | U172: 0 | V172: 180 | W172: 538
A173: 能化21-2班 | B173: 2021010470 | C173: 刘睿扬 | D173: =D$66*D110 -> 0 | E173: 0 | F173: 0 | G173: 0 | H173: 0 | I173: 0 | J173: 0 | K173: 0 | L173: 0 | M173: 0 | N173: 0 | O173: 0 | P173: 0 | Q173: 0 | R173: 0 | S173: 0 | T173: 0 | U173: 0 | V173: 184 | W173: 184
A174: 能化21-2班 | B174: 2021010471 | C174: 柳子涵 | D174: =D$66*D111 -> 0 | E174: 0 | F174: 162 | G174: 0 | H174: 0 | I174: 0 | J174: 0 | K174: 0 | L174: 0 | M174: 0 | N174: 0 | O174: 0 | P174: 0 | Q174: 0 | R174: 0 | S174: 0 | T174: 0 | U174: 0 | V174: 0 | W174: 162
A175: 能化21-2班 | B175: 2021010475 | C175: 蒲文博 | D175: =D$66*D112 -> 0 | E175: 0 | F175: 138 | G175: 0 | H175: 0 | I175: 0 | J175: 0 | K175: 0 | L175: 0 | M175: 0 | N175: 0 | O175: 0 | P175: 0 | Q175: 0 | R175: 0 | S175: 0 | T175: 0 | U175: 0 | V175: 184 | W175: 322
A176: 能化21-2班 | B176: 2021010476 | C176: 齐翔龙 | D176: =D$66*D113 -> 0 | E176: 166 | F176: 134 | G176: 0 | H176: 0 | I176: 0 | J176: 0 | K176: 0 | L176: 0 | M176: 0 | N176: 0 | O176: 0 | P176: 0 | Q176: 0 | R176: 0 | S176: 0 | T176: 0 | U176: 0 | V176: 166 | W176: 466
A177: 能化21-2班 | B177: 2021010477 | C177: 何余胜 | D177: =D$66*D114 -> 0 | E177: 152 | F177: 154 | G177: 0 | H177: 0 | I177: 0 | J177: 0 | K177: 0 | L177: 0 | M177: 0 | N177: 0 | O177: 0 | P177: 0 | Q177: 0 | R177: 0 | S177: 0 | T177: 0 | U177: 0 | V177: 142 | W177: 448
A178: 能化21-2班 | B178: 2021010478 | C178: 常一帆 | D178: =D$66*D115 -> 0 | E178: 0 | F178: 124 | G178: 152 | H178: 0 | I178: 0 | J178: 0 | K178: 0 | L178: 0 | M178: 0 | N178: 0 | O178: 0 | P178: 0 | Q178: 0 | R178: 0 | S178: 0 | T178: 0 | U178: 0 | V178: 0 | W178: 276
A179: 能化21-2班 | B179: 2021010479 | C179: 覃师凯 | D179: =D$66*D116 -> 0 | E179: 0 | F179: 0 | G179: 126 | H179: 0 | I179: 0 | J179: 0 | K179: 0 | L179: 0 | M179: 0 | N179: 0 | O179: 0 | P179: 0 | Q179: 0 | R179: 0 | S179: 0 | T179: 0 | U179: 0 | V179: 0 | W179: 126
A180: 能化21-2班 | B180: 2021010486 | C180: 鹿麒麟 | D180: =D$66*D117 -> 0 | E180: 0 | F180: 0 | G180: 0 | H180: 0 | I180: 0 | J180: 0 | K180: 0 | L180: 0 | M180: 0 | N180: 0 | O180: 0 | P180: 0 | Q180: 0 | R180: 0 | S180: 0 | T180: 0 | U180: 0 | V180: 194 | W180: 194
A181: 能化21-2班 | B181: 2021010487 | C181: 吴隆卓 | D181: =D$66*D118 -> 0 | E181: 164 | F181: 162 | G181: 0 | H181: 0 | I181: 0 | J181: 0 | K181: 0 | L181: 0 | M181: 0 | N181: 0 | O181: 154 | P181: 0 | Q181: 0 | R181: 0 | S181: 0 | T181: 0 | U181: 0 | V181: 160 | W181: 640
A182: 能化21-2班 | B182: 2021010492 | C182: 左笑维 | D182: =D$66*D119 -> 0 | E182: 0 | F182: 158 | G182: 182 | H182: 0 | I182: 0 | J182: 0 | K182: 0 | L182: 0 | M182: 0 | N182: 0 | O182: 0 | P182: 0 | Q182: 0 | R182: 0 | S182: 0 | T182: 0 | U182: 0 | V182: 0 | W182: 340
A183: 能化21-2班 | B183: 2021010501 | C183: 陈湘宜 | D183: =D$66*D120 -> 0 | E183: 0 | F183: 0 | G183: 182 | H183: 0 | I183: 0 | J183: 0 | K183: 0 | L183: 0 | M183: 0 | N183: 0 | O183: 0 | P183: 0 | Q183: 0 | R183: 0 | S183: 0 | T183: 0 | U183: 0 | V183: 0 | W183: 182
A184: 能化21-2班 | B184: 2021010502 | C184: 王晨宣 | D184: =D$66*D121 -> 0 | E184: 0 | F184: 0 | G184: 186 | H184: 0 | I184: 0 | J184: 0 | K184: 0 | L184: 0 | M184: 0 | N184: 0 | O184: 0 | P184: 0 | Q184: 0 | R184: 0 | S184: 0 | T184: 0 | U184: 0 | V184: 0 | W184: 186
A185: 能化21-2班 | B185: 2021010506 | C185: 陈国荣 | D185: =D$66*D122 -> 0 | E185: 0 | F185: 140 | G185: 0 | H185: 0 | I185: 0 | J185: 0 | K185: 0 | L185: 0 | M185: 0 | N185: 0 | O185: 0 | P185: 0 | Q185: 0 | R185: 0 | S185: 0 | T185: 0 | U185: 0 | V185: 154 | W185: 294
A186: 能化21-2班 | B186: 2021010521 | C186: 王梓涵 | D186: =D$66*D123 -> 0 | E186: 182 | F186: 0 | G186: 180 | H186: 0 | I186: 0 | J186: 0 | K186: 0 | L186: 0 | M186: 0 | N186: 0 | O186: 0 | P186: 0 | Q186: 0 | R186: 0 | S186: 0 | T186: 0 | U186: 0 | V186: 184 | W186: 546

Sheet 【体育】体测成绩
A1: 年级 | B1: 院系 | C1: 行政班级 | D1: 学籍号 | E1: 姓名 | F1: 性别 | G1: 备注 | H1: 身高 | I1: 体重 | J1: 肺活量 | K1: 50米跑 | L1: 立定跳远 | M1: 坐位体前屈 | N1: 800米/1000米 | O1: 仰卧起坐/引体向上 | P1: 总分 | Q1: 等级 | R1: 是否可以评选奖学金
A2: 2021 | B2: 化学工程与环境学院 | C2: 能化21-1班 | D2: 2020010511 | E2: 严皓禹 | F2: 男 | H2: 暂无 | I2: 暂无 | J2: 暂无 | K2: 暂无 | L2: 暂无 | M2: 暂无 | N2: 暂无 | O2: 暂无 | P2: 0 | Q2: 不及格 | R2: =IF(P2>=60,"是","否") -> 否
A3: 2021 | B3: 化学工程与环境学院 | C3: 能化21-1班 | D3: 2021010374 | E3: 何若妍 | F3: 女 | H3: 163 | I3: 57.2 | J3: 3565 | K3: 11.2 | L3: 141 | M3: 13.4 | N3: 4'18'' | O3: 27 | P3: 60.8 | Q3: 及格 | R3: =IF(P3>=60,"是","否") -> 是
A4: 2021 | B4: 化学工程与环境学院 | C4: 能化21-1班 | D4: 2021010376 | E4: 李传洋 | F4: 男 | H4: 169 | I4: 54.6 | J4: 5570 | K4: 7.9 | L4: 247 | M4: 3.8 | N4: 3'26'' | O4: 暂无 | P4: 73.8 | Q4: 及格 | R4: 是
A5: 2021 | B5: 化学工程与环境学院 | C5: 能化21-1班 | D5: 2021010377 | E5: 甘浩 | F5: 男 | H5: 178.5 | I5: 58.8 | J5: 3673 | K5: 8.8 | L5: 209 | M5: 5 | N5: 4'09'' | O5: 暂无 | P5: 61.9 | Q5: 及格 | R5: 是
A6: 2021 | B6: 化学工程与环境学院 | C6: 能化21-1班 | D6: 2021010380 | E6: 詹作鑫 | F6: 男 | H6: 161.5 | I6: 68.2 | J6: 3562 | K6: 8.7 | L6: 165 | M6: 11.4 | N6: 暂无 | O6: 暂无 | P6: 41.3 | Q6: 不及格 | R6: 否
A7: 2021 | B7: 化学工程与环境学院 | C7: 能化21-1班 | D7: 2021010381 | E7: 李维昊 | F7: 男 | H7: 185 | I7: 75.9 | J7: 6215 | K7: 7.6 | L7: 247 | M7: 26 | N7: 3'43'' | O7: 16 | P7: 86.2 | Q7: 良好 | R7: 是
A8: 2021 | B8: 化学工程与环境学院 | C8: 能化21-1班 | D8: 2021010382 | E8: 王理哲 | F8: 男 | G8: 补测 | H8: 180.5 | I8: 119 | J8: 6392 | K8: 8.8 | L8: 194 | M8: 3.9 | N8: 暂无 | O8: 暂无 | P8: 43.4 | Q8: 不及格 | R8: 否
A9: 2021 | B9: 化学工程与环境学院 | C9: 能化21-1班 | D9: 2021010387 | E9: 李洪博 | F9: 男 | H9: 176 | I9: 80.4 | J9: 5298 | K9: 8.1 | L9: 208 | M9: 1.7 | N9: 5'06'' | O9: 暂无 | P9: 56.6 | Q9: 不及格 | R9: 否
A10: 2021 | B10: 化学工程与环境学院 | C10: 能化21-1班 | D10: 2021010389 | E10: 李臻彦 | F10: 男 | H10: 175 | I10: 62.3 | J10: 4460 | K10: 7.9 | L10: 224 | M10: -6.4 | N10: 4'58'' | O10: 暂无 | P10: 55.6 | Q10: 不及格 | R10: 否
A11: 2021 | B11: 化学工程与环境学院 | C11: 能化21-1班 | D11: 2021010392 | E11: 苏辛一 | F11: 男 | H11: 182.5 | I11: 93.4 | J11: 8161 | K11: 8 | L11: 237 | M11: 13.9 | N11: 5'49'' | O11: 暂无 | P11: 56.4 | Q11: 不及格 | R11: 否
A12: 2021 | B12: 化学工程与环境学院 | C12: 能化21-1班 | D12: 2021010393 | E12: 唐顾玮 | F12: 男 | H12: 168 | I12: 62.5 | J12: 4210 | K12: 8.2 | L12: 225 | M12: 3.7 | N12: 4'44'' | O12: 9 | P12: 65.6 | Q12: 及格 | R12: 是
A13: 2021 | B13: 化学工程与环境学院 | C13: 能化21-1班 | D13: 2021010428 | E13: 周忠康 | F13: 男 | G13: 补测 | H13: 184 | I13: 63.5 | J13: 4987 | K13: 8.6 | L13: 204 | M13: 3.8 | N13: 3'52'' | O13: 4 | P13: 60 | Q13: 及格 | R13: 是
A14: 2021 | B14: 化学工程与环境学院 | C14: 能化21-1班 | D14: 2021010431 | E14: 王医灵 | F14: 女 | H14: 154 | I14: 73.6 | J14: 3474 | K14: 9.5 | L14: 178 | M14: 16.7 | N14: 4'10'' | O14: 27 | P14: 71.8 | Q14: 及格 | R14: 是
A15: 2021 | B15: 化学工程与环境学院 | C15: 能化21-1班 | D15: 2021010432 | E15: 梁卓文 | F15: 女 | G15: 补测 | H15: 162.5 | I15: 50.3 | J15: 4019 | K15: 10.1 | L15: 151 | M15: 18 | N15: 4'54'' | O15: 36 | P15: 60 | Q15: 及格 | R15: 是
A16: 2021 | B16: 化学工程与环境学院 | C16: 能化21-1班 | D16: 2021010433 | E16: 朱佳怡 | F16: 女 | H16: 164.5 | I16: 62.9 | J16: 3689 | K16: 9.9 | L16: 151 | M16: 3.8 | N16: 4'24'' | O16: 28 | P16: 67.8 | Q16: 及格 | R16: 是
A17: 2021 | B17: 化学工程与环境学院 | C17: 能化21-1班 | D17: 2021010442 | E17: 裴俊豪 | F17: 男 | H17: 174.5 | I17: 62.1 | J17: 4923 | K17: 8.2 | L17: 208 | M17: 12.7 | N17: 3'54'' | O17: 暂无 | P17: 69.1 | Q17: 及格 | R17: 是
A18: 2021 | B18: 化学工程与环境学院 | C18: 能化21-1班 | D18: 2021010443 | E18: 鲍怡帅 | F18: 男 | H18: 178 | I18: 73.3 | J18: 5178 | K18: 7.7 | L18: 202 | M18: 12.7 | N18: 4'51'' | O18: 6 | P18: 64.6 | Q18: 及格 | R18: 是
A19: 2021 | B19: 化学工程与环境学院 | C19: 能化21-1班 | D19: 2021010445 | E19: 耿智鸿 | F19: 男 | H19: 171 | I19: 58.5 | J19: 4538 | K19: 8.3 | L19: 206 | M19: 6.9 | N19: 4'24'' | O19: 9 | P19: 67.8 | Q19: 及格 | R19: 是
A20: 2021 | B20: 化学工程与环境学院 | C20: 能化21-1班 | D20: 2021010457 | E20: 栾俊添 | F20: 男 | H20: 170 | I20: 73.2 | J20: 5805 | K20: 8 | L20: 222 | M20: 21.6 | N20: 4'20'' | O20: 26 | P20: 85.4 | Q20: 良好 | R20: 是
A21: 2021 | B21: 化学工程与环境学院 | C21: 能化21-1班 | D21: 2021010465 | E21: 潘思迪 | F21: 女 | H21: 150.5 | I21: 45.8 | J21: 2751 | K21: 9.8 | L21: 186 | M21: 16.5 | N21: 4'23'' | O21: 25 | P21: 71.7 | Q21: 及格 | R21: 是
A22: 2021 | B22: 化学工程与环境学院 | C22: 能化21-1班 | D22: 2021010482 | E22: 王岩青 | F22: 男 | H22: 171 | I22: 81.7 | J22: 5933 | K22: 8.4 | L22: 208 | M22: 11.2 | N22: 4'22'' | O22: 3 | P22: 64.6 | Q22: 及格 | R22: 是
A23: 2021 | B23: 化学工程与环境学院 | C23: 能化21-1班 | D23: 2021010493 | E23: 李燕琴 | F23: 女 | H23: 156 | I23: 45.4 | J23: 3301 | K23: 9.4 | L23: 151 | M23: 8.9 | N23: 3'58'' | O23: 29 | P23: 73.2 | Q23: 及格 | R23: 是
A24: 2021 | B24: 化学工程与环境学院 | C24: 能化21-1班 | D24: 2021010494 | E24: 黄镜 | F24: 女 | G24: 免测 | H24: 暂无 | I24: 暂无 | J24: 暂无 | K24: 暂无 | L24: 暂无 | M24: 暂无 | N24: 暂无 | O24: 暂无 | P24: 60 | Q24: 免测 | R24: 是
A25: 2021 | B25: 化学工程与环境学院 | C25: 能化21-1班 | D25: 2021010496 | E25: 解天羽 | F25: 女 | H25: 157 | I25: 43.7 | J25: 2767 | K25: 10.4 | L25: 154 | M25: 12 | N25: 4'51'' | O25: 31 | P25: 63.3 | Q25: 及格 | R25: 是
A26: 2021 | B26: 化学工程与环境学院 | C26: 能化21-1班 | D26: 2021010498 | E26: 阿力木努·赛买提 | F26: 女 | H26: 161 | I26: 64.6 | J26: 3235 | K26: 10.1 | L26: 139 | M26: 19.8 | N26: 4'18'' | O26: 43 | P26: 68.2 | Q26: 及格 | R26: 是
A27: 2021 | B27: 化学工程与环境学院 | C27: 能化21-1班 | D27: 2021010513 | E27: 曹逸恒 | F27: 男 | H27: 180 | I27: 112 | J27: 5455 | K27: 9.2 | L27: 暂无 | M27: 暂无 | N27: 暂无 | O27: 暂无 | P27: 34 | Q27: 不及格 | R27: 否
A28: 2021 | B28: 化学工程与环境学院 | C28: 能化21-1班 | D28: 2021010514 | E28: 曹哲仁 | F28: 男 | H28: 169 | I28: 55 | J28: 3694 | K28: 8.6 | L28: 212 | M28: 13.6 | N28: 4'28'' | O28: 暂无 | P28: 63.2 | Q28: 及格 | R28: 是
A29: 2021 | B29: 化学工程与环境学院 | C29: 能化21-1班 | D29: 2021010515 | E29: 陈骄阳 | F29: 男 | H29: 171 | I29: 75.7 | J29: 5075 | K29: 8.7 | L29: 224 | M29: 14.2 | N29: 5'40'' | O29: 暂无 | P29: 56.7 | Q29: 不及格 | R29: 否
A30: 2021 | B30: 化学工程与环境学院 | C30: 能化21-2班 | D30: 2021010395 | E30: 王浙 | F30: 男 | H30: 167 | I30: 55.2 | J30: 4660 | K30: 8.4 | L30: 238 | M30: 18.4 | N30: 4'28'' | O30: 暂无 | P30: 68.4 | Q30: 及格 | R30: 是
A31: 2021 | B31: 化学工程与环境学院 | C31: 能化21-2班 | D31: 2021010403 | E31: 崔珈榕 | F31: 女 | H31: 169.5 | I31: 77.5 | J31: 4234 | K31: 10.3 | L31: 164 | M31: 16.1 | N31: 5'11'' | O31: 35 | P31: 62 | Q31: 及格 | R31: 是
A32: 2021 | B32: 化学工程与环境学院 | C32: 能化21-2班 | D32: 2021010409 | E32: 刘兴旺 | F32: 男 | G32: 补测 | H32: 172.5 | I32: 83.1 | J32: 3724 | K32: 7.8 | L32: 223 | M32: 11.3 | N32: 5'05'' | O32: 7 | P32: 60 | Q32: 及格 | R32: 是
A33: 2021 | B33: 化学工程与环境学院 | C33: 能化21-2班 | D33: 2021010412 | E33: 陈逸飞 | F33: 男 | H33: 175 | I33: 62.2 | J33: 5300 | K33: 暂无 | L33: 209 | M33: 5.4 | N33: 暂无 | O33: 暂无 | P33: 41 | Q33: 不及格 | R33: 否
A34: 2021 | B34: 化学工程与环境学院 | C34: 能化21-2班 | D34: 2021010413 | E34: 林云志 | F34: 男 | H34: 175.5 | I34: 71.3 | J34: 5031 | K34: 8.5 | L34: 238 | M34: 9.2 | N34: 4'34'' | O34: 3 | P34: 66.1 | Q34: 及格 | R34: 是
A35: 2021 | B35: 化学工程与环境学院 | C35: 能化21-2班 | D35: 2021010419 | E35: 鲁鹤宇 | F35: 男 | H35: 暂无 | I35: 暂无 | J35: 暂无 | K35: 8.9 | L35: 暂无 | M35: 暂无 | N35: 5'05'' | O35: 暂无 | P35: 20 | Q35: 不及格 | R35: 否
A36: 2021 | B36: 化学工程与环境学院 | C36: 能化21-2班 | D36: 2021010426 | E36: 杨凯迪 | F36: 男 | H36: 187 | I36: 94.7 | J36: 6436 | K36: 8.5 | L36: 231 | M36: 3 | N36: 5'39'' | O36: 暂无 | P36: 54.8 | Q36: 不及格 | R36: 否
A37: 2021 | B37: 化学工程与环境学院 | C37: 能化21-2班 | D37: 2021010427 | E37: 张金坤 | F37: 男 | H37: 178.5 | I37: 75.1 | J37: 5096 | K37: 8.2 | L37: 199 | M37: 8 | N37: 4'55'' | O37: 2 | P37: 60.3 | Q37: 及格 | R37: 是
A38: 2021 | B38: 化学工程与环境学院 | C38: 能化21-2班 | D38: 2021010439 | E38: 吴晗毓 | F38: 女 | G38: 补测 | H38: 149 | I38: 32.5 | J38: 2600 | K38: 10.4 | L38: 151 | M38: 6 | N38: 4'27'' | O38: 38 | P38: 60 | Q38: 及格 | R38: 是
A39: 2021 | B39: 化学工程与环境学院 | C39: 能化21-2班 | D39: 2021010450 | E39: 周围 | F39: 男 | H39: 171 | I39: 75.2 | J39: 6298 | K39: 8.6 | L39: 205 | M39: 14.5 | N39: 5'17'' | O39: 暂无 | P39: 58.2 | Q39: 不及格 | R39: 否
A40: 2021 | B40: 化学工程与环境学院 | C40: 能化21-2班 | D40: 2021010461 | E40: 杨嘉琦 | F40: 女 | H40: 166 | I40: 62.7 | J40: 4068 | K40: 10 | L40: 158 | M40: 13.7 | N40: 4'58'' | O40: 32 | P40: 68.2 | Q40: 及格 | R40: 是
A41: 2021 | B41: 化学工程与环境学院 | C41: 能化21-2班 | D41: 2021010462 | E41: 武晗 | F41: 女 | H41: 173 | I41: 65 | J41: 2710 | K41: 9.9 | L41: 156 | M41: 13.3 | N41: 4'54'' | O41: 28 | P41: 63.4 | Q41: 及格 | R41: 是
A42: 2021 | B42: 化学工程与环境学院 | C42: 能化21-2班 | D42: 2021010464 | E42: 周香格 | F42: 女 | H42: 164.5 | I42: 63.5 | J42: 4440 | K42: 10.4 | L42: 134 | M42: 17.4 | N42: 3'57'' | O42: 29 | P42: 70.6 | Q42: 及格 | R42: 是
A43: 2021 | B43: 化学工程与环境学院 | C43: 能化21-2班 | D43: 2021010466 | E43: 程嘉欣 | F43: 女 | H43: 171 | I43: 56.7 | J43: 3556 | K43: 10 | L43: 169 | M43: 8.6 | N43: 4'07'' | O43: 35 | P43: 76.4 | Q43: 及格 | R43: 是
A44: 2021 | B44: 化学工程与环境学院 | C44: 能化21-2班 | D44: 2021010467 | E44: 颜伊宁 | F44: 女 | H44: 163.5 | I44: 61.6 | J44: 3233 | K44: 10.4 | L44: 156 | M44: 13.4 | N44: 4'24'' | O44: 37 | P44: 70.4 | Q44: 及格 | R44: 是
A45: 2021 | B45: 化学工程与环境学院 | C45: 能化21-2班 | D45: 2021010470 | E45: 刘睿扬 | F45: 女 | G45: 免测 | H45: 暂无 | I45: 暂无 | J45: 暂无 | K45: 暂无 | L45: 暂无 | M45: 暂无 | N45: 暂无 | O45: 暂无 | P45: 60 | Q45: 免测 | R45: 是
A46: 2021 | B46: 化学工程与环境学院 | C46: 能化21-2班 | D46: 2021010471 | E46: 柳子涵 | F46: 女 | H46: 175.5 | I46: 80.2 | J46: 4909 | K46: 9.4 | L46: 152 | M46: 19.6 | N46: 5'04'' | O46: 24 | P46: 62.6 | Q46: 及格 | R46: 是
A47: 2021 | B47: 化学工程与环境学院 | C47: 能化21-2班 | D47: 2021010475 | E47: 蒲文博 | F47: 男 | H47: 179 | I47: 86.1 | J47: 4732 | K47: 7.8 | L47: 206 | M47: 4.5 | N47: 4'45'' | O47: 暂无 | P47: 60.2 | Q47: 及格 | R47: 是
A48: 2021 | B48: 化学工程与环境学院 | C48: 能化21-2班 | D48: 2021010476 | E48: 齐翔龙 | F48: 男 | G48: 补测 | H48: 170.5 | I48: 79.7 | J48: 5550 | K48: 8 | L48: 187 | M48: -6 | N48: 4'15'' | O48: 暂无 | P48: 55.2 | Q48: 不及格 | R48: 否
A49: 2021 | B49: 化学工程与环境学院 | C49: 能化21-2班 | D49: 2021010477 | E49: 何余胜 | F49: 男 | G49: 补测 | H49: 171.5 | I49: 50.2 | J49: 4049 | K49: 7.6 | L49: 207 | M49: 暂无 | N49: 4'30'' | O49: 8 | P49: 57.9 | Q49: 不及格 | R49: 否
A50: 2021 | B50: 化学工程与环境学院 | C50: 能化21-2班 | D50: 2021010478 | E50: 常一帆 | F50: 男 | H50: 180.5 | I50: 78.3 | J50: 4019 | K50: 7.9 | L50: 233 | M50: 13.5 | N50: 4'26'' | O50: 13 | P50: 69.8 | Q50: 及格 | R50: 是
A51: 2021 | B51: 化学工程与环境学院 | C51: 能化21-2班 | D51: 2021010479 | E51: 覃师凯 | F51: 男 | H51: 169 | I51: 67 | J51: 4286 | K51: 6 | L51: 280 | M51: 11.8 | N51: 3'05'' | O51: 25 | P51: 100.7 | Q51: 优秀 | R51: 是
A52: 2021 | B52: 化学工程与环境学院 | C52: 能化21-2班 | D52: 2021010486 | E52: 鹿麒麟 | F52: 男 | H52: 173.5 | I52: 71.4 | J52: 5497 | K52: 7.9 | L52: 209 | M52: 16.7 | N52: 3'41'' | O52: 14 | P52: 79.4 | Q52: 及格 | R52: 是
A53: 2021 | B53: 化学工程与环境学院 | C53: 能化21-2班 | D53: 2021010487 | E53: 吴隆卓 | F53: 男 | H53: 174 | I53: 91.7 | J53: 3986 | K53: 9.1 | L53: 189 | M53: 3.1 | N53: 5'25'' | O53: 暂无 | P53: 40.8 | Q53: 不及格 | R53: 否
A54: 2021 | B54: 化学工程与环境学院 | C54: 能化21-2班 | D54: 2021010492 | E54: 左笑维 | F54: 男 | H54: 173.5 | I54: 72.9 | J54: 4878 | K54: 8.3 | L54: 224 | M54: 17.7 | N54: 4'09'' | O54: 暂无 | P54: 66 | Q54: 及格 | R54: 是
A55: 2021 | B55: 化学工程与环境学院 | C55: 能化21-2班 | D55: 2021010501 | E55: 陈湘宜 | F55: 女 | H55: 163.5 | I55: 58.7 | J55: 3919 | K55: 12.1 | L55: 124 | M55: 23.2 | N55: 4'51'' | O55: 28 | P55: 53 | Q55: 不及格 | R55: 否
A56: 2021 | B56: 化学工程与环境学院 | C56: 能化21-2班 | D56: 2021010502 | E56: 王晨宣 | F56: 女 | H56: 174 | I56: 72.3 | J56: 2623 | K56: 9.4 | L56: 154 | M56: 23.5 | N56: 5'10'' | O56: 34 | P56: 64.7 | Q56: 及格 | R56: 是
A57: 2021 | B57: 化学工程与环境学院 | C57: 能化21-2班 | D57: 2021010506 | E57: 陈国荣 | F57: 男 | H57: 171 | I57: 68.2 | J57: 5153 | K57: 8.8 | L57: 206 | M57: 14.7 | N57: 4'29'' | O57: 暂无 | P57: 66.8 | Q57: 及格 | R57: 是
A58: 2021 | B58: 化学工程与环境学院 | C58: 能化21-2班 | D58: 2021010521 | E58: 王梓涵 | F58: 男 | H58: 174.5 | I58: 74.2 | J58: 5737 | K58: 7.6 | L58: 210 | M58: 11.3 | N58: 4'25'' | O58: 暂无 | P58: 67.2 | Q58: 及格 | R58: 是

Sheet 【德育·智育·文体】1班竞赛加分
A1: 姓名 | B1: 学号 | C1: 奖项 | D1: 职位 | E1: 竞赛等级 | F1: 备注
A2: 潘思迪 | C2: 2024年第七届全国“互联网+化学反应工程”课模设计大赛 二等奖 | D2: 队员 | E2: D | F2: 4
C3: 2024年中国大学生Chem-E-Car竞赛性能竞赛 一等奖 | D3: 队长 | E3: C | F3: 8
A4: 曹哲仁 | C4: 2024年中国石油大学（北京）大学生化工原理竞赛 校级二等奖 | E4: C | F4: 4
C5: 第18届“旭阳杯”全国大学生化工设计竞赛（华北赛区） 一等奖 | D5: 队员 | E5: B | F5: 4.5
A6: 栾俊添 | C6: 2024年第七届互联网+化学反应工程 课模设计大赛 二等奖 | D6: 队长 | E6: D | F6: 5.33333
C7: 北京市节能节水低碳减排社会实践与科技竞赛 三等奖 | D7: 队长 | E7: B | F7: 3.33333
C8: 2024年第十四届mathor cup 数学应用挑战赛 三等奖 | E8: D | F8: 4
C9: 2024年中国国际大学生创新比赛 二等奖 | D9: 队员 | E9: A | F9: 4
A10: 何若妍 | C10: 2024年第七届全国“互联网+化学反应工程”课模设计大赛 一等奖 | D10: 队员 | E10: D | F10: 6
C11: 2024年北京市大学生化工原理竞赛 个人一等奖 | E11: C | F11: 8
A12: 王岩青 | C12: 2022年北京市大学生音乐节器乐类展演 优秀表演奖 节目：《查尔达什》 | E12: 文体类，未从清单中发现 | F12: 5
C13: 2022年北京市大学生音乐节器乐类展演 优秀表演奖 节目：《北京喜讯到边塞》 | F13: 5
C14: 2022年北京市大学生音乐节器乐类展演 优秀表演奖 节目：《不忘初心》 | F14: 5
C15: 中国石油大学（北京）2023年暑期社会实践 优秀实践团队一等奖 | F15: 3

Sheet 【德育·智育·文体】2班竞赛加分
A1: 2023-2024 大三学年综测 能化21-2班竞赛活动获奖证明统计表
A2: 序号 | B2: 姓名 | C2: 学号 | D2: 比赛类型 | E2: 比赛全称（请输入） | F2: 学科竞赛级别（参考清单，校内赛事选择“校赛”） | G2: 获奖级别 | H2: 获奖等级 | I2: 获奖时间（xxxx年xx月） | J2: 竞赛类型 | K2: （团队竞赛填写）是否为队长 | L2: 备注 | M2: 体育及文艺竞赛在此备注名次 | N2: 列入加分（何导已初审） | O2: 具体单项加分/不加分原因（何导已初审） | P2: 单项加分汇总
A3: 1 | B3: 王浙 | C3: 2021010395 | D3: 智育竞赛 | E3: 2024年北京市大学生化工原理竞赛 | F3: C级 | G3: 省部级（北京市级） | H3: 一等奖 | I3: 2024-05-01 | J3: 个人竞赛 | N3: 是 | O3: 8 | P3: 34
A4: 2 | B4: 王浙 | C4: 2021010395 | D4: 智育竞赛 | E4: 第六届北京市大学生节能节水低碳减排社会实践与科技竞赛 | F4: B级 | G4: 省部级（北京市级） | H4: 一等奖 | I4: 2024-05-01 | J4: 团队竞赛 | K4: 否 | N4: 是 | O4: 4.5
A5: 3 | B5: 王浙 | C5: 2021010395 | D5: 智育竞赛 | E5: 第十四届北京市大学生化学实验竞赛（2023） | F5: C级 | G5: 省部级（北京市级） | H5: 二等奖 | I5: 2023-12-01 | J5: 个人竞赛 | N5: 是 | O5: 6
A6: 4 | B6: 王浙 | C6: 2021010395 | D6: 智育竞赛 | E6: 2024年挑战杯中国大学生创业竞赛校内选拔赛 | F6: 校赛 | G6: 校级 | H6: 一等奖 | I6: 2024-04-01 | J6: 团队竞赛 | K6: 否 | N6: 是 | O6: 2.5
A7: 5 | B7: 王浙 | C7: 2021010395 | D7: 智育竞赛 | E7: 第十五届北京市化学实验竞赛校赛 | F7: 校赛 | G7: 校级 | H7: 一等奖 | I7: 2024-05-01 | J7: 个人竞赛 | N7: 是 | O7: 5
A8: 6 | B8: 王浙 | C8: 2021010395 | D8: 智育竞赛 | E8: 2024年第七届全国“互联网+化学反应工程”课模设计大赛 | F8: D级 | G8: 国家级 | H8: 一等奖 | I8: 2024-08-01 | J8: 团队竞赛 | K8: 是 | N8: 是 | O8: 8
A9: 7 | B9: 王浙 | C9: 2021010395 | D9: 智育竞赛 | E9: 第十五届中国石油大学（北京）节能减排社会实践和科技竞赛 | F9: 校赛 | G9: 校级 | H9: 一等奖 | I9: 2024-05-01 | J9: 团队竞赛 | K9: 否 | N9: 否 | O9: 同一比赛只加等级最高项
A10: 8 | B10: 王浙 | C10: 2021010395 | D10: 智育竞赛 | E10: 北京市化学实验竞赛校内选拔赛 | F10: 校赛 | G10: 校级 | H10: 一等奖 | I10: 2023-11-01 | J10: 个人竞赛 | N10: 否 | O10: 同一比赛只加等级最高项
A11: 1 | B11: 程嘉欣 | C11: 2021010466 | D11: 文艺竞赛 | E11: 中国石油大学（北京）“学史爱校 悟思传薪”党史校情应知应会知识竞赛（初赛） | G11: 校级 | H11: 三等奖 | I11: 2023-08-01 | J11: 个人竞赛 | N11: 否 | O11: 竞赛中初赛获奖不加分 | P11: 0
A12: 1 | B12: 鹿麒麟 | C12: 2021010486 | D12: 智育竞赛 | E12: 第十四届北京市大学生化学实验竞赛（2023） | F12: C级 | G12: 省部级（北京市级） | H12: 特等奖 | I12: 2023-12-01 | J12: 个人竞赛 | N12: 是 | O12: 8 | P12: 35.5
A13: 2 | B13: 鹿麒麟 | C13: 2021010486 | D13: 智育竞赛 | E13: 全国大学生英语竞赛 | F13: C级 | G13: 校级 | H13: 三等奖 | I13: 2024-04-01 | J13: 个人竞赛 | N13: 是 | O13: 2
A14: 3 | B14: 鹿麒麟 | C14: 2021010486 | D14: 智育竞赛 | E14: 2024年北京市大学生化工原理竞赛 | F14: C级 | G14: 省部级（北京市级） | H14: 一等奖 | I14: 2024-05-01 | J14: 个人竞赛 | N14: 是 | O14: 8
A15: 4 | B15: 鹿麒麟 | C15: 2021010486 | D15: 智育竞赛 | E15: 第十五届北京市化学实验竞赛校赛 | F15: 校赛 | G15: 校级 | H15: 一等奖 | I15: 2024-05-01 | J15: 个人竞赛 | N15: 是 | O15: 5
A16: 5 | B16: 鹿麒麟 | C16: 2021010486 | D16: 智育竞赛 | E16: 2024年“天正设计杯”第十八届全国大学生化工设计竞赛 | F16: B级 | G16: 省部级（北京市级） | H16: 一等奖 | I16: 2024-08-01 | J16: 团队竞赛 | K16: 否 | N16: 是 | O16: 4.5
A17: 6 | B17: 鹿麒麟 | C17: 2021010486 | D17: 智育竞赛 | E17: 2024年第七届全国“互联网+化学反应工程”课模设计大赛 | F17: D级 | G17: 国家级 | H17: 二等奖 | I17: 2024-08-01 | J17: 团队竞赛 | K17: 否 | N17: 是 | O17: 4
A18: 7 | B18: 鹿麒麟 | C18: 2021010486 | D18: 智育竞赛 | E18: 北京市化学实验竞赛校内选拔赛 | F18: 校赛 | G18: 校级 | H18: 一等奖 | I18: 2023-11-01 | J18: 个人竞赛 | N18: 否 | O18: 同一比赛只加等级最高项
A19: 8 | B19: 鹿麒麟 | C19: 2021010486 | D19: 智育竞赛 | E19: 中国石油大学（北京）第二届信息素养大赛 | F19: 校赛 | G19: 校级 | H19: 二等奖 | I19: 2024-05-01 | J19: 个人竞赛 | N19: 是 | O19: 4
A20: 9 | B20: 鹿麒麟 | C20: 2021010486 | D20: 文艺竞赛 | E20: 中国石油大学（北京）2023年暑期社会实践优秀实践团队 | G20: 校级 | H20: 二等奖 | I20: 2023-10-01 | J20: 团队竞赛 | K20: 否 | N20: 是 | O20: 1.25 | P20: 1.875
A21: 10 | B21: 鹿麒麟 | C21: 2021010486 | D21: 文艺竞赛 | E21: 2022-2023年度中国石油大学（北京）社会实践优秀个人 | G21: 校级 | H21: 优秀奖&鼓励奖 | I21: 2023-12-01 | J21: 个人竞赛 | N21: 是 | O21: 参加多项社会实践，团体与个人可叠加一项*0.5，上述已加
A22: 11 | B22: 鹿麒麟 | C22: 2021010486 | D22: 文艺竞赛 | E22: 中国石油大学（北京）2023年暑期社会实践优秀实践报告 | G22: 校级 | H22: 优秀奖&鼓励奖 | I22: 2023-10-01 | J22: 个人竞赛 | N22: 否 | O22: 已加社会实践分数，不再累加实践报告分数
A23: 12 | B23: 鹿麒麟 | C23: 2021010486 | D23: 文艺竞赛 | E23: 中国石油大学（北京）2023年暑期社会实践优秀个人 | G23: 校级 | H23: 优秀奖&鼓励奖 | I23: 2023-10-01 | J23: 个人竞赛 | N23: 否 | O23: 0.625
A24: 13 | B24: 鹿麒麟 | C24: 2021010486 | D24: 体育竞赛 | E24: 2024年中国石油大学（北京）春季学生运动会跳大绳男子组 | G24: 校级 | H24: 名次奖（体育竞赛勾选）在备注中注明名次 | I24: 2024-04-01 | J24: 团队竞赛 | K24: 不区分队员与队长 | M24: 第一名 | N24: 是 | O24: 8 | P24: 8
A25: 1 | B25: 左笑维 | C25: 2021010492 | D25: 智育竞赛 | E25: 大学生创新创业大赛 | F25: 校赛 | G25: 校级 | H25: 一等奖 | I25: 2024-06-01 | J25: 团队竞赛 | K25: 是 | N25: 否 | O25: 科创类项目不计分 | P25: 6
A26: 2 | B26: 左笑维 | C26: 2021010492 | D26: 智育竞赛 | E26: 2024年第七届全国“互联网+化学反应工程”课模设计大赛 | F26: D级 | G26: 国家级 | H26: 一等奖 | I26: 2024-08-01 | J26: 团队竞赛 | K26: 否 | N26: 是 | O26: 6
A27: 3 | B27: 左笑维 | C27: 2021010492 | D27: 文艺竞赛 | E27: 2023年石辩闳议杯华语辩论赛 | G27: 校级 | H27: 名次奖（体育竞赛勾选）在备注中注明名次 | I27: 2023-12-01 | J27: 团队竞赛 | K27: 不区分队员与队长 | L27: 为该竞赛领队 | M27: 第二名 | N27: 是 | O27: 8 | P27: 8
A28: 4 | B28: 左笑维 | C28: 2021010492 | D28: 体育竞赛 | E28: 化工杯篮球比赛 | G28: 校级 | H28: 名次奖（体育竞赛勾选）在备注中注明名次 | I28: 2024-06-01 | J28: 团队竞赛 | K28: 否 | M28: 第二名 | N28: 是 | O28: 8 | P28: 8
A29: 5 | B29: 左笑维 | C29: 2021010492 | D29: 体育竞赛 | E29: 2024石油杯优秀裁判员 | F29: 校赛 | G29: 校级 | H29: 优秀奖&鼓励奖 | I29: 2024-05-01 | J29: 个人竞赛 | K29: 不区分队员与队长 | N29: 否 | O29: 体育优秀奖无加分
A30: 1 | B30: 覃师凯 | C30: 2021010479 | D30: 体育竞赛 | E30: 2024年中国石油大学（北京）春季学生运动会三级跳 | G30: 校级 | H30: 名次奖（体育竞赛勾选）在备注中注明名次 | I30: 2024-04-01 | J30: 个人竞赛 | M30: 第一名 | N30: 否 | O30: 体育类比赛最多可累加两项 | P30: 25
A31: 2 | B31: 覃师凯 | C31: 2021010479 | D31: 体育竞赛 | E31: 2024年中国石油大学（北京）春季学生运动会100m | G31: 校级 | H31: 名次奖（体育竞赛勾选）在备注中注明名次 | I31: 2024-04-01 | J31: 个人竞赛 | M31: 第五名 | N31: 否 | O31: 体育类比赛最多可累加两项
A32: 3 | B32: 覃师凯 | C32: 2021010479 | D32: 体育竞赛 | E32: 首都高校田径精英赛4*400接力 | G32: 省部级（北京市级） | H32: 名次奖（体育竞赛勾选）在备注中注明名次 | I32: 2023-12-01 | J32: 团队竞赛 | K32: 不区分队员与队长 | M32: 第三名 | N32: 是 | O32: 15
A33: 4 | B33: 覃师凯 | C33: 2021010479 | D33: 体育竞赛 | E33: 首都高校田径精英赛60m | G33: 省部级（北京市级） | H33: 名次奖（体育竞赛勾选）在备注中注明名次 | I33: 2023-12-01 | J33: 个人竞赛 | M33: 第六名 | N33: 是 | O33: 10
A34: 5 | B34: 覃师凯 | C34: 2021010479 | D34: 体育竞赛 | E34: 2024年中国石油大学（北京）春季学生运动会跳大绳 | G34: 校级 | H34: 名次奖（体育竞赛勾选）在备注中注明名次 | I34: 2024-04-01 | J34: 个人竞赛 | M34: 第一名 | N34: 否 | O34: 体育类比赛最多可累加两项
A35: 6 | B35: 覃师凯 | C35: 2021010479 | D35: 智育竞赛 | E35: 第十四届北京市大学生化学实验竞赛校赛 | F35: 校赛 | G35: 校级 | H35: 三等奖 | I35: 2023-11-01 | J35: 个人竞赛 | N35: 是 | O35: 2 | P35: 2
A36: 1 | B36: 刘睿扬 | C36: 2021010470 | D36: 智育竞赛 | E36: 第十五届北京市大学生化学实验竞赛校赛 | F36: 校赛 | G36: 校级 | H36: 二等奖 | I36: 2024-05-01 | J36: 个人竞赛 | N36: 是 | O36: 4 | P36: 4
A37: 1 | B37: 杨嘉琦 | C37: 2021010461 | D37: 智育竞赛 | E37: “青创北京”2024“挑战杯”首都大学生创业计划竞赛 | F37: C级 | G37: 省部级（北京市级） | H37: 二等奖 | I37: 2024-06-01 | J37: 团队竞赛 | K37: 否 | N37: 是 | O37: 3 | P37: 3
A39: 目前加分仅作参考，2024综测办法已出，有改动，最终加分情况仍需公示确认后才可生效，特此延长公示时间，请有疑问的同学于9.5 17:00前反馈
